date,department/service,beneficiary,amount,summary of purpose,category,transaction number,SAP vendor number
01.06.2021,CHILDREN AND FAMILIES,BEDDY BUYZ WAREHOUSE,430,MGMT & PARENTING,FURNITURE PURCHASE & REPAIR,5902470991,1000026704
01.06.2021,F & C S EXCLUDING CORPORATE BUDGETS,REDACTED PERSONAL DATA,500,SESS,OTHER PAYMENTS FOR CLIENTS,REDACTED,REDACTED
01.06.2021,F & C S EXCLUDING CORPORATE BUDGETS,REDACTED PERSONAL DATA,500,SESS,OTHER PAYMENTS FOR CLIENTS,REDACTED,REDACTED
02.06.2021,ADULT SOCIAL CARE,MISSION CARE,"8,411.84",DIR OF ASC,EXTERNAL AGENCIES AND BODIES,5902471796,11059369
02.06.2021,ADULT SOCIAL CARE,THREE CS,"1,899.45",DIR OF ASC,EXTERNAL AGENCIES AND BODIES,5902471810,1000033865
02.06.2021,ADULT SOCIAL CARE,GREENWRITE HEALTHCARE LTD,"2,351.77",DIR OF ASC,EXTERNAL AGENCIES AND BODIES,5902471779,1000080718
02.06.2021,ADULT SOCIAL CARE,GREENWRITE HEALTHCARE LTD,"2,624.86",DIR OF ASC,EXTERNAL AGENCIES AND BODIES,5902471760,1000080718
02.06.2021,ADULT SOCIAL CARE,QUEENSOAK CARE HOME,"18,903.71",DIR OF ASC,EXTERNAL AGENCIES AND BODIES,5902471788,1000085333
02.06.2021,ADULT SOCIAL CARE,REDACTED PERSONAL DATA,"1,094.60",DISABILITIES LAC,PAYMENTS TO CARERS,REDACTED,REDACTED
02.06.2021,ADULT SOCIAL CARE,REDACTED PERSONAL DATA,"1,632.00",DISABILITIES LAC,PAYMENTS TO CARERS,REDACTED,REDACTED
02.06.2021,ADULT SOCIAL CARE,REDACTED PERSONAL DATA,756,DISABILITIES LAC,PAYMENTS TO CARERS,REDACTED,REDACTED
02.06.2021,ADULT SOCIAL CARE,REDACTED PERSONAL DATA,862,DISABILITIES LAC,PAYMENTS TO CARERS,REDACTED,REDACTED
02.06.2021,ADULT SOCIAL CARE,REDACTED PERSONAL DATA,458,FAMILY LINK,PAYMENTS TO CARERS,REDACTED,REDACTED
02.06.2021,ADULT SOCIAL CARE,REDACTED PERSONAL DATA,320,FAMILY LINK,PAYMENTS TO CARERS,REDACTED,REDACTED
02.06.2021,ASSET MANAGEMENT,ASHFORDS LLP,852.56,DISREPAIR,PAYMENTS FOR LEGAL SERVICES,2103271059,1000055865
02.06.2021,ASSET MANAGEMENT,ASHFORDS LLP,"5,750.00",DISREPAIR,PAYMENTS FOR LEGAL SERVICES,2103271060,1000055865
02.06.2021,ASSET MANAGEMENT,ASHFORDS LLP,"7,150.00",DISREPAIR,PAYMENTS FOR LEGAL SERVICES,2103271051,1000055865
02.06.2021,ASSET MANAGEMENT,PROPERTY FACILITIES GROUP LTD,888.59,DISREPAIR,PAYMENTS FOR LEGAL SERVICES,2103271061,1000063713
02.06.2021,ASSET MANAGEMENT,PROPERTY FACILITIES GROUP LTD,"1,854.38",DISREPAIR,PAYMENTS FOR LEGAL SERVICES,2103271056,1000063713
02.06.2021,ASSET MANAGEMENT,PROPERTY FACILITIES GROUP LTD,"3,664.51",DISREPAIR,PAYMENTS FOR LEGAL SERVICES,2103271047,1000063713
02.06.2021,ASSET MANAGEMENT,PROPERTY FACILITIES GROUP LTD,"5,332.69",DISREPAIR,PAYMENTS FOR LEGAL SERVICES,2103271055,1000063713
02.06.2021,ASSET MANAGEMENT,CHESHIRE ESTATE AND LEGAL LTD,750,DISREPAIR,PAYMENTS FOR LEGAL SERVICES,2103271057,1000081908
02.06.2021,ASSET MANAGEMENT,CHESHIRE ESTATE AND LEGAL LTD,"1,500.00",DISREPAIR,PAYMENTS FOR LEGAL SERVICES,2103271050,1000081908
02.06.2021,ASSET MANAGEMENT,CHESHIRE ESTATE AND LEGAL LTD,"7,400.00",DISREPAIR,PAYMENTS FOR LEGAL SERVICES,2103271052,1000081908
02.06.2021,ASSET MANAGEMENT,MPA ENGINEERING & CONSTRUCTION,"1,020.00",DISREPAIR,PAYMENTS FOR LEGAL SERVICES,2103271058,1000082885
02.06.2021,ASSET MANAGEMENT,ANTONY HODARI  SOLICITORS,"3,500.00",DISREPAIR,PAYMENTS FOR LEGAL SERVICES,2103271048,1000031040
02.06.2021,ASSET MANAGEMENT,ANTONY HODARI  SOLICITORS,"3,500.00",DISREPAIR,PAYMENTS FOR LEGAL SERVICES,2103271049,1000031040
02.06.2021,ASSET MANAGEMENT,BARNES SOLICITORS LLP,"1,349.71",DISREPAIR,PAYMENTS FOR LEGAL SERVICES,2103271054,1000083820
02.06.2021,ASSET MANAGEMENT,BOND TURNER  SOLICITORS,"4,750.00",DISREPAIR,PAYMENTS FOR LEGAL SERVICES,2103271053,1000085362
02.06.2021,ASSET MANAGEMENT,ENVISION  SOLICITORS LIMITED,"4,000.00",DISREPAIR,PAYMENTS FOR LEGAL SERVICES,2103271046,1000086191
02.06.2021,ASSET MANAGEMENT,BRITISH STANDARDS INSTITUTION,"2,329.00",HEALTH AND SAFETY,SUBSCRIPTIONS,5902471843,1000041736
02.06.2021,ASSET MANAGEMENT HGF,LONDON TOOLS LIMITED,265.5,HANDY PERSONS,MATERIALS,5902471613,1000003017
02.06.2021,CENTRAL FUNCTIONS,HUNTER & PARTNERS LTD,"3,000.00",LEDBURY ESTATE,CONSULTANTS SERVICES,5902471863,1000055088
02.06.2021,CHIEF EXECUTIVE,KENT COUNTY COUNCIL - LASER,"2,073.37",CAPITAL PS (REGEN),CONSTRUCTION MAIN CONTRACT -CERTIFICATED,5902471838,1000012926
02.06.2021,CHILDREN AND ADULT,INTERSERVE (FACILITIES MANAGEMENT),"5,999.38",CAPITAL PS (SOC SERV),CONSTRUCTION MAIN CONTRACT,2103271941,3000000166
02.06.2021,CHILDREN AND FAMILIES,REDACTED PERSONAL DATA,695.04,ADOPTION ALLOWANCES,PAYMENTS TO CARERS,REDACTED,REDACTED
02.06.2021,CHILDREN AND FAMILIES,REDACTED PERSONAL DATA,375.54,ADOPTION ALLOWANCES,PAYMENTS TO CARERS,REDACTED,REDACTED
02.06.2021,CHILDREN AND FAMILIES,REDACTED PERSONAL DATA,375.54,ADOPTION ALLOWANCES,PAYMENTS TO CARERS,REDACTED,REDACTED
02.06.2021,CHILDREN AND FAMILIES,REDACTED PERSONAL DATA,500,ADOPTION ALLOWANCES,PAYMENTS TO CARERS,REDACTED,REDACTED
02.06.2021,CHILDREN AND FAMILIES,REDACTED PERSONAL DATA,635.34,ADOPTION ALLOWANCES,PAYMENTS TO CARERS,REDACTED,REDACTED
02.06.2021,CHILDREN AND FAMILIES,REDACTED PERSONAL DATA,340.91,ADOPTION ALLOWANCES,PAYMENTS TO CARERS,REDACTED,REDACTED
02.06.2021,CHILDREN AND FAMILIES,REDACTED PERSONAL DATA,375.54,ADOPTION ALLOWANCES,PAYMENTS TO CARERS,REDACTED,REDACTED
02.06.2021,CHILDREN AND FAMILIES,REDACTED PERSONAL DATA,465.54,ADOPTION ALLOWANCES,PAYMENTS TO CARERS,REDACTED,REDACTED
02.06.2021,CHILDREN AND FAMILIES,REDACTED PERSONAL DATA,465.54,ADOPTION ALLOWANCES,PAYMENTS TO CARERS,REDACTED,REDACTED
02.06.2021,CHILDREN AND FAMILIES,REDACTED PERSONAL DATA,375.54,ADOPTION ALLOWANCES,PAYMENTS TO CARERS,REDACTED,REDACTED
02.06.2021,CHILDREN AND FAMILIES,REDACTED PERSONAL DATA,451.8,ADOPTION ALLOWANCES,PAYMENTS TO CARERS,REDACTED,REDACTED
02.06.2021,CHILDREN AND FAMILIES,REDACTED PERSONAL DATA,359.44,ADOPTION ALLOWANCES,PAYMENTS TO CARERS,REDACTED,REDACTED
02.06.2021,CHILDREN AND FAMILIES,REDACTED PERSONAL DATA,465.48,ADOPTION ALLOWANCES,PAYMENTS TO CARERS,REDACTED,REDACTED
02.06.2021,CHILDREN AND FAMILIES,REDACTED PERSONAL DATA,386,ADOPTION ALLOWANCES,PAYMENTS TO CARERS,REDACTED,REDACTED
02.06.2021,CHILDREN AND FAMILIES,REDACTED PERSONAL DATA,465.54,ADOPTION ALLOWANCES,PAYMENTS TO CARERS,REDACTED,REDACTED
02.06.2021,CHILDREN AND FAMILIES,REDACTED PERSONAL DATA,269.22,ADOPTION ALLOWANCES,PAYMENTS TO CARERS,REDACTED,REDACTED
02.06.2021,CHILDREN AND FAMILIES,REDACTED PERSONAL DATA,705.24,ADOPTION ALLOWANCES,PAYMENTS TO CARERS,REDACTED,REDACTED
02.06.2021,CHILDREN AND FAMILIES,REDACTED PERSONAL DATA,777.36,ADOPTION ALLOWANCES,PAYMENTS TO CARERS,REDACTED,REDACTED
02.06.2021,CHILDREN AND FAMILIES,REDACTED PERSONAL DATA,512.02,ADOPTION ALLOWANCES,PAYMENTS TO CARERS,REDACTED,REDACTED
02.06.2021,CHILDREN AND FAMILIES,REDACTED PERSONAL DATA,251.12,ADOPTION ALLOWANCES,PAYMENTS TO CARERS,REDACTED,REDACTED
02.06.2021,CHILDREN AND FAMILIES,REDACTED PERSONAL DATA,375.54,ADOPTION ALLOWANCES,PAYMENTS TO CARERS,REDACTED,REDACTED
02.06.2021,CHILDREN AND FAMILIES,REDACTED PERSONAL DATA,375.54,ADOPTION ALLOWANCES,PAYMENTS TO CARERS,REDACTED,REDACTED
02.06.2021,CHILDREN AND FAMILIES,REDACTED PERSONAL DATA,457.14,ADOPTION ALLOWANCES,PAYMENTS TO CARERS,REDACTED,REDACTED
02.06.2021,CHILDREN AND FAMILIES,REDACTED PERSONAL DATA,502,ADOPTION ALLOWANCES,PAYMENTS TO CARERS,REDACTED,REDACTED
02.06.2021,CHILDREN AND FAMILIES,REDACTED PERSONAL DATA,375.54,ADOPTION ALLOWANCES,PAYMENTS TO CARERS,REDACTED,REDACTED
02.06.2021,CHILDREN AND FAMILIES,REDACTED PERSONAL DATA,640.9,ADOPTION ALLOWANCES,PAYMENTS TO CARERS,REDACTED,REDACTED
02.06.2021,CHILDREN AND FAMILIES,REDACTED PERSONAL DATA,382.3,ADOPTION ALLOWANCES,PAYMENTS TO CARERS,REDACTED,REDACTED
02.06.2021,CHILDREN AND FAMILIES,REDACTED PERSONAL DATA,382.3,ADOPTION ALLOWANCES,PAYMENTS TO CARERS,REDACTED,REDACTED
02.06.2021,CHILDREN AND FAMILIES,REDACTED PERSONAL DATA,375.54,ADOPTION ALLOWANCES,PAYMENTS TO CARERS,REDACTED,REDACTED
02.06.2021,CHILDREN AND FAMILIES,REDACTED PERSONAL DATA,304.26,ADOPTION ALLOWANCES,PAYMENTS TO CARERS,REDACTED,REDACTED
02.06.2021,CHILDREN AND FAMILIES,REDACTED PERSONAL DATA,278.54,ADOPTION ALLOWANCES,PAYMENTS TO CARERS,REDACTED,REDACTED
02.06.2021,CHILDREN AND FAMILIES,REDACTED PERSONAL DATA,485.22,ADOPTION ALLOWANCES,PAYMENTS TO CARERS,REDACTED,REDACTED
02.06.2021,CHILDREN AND FAMILIES,REDACTED PERSONAL DATA,368.52,ADOPTION ALLOWANCES,PAYMENTS TO CARERS,REDACTED,REDACTED
02.06.2021,CHILDREN AND FAMILIES,REDACTED PERSONAL DATA,252.9,ADOPTION ALLOWANCES,PAYMENTS TO CARERS,REDACTED,REDACTED
02.06.2021,CHILDREN AND FAMILIES,REDACTED PERSONAL DATA,253.56,ADOPTION ALLOWANCES,PAYMENTS TO CARERS,REDACTED,REDACTED
02.06.2021,CHILDREN AND FAMILIES,REDACTED PERSONAL DATA,382.3,ADOPTION ALLOWANCES,PAYMENTS TO CARERS,REDACTED,REDACTED
02.06.2021,CHILDREN AND FAMILIES,REDACTED PERSONAL DATA,382.3,ADOPTION ALLOWANCES,PAYMENTS TO CARERS,REDACTED,REDACTED
02.06.2021,CHILDREN AND FAMILIES,REDACTED PERSONAL DATA,351.42,ADOPTION ALLOWANCES,PAYMENTS TO CARERS,REDACTED,REDACTED
02.06.2021,CHILDREN AND FAMILIES,REDACTED PERSONAL DATA,484.92,ADOPTION ALLOWANCES,PAYMENTS TO CARERS,REDACTED,REDACTED
02.06.2021,CHILDREN AND FAMILIES,REDACTED PERSONAL DATA,530,ADOPTION ALLOWANCES,PAYMENTS TO CARERS,REDACTED,REDACTED
02.06.2021,CHILDREN AND FAMILIES,REDACTED PERSONAL DATA,908,ADOPTION ALLOWANCES,PAYMENTS TO CARERS,REDACTED,REDACTED
02.06.2021,CHILDREN AND FAMILIES,REDACTED PERSONAL DATA,738.32,ADOPTION ALLOWANCES,PAYMENTS TO CARERS,REDACTED,REDACTED
02.06.2021,CHILDREN AND FAMILIES,REDACTED PERSONAL DATA,695.12,ADOPTION ALLOWANCES,PAYMENTS TO CARERS,REDACTED,REDACTED
02.06.2021,CHILDREN AND FAMILIES,REDACTED PERSONAL DATA,293.98,ADOPTION ALLOWANCES,PAYMENTS TO CARERS,REDACTED,REDACTED
02.06.2021,CHILDREN AND FAMILIES,REDACTED PERSONAL DATA,251.94,ADOPTION ALLOWANCES,PAYMENTS TO CARERS,REDACTED,REDACTED
02.06.2021,CHILDREN AND FAMILIES,REDACTED PERSONAL DATA,652.9,ADOPTION ALLOWANCES,PAYMENTS TO CARERS,REDACTED,REDACTED
02.06.2021,CHILDREN AND FAMILIES,REDACTED PERSONAL DATA,652.9,ADOPTION ALLOWANCES,PAYMENTS TO CARERS,REDACTED,REDACTED
02.06.2021,CHILDREN AND FAMILIES,REDACTED PERSONAL DATA,712.3,ADOPTION ALLOWANCES,PAYMENTS TO CARERS,REDACTED,REDACTED
02.06.2021,CHILDREN AND FAMILIES,REDACTED PERSONAL DATA,767.68,ADOPTION ALLOWANCES,PAYMENTS TO CARERS,REDACTED,REDACTED
02.06.2021,CHILDREN AND FAMILIES,REDACTED PERSONAL DATA,408.09,ADOPTION ALLOWANCES,PAYMENTS TO CARERS,REDACTED,REDACTED
02.06.2021,CHILDREN AND FAMILIES,REDACTED PERSONAL DATA,682.3,ADOPTION ALLOWANCES,PAYMENTS TO CARERS,REDACTED,REDACTED
02.06.2021,CHILDREN AND FAMILIES,REDACTED PERSONAL DATA,682.3,ADOPTION ALLOWANCES,PAYMENTS TO CARERS,REDACTED,REDACTED
02.06.2021,CHILDREN AND FAMILIES,REDACTED PERSONAL DATA,588.42,ADOPTION ALLOWANCES,PAYMENTS TO CARERS,REDACTED,REDACTED
02.06.2021,CHILDREN AND FAMILIES,REDACTED PERSONAL DATA,"1,053.20",ADOPTION ALLOWANCES,PAYMENTS TO CARERS,REDACTED,REDACTED
02.06.2021,CHILDREN AND FAMILIES,REDACTED PERSONAL DATA,386,ADOPTION ALLOWANCES,PAYMENTS TO CARERS,REDACTED,REDACTED
02.06.2021,CHILDREN AND FAMILIES,REDACTED PERSONAL DATA,618.6,ADOPTION ALLOWANCES,PAYMENTS TO CARERS,REDACTED,REDACTED
02.06.2021,CHILDREN AND FAMILIES,REDACTED PERSONAL DATA,660,ADOPTION ALLOWANCES,PAYMENTS TO CARERS,REDACTED,REDACTED
02.06.2021,CHILDREN AND FAMILIES,REDACTED PERSONAL DATA,660,ADOPTION ALLOWANCES,PAYMENTS TO CARERS,REDACTED,REDACTED
02.06.2021,CHILDREN AND FAMILIES,REDACTED PERSONAL DATA,276.1,ADOPTION ALLOWANCES,PAYMENTS TO CARERS,REDACTED,REDACTED
02.06.2021,CHILDREN AND FAMILIES,REDACTED PERSONAL DATA,268.62,ADOPTION ALLOWANCES,PAYMENTS TO CARERS,REDACTED,REDACTED
02.06.2021,CHILDREN AND FAMILIES,REDACTED PERSONAL DATA,282.86,ADOPTION ALLOWANCES,PAYMENTS TO CARERS,REDACTED,REDACTED
02.06.2021,CHILDREN AND FAMILIES,REDACTED PERSONAL DATA,676,ADOPTION ALLOWANCES,PAYMENTS TO CARERS,REDACTED,REDACTED
02.06.2021,CHILDREN AND FAMILIES,REDACTED PERSONAL DATA,"4,178.28",ADOPTION ALLOWANCES,PAYMENTS TO CARERS,REDACTED,REDACTED
02.06.2021,CHILDREN AND FAMILIES,REDACTED PERSONAL DATA,300,ADOPTION SUPP FUND,PROFESSIONAL FEES,REDACTED,REDACTED
02.06.2021,CHILDREN AND FAMILIES,REDACTED PERSONAL DATA,789,ADOPTION SUPP FUND,PROFESSIONAL FEES,REDACTED,REDACTED
02.06.2021,CHILDREN AND FAMILIES,REDACTED PERSONAL DATA,475,ADOPTION SUPP FUND,PROFESSIONAL FEES,REDACTED,REDACTED
02.06.2021,CHILDREN AND FAMILIES,THE SENSORY SMART CHILD LTD,270,ADOPTION SUPP FUND,PROFESSIONAL FEES,5902471716,1000085374
02.06.2021,CHILDREN AND FAMILIES,INTERPRETING DIRECT CO (UK) LTD,"11,817.00",CENTRAL SUPPORT,INTERPRETING SERVICES,5902471883,1000070133
02.06.2021,CHILDREN AND FAMILIES,ITL NORTH EAST LTD,286,CENTRAL SUPPORT,INTERPRETING SERVICES,5902471648,1000082415
02.06.2021,CHILDREN AND FAMILIES,ITL NORTH EAST LTD,413.5,CENTRAL SUPPORT,INTERPRETING SERVICES,5902471648,1000082415
02.06.2021,CHILDREN AND FAMILIES,ITL NORTH EAST LTD,524.55,CENTRAL SUPPORT,INTERPRETING SERVICES,5902471648,1000082415
02.06.2021,CHILDREN AND FAMILIES,ITL NORTH EAST LTD,740.29,CENTRAL SUPPORT,INTERPRETING SERVICES,5902471648,1000082415
02.06.2021,CHILDREN AND FAMILIES,ITL NORTH EAST LTD,"1,064.07",CENTRAL SUPPORT,INTERPRETING SERVICES,5902471648,1000082415
02.06.2021,CHILDREN AND FAMILIES,ITL NORTH EAST LTD,"1,216.77",CENTRAL SUPPORT,INTERPRETING SERVICES,5902471648,1000082415
02.06.2021,CHILDREN AND FAMILIES,ITL NORTH EAST LTD,"3,761.43",CENTRAL SUPPORT,INTERPRETING SERVICES,5902471648,1000082415
02.06.2021,CHILDREN AND FAMILIES,SOCIAL WORK SOLUTIONS (SOUTH EAST),"1,750.00",DIRECTOR OF C&F,PROFESSIONAL FEES,5902471712,1000086779
02.06.2021,CHILDREN AND FAMILIES,SOCIAL WORK SOLUTIONS (SOUTH EAST),"1,750.00",DIRECTOR OF C&F,PROFESSIONAL FEES,5902471713,1000086779
02.06.2021,CHILDREN AND FAMILIES,REDACTED PERSONAL DATA,554.67,FAMILY GROUP CONF�S,PROFESSIONAL FEES,REDACTED,REDACTED
02.06.2021,CHILDREN AND FAMILIES,REDACTED PERSONAL DATA,300,FE SUPPORT,CLIENT TRANSPORT,REDACTED,REDACTED
02.06.2021,CHILDREN AND FAMILIES,REDACTED PERSONAL DATA,300,FOSTERING ALLOWANCES,ADDITIONAL PAYMENTS TO AGENCIES/CARERS,REDACTED,REDACTED
02.06.2021,CHILDREN AND FAMILIES,REDACTED PERSONAL DATA,300,FOSTERING ALLOWANCES,ADDITIONAL PAYMENTS TO AGENCIES/CARERS,REDACTED,REDACTED
02.06.2021,CHILDREN AND FAMILIES,REDACTED PERSONAL DATA,700,FOSTERING ALLOWANCES,ADDITIONAL PAYMENTS TO AGENCIES/CARERS,REDACTED,REDACTED
02.06.2021,CHILDREN AND FAMILIES,REDACTED PERSONAL DATA,300,FOSTERING ALLOWANCES,ADDITIONAL PAYMENTS TO AGENCIES/CARERS,REDACTED,REDACTED
02.06.2021,CHILDREN AND FAMILIES,REDACTED PERSONAL DATA,300,FOSTERING ALLOWANCES,OTHER PAYMENTS FOR CLIENTS,REDACTED,REDACTED
02.06.2021,CHILDREN AND FAMILIES,REDACTED PERSONAL DATA,762,FOSTERING ALLOWANCES,PAYMENTS TO CARERS,REDACTED,REDACTED
02.06.2021,CHILDREN AND FAMILIES,REDACTED PERSONAL DATA,862,FOSTERING ALLOWANCES,PAYMENTS TO CARERS,REDACTED,REDACTED
02.06.2021,CHILDREN AND FAMILIES,REDACTED PERSONAL DATA,954,FOSTERING ALLOWANCES,PAYMENTS TO CARERS,REDACTED,REDACTED
02.06.2021,CHILDREN AND FAMILIES,REDACTED PERSONAL DATA,862,FOSTERING ALLOWANCES,PAYMENTS TO CARERS,REDACTED,REDACTED
02.06.2021,CHILDREN AND FAMILIES,REDACTED PERSONAL DATA,864,FOSTERING ALLOWANCES,PAYMENTS TO CARERS,REDACTED,REDACTED
02.06.2021,CHILDREN AND FAMILIES,REDACTED PERSONAL DATA,862,FOSTERING ALLOWANCES,PAYMENTS TO CARERS,REDACTED,REDACTED
02.06.2021,CHILDREN AND FAMILIES,REDACTED PERSONAL DATA,864,FOSTERING ALLOWANCES,PAYMENTS TO CARERS,REDACTED,REDACTED
02.06.2021,CHILDREN AND FAMILIES,REDACTED PERSONAL DATA,954,FOSTERING ALLOWANCES,PAYMENTS TO CARERS,REDACTED,REDACTED
02.06.2021,CHILDREN AND FAMILIES,REDACTED PERSONAL DATA,"2,420.00",FOSTERING ALLOWANCES,PAYMENTS TO CARERS,REDACTED,REDACTED
02.06.2021,CHILDREN AND FAMILIES,REDACTED PERSONAL DATA,862,FOSTERING ALLOWANCES,PAYMENTS TO CARERS,REDACTED,REDACTED
02.06.2021,CHILDREN AND FAMILIES,REDACTED PERSONAL DATA,862,FOSTERING ALLOWANCES,PAYMENTS TO CARERS,REDACTED,REDACTED
02.06.2021,CHILDREN AND FAMILIES,REDACTED PERSONAL DATA,896,FOSTERING ALLOWANCES,PAYMENTS TO CARERS,REDACTED,REDACTED
02.06.2021,CHILDREN AND FAMILIES,REDACTED PERSONAL DATA,946,FOSTERING ALLOWANCES,PAYMENTS TO CARERS,REDACTED,REDACTED
02.06.2021,CHILDREN AND FAMILIES,REDACTED PERSONAL DATA,712.3,FOSTERING ALLOWANCES,PAYMENTS TO CARERS,REDACTED,REDACTED
02.06.2021,CHILDREN AND FAMILIES,REDACTED PERSONAL DATA,832,FOSTERING ALLOWANCES,PAYMENTS TO CARERS,REDACTED,REDACTED
02.06.2021,CHILDREN AND FAMILIES,REDACTED PERSONAL DATA,762,FOSTERING ALLOWANCES,PAYMENTS TO CARERS,REDACTED,REDACTED
02.06.2021,CHILDREN AND FAMILIES,REDACTED PERSONAL DATA,762,FOSTERING ALLOWANCES,PAYMENTS TO CARERS,REDACTED,REDACTED
02.06.2021,CHILDREN AND FAMILIES,REDACTED PERSONAL DATA,862,FOSTERING ALLOWANCES,PAYMENTS TO CARERS,REDACTED,REDACTED
02.06.2021,CHILDREN AND FAMILIES,REDACTED PERSONAL DATA,864,FOSTERING ALLOWANCES,PAYMENTS TO CARERS,REDACTED,REDACTED
02.06.2021,CHILDREN AND FAMILIES,REDACTED PERSONAL DATA,"1,632.00",FOSTERING ALLOWANCES,PAYMENTS TO CARERS,REDACTED,REDACTED
02.06.2021,CHILDREN AND FAMILIES,REDACTED PERSONAL DATA,862,FOSTERING ALLOWANCES,PAYMENTS TO CARERS,REDACTED,REDACTED
02.06.2021,CHILDREN AND FAMILIES,REDACTED PERSONAL DATA,864,FOSTERING ALLOWANCES,PAYMENTS TO CARERS,REDACTED,REDACTED
02.06.2021,CHILDREN AND FAMILIES,REDACTED PERSONAL DATA,954,FOSTERING ALLOWANCES,PAYMENTS TO CARERS,REDACTED,REDACTED
02.06.2021,CHILDREN AND FAMILIES,REDACTED PERSONAL DATA,864,FOSTERING ALLOWANCES,PAYMENTS TO CARERS,REDACTED,REDACTED
02.06.2021,CHILDREN AND FAMILIES,REDACTED PERSONAL DATA,"1,539.29",FOSTERING ALLOWANCES,PAYMENTS TO CARERS,REDACTED,REDACTED
02.06.2021,CHILDREN AND FAMILIES,REDACTED PERSONAL DATA,"1,632.00",FOSTERING ALLOWANCES,PAYMENTS TO CARERS,REDACTED,REDACTED
02.06.2021,CHILDREN AND FAMILIES,REDACTED PERSONAL DATA,864,FOSTERING ALLOWANCES,PAYMENTS TO CARERS,REDACTED,REDACTED
02.06.2021,CHILDREN AND FAMILIES,REDACTED PERSONAL DATA,864,FOSTERING ALLOWANCES,PAYMENTS TO CARERS,REDACTED,REDACTED
02.06.2021,CHILDREN AND FAMILIES,REDACTED PERSONAL DATA,864,FOSTERING ALLOWANCES,PAYMENTS TO CARERS,REDACTED,REDACTED
02.06.2021,CHILDREN AND FAMILIES,REDACTED PERSONAL DATA,"1,734.00",FOSTERING ALLOWANCES,PAYMENTS TO CARERS,REDACTED,REDACTED
02.06.2021,CHILDREN AND FAMILIES,REDACTED PERSONAL DATA,864,FOSTERING ALLOWANCES,PAYMENTS TO CARERS,REDACTED,REDACTED
02.06.2021,CHILDREN AND FAMILIES,REDACTED PERSONAL DATA,660,FOSTERING ALLOWANCES,PAYMENTS TO CARERS,REDACTED,REDACTED
02.06.2021,CHILDREN AND FAMILIES,REDACTED PERSONAL DATA,862,FOSTERING ALLOWANCES,PAYMENTS TO CARERS,REDACTED,REDACTED
02.06.2021,CHILDREN AND FAMILIES,REDACTED PERSONAL DATA,862,FOSTERING ALLOWANCES,PAYMENTS TO CARERS,REDACTED,REDACTED
02.06.2021,CHILDREN AND FAMILIES,REDACTED PERSONAL DATA,954,FOSTERING ALLOWANCES,PAYMENTS TO CARERS,REDACTED,REDACTED
02.06.2021,CHILDREN AND FAMILIES,REDACTED PERSONAL DATA,712,FOSTERING ALLOWANCES,PAYMENTS TO CARERS,REDACTED,REDACTED
02.06.2021,CHILDREN AND FAMILIES,REDACTED PERSONAL DATA,"1,632.00",FOSTERING ALLOWANCES,PAYMENTS TO CARERS,REDACTED,REDACTED
02.06.2021,CHILDREN AND FAMILIES,REDACTED PERSONAL DATA,"1,632.00",FOSTERING ALLOWANCES,PAYMENTS TO CARERS,REDACTED,REDACTED
02.06.2021,CHILDREN AND FAMILIES,REDACTED PERSONAL DATA,984,FOSTERING ALLOWANCES,PAYMENTS TO CARERS,REDACTED,REDACTED
02.06.2021,CHILDREN AND FAMILIES,REDACTED PERSONAL DATA,712,FOSTERING ALLOWANCES,PAYMENTS TO CARERS,REDACTED,REDACTED
02.06.2021,CHILDREN AND FAMILIES,REDACTED PERSONAL DATA,862,FOSTERING ALLOWANCES,PAYMENTS TO CARERS,REDACTED,REDACTED
02.06.2021,CHILDREN AND FAMILIES,REDACTED PERSONAL DATA,"1,166.00",FOSTERING ALLOWANCES,PAYMENTS TO CARERS,REDACTED,REDACTED
02.06.2021,CHILDREN AND FAMILIES,REDACTED PERSONAL DATA,682,FOSTERING ALLOWANCES,PAYMENTS TO CARERS,REDACTED,REDACTED
02.06.2021,CHILDREN AND FAMILIES,REDACTED PERSONAL DATA,832,FOSTERING ALLOWANCES,PAYMENTS TO CARERS,REDACTED,REDACTED
02.06.2021,CHILDREN AND FAMILIES,REDACTED PERSONAL DATA,920,FOSTERING ALLOWANCES,PAYMENTS TO CARERS,REDACTED,REDACTED
02.06.2021,CHILDREN AND FAMILIES,REDACTED PERSONAL DATA,862,FOSTERING ALLOWANCES,PAYMENTS TO CARERS,REDACTED,REDACTED
02.06.2021,CHILDREN AND FAMILIES,REDACTED PERSONAL DATA,862,FOSTERING ALLOWANCES,PAYMENTS TO CARERS,REDACTED,REDACTED
02.06.2021,CHILDREN AND FAMILIES,REDACTED PERSONAL DATA,862,FOSTERING ALLOWANCES,PAYMENTS TO CARERS,REDACTED,REDACTED
02.06.2021,CHILDREN AND FAMILIES,REDACTED PERSONAL DATA,864,FOSTERING ALLOWANCES,PAYMENTS TO CARERS,REDACTED,REDACTED
02.06.2021,CHILDREN AND FAMILIES,REDACTED PERSONAL DATA,896,FOSTERING ALLOWANCES,PAYMENTS TO CARERS,REDACTED,REDACTED
02.06.2021,CHILDREN AND FAMILIES,REDACTED PERSONAL DATA,862,FOSTERING ALLOWANCES,PAYMENTS TO CARERS,REDACTED,REDACTED
02.06.2021,CHILDREN AND FAMILIES,REDACTED PERSONAL DATA,862,FOSTERING ALLOWANCES,PAYMENTS TO CARERS,REDACTED,REDACTED
02.06.2021,CHILDREN AND FAMILIES,REDACTED PERSONAL DATA,864,FOSTERING ALLOWANCES,PAYMENTS TO CARERS,REDACTED,REDACTED
02.06.2021,CHILDREN AND FAMILIES,REDACTED PERSONAL DATA,954,FOSTERING ALLOWANCES,PAYMENTS TO CARERS,REDACTED,REDACTED
02.06.2021,CHILDREN AND FAMILIES,REDACTED PERSONAL DATA,864,FOSTERING ALLOWANCES,PAYMENTS TO CARERS,REDACTED,REDACTED
02.06.2021,CHILDREN AND FAMILIES,REDACTED PERSONAL DATA,712,FOSTERING ALLOWANCES,PAYMENTS TO CARERS,REDACTED,REDACTED
02.06.2021,CHILDREN AND FAMILIES,REDACTED PERSONAL DATA,954,FOSTERING ALLOWANCES,PAYMENTS TO CARERS,REDACTED,REDACTED
02.06.2021,CHILDREN AND FAMILIES,REDACTED PERSONAL DATA,862,FOSTERING ALLOWANCES,PAYMENTS TO CARERS,REDACTED,REDACTED
02.06.2021,CHILDREN AND FAMILIES,REDACTED PERSONAL DATA,862,FOSTERING ALLOWANCES,PAYMENTS TO CARERS,REDACTED,REDACTED
02.06.2021,CHILDREN AND FAMILIES,REDACTED PERSONAL DATA,712,FOSTERING ALLOWANCES,PAYMENTS TO CARERS,REDACTED,REDACTED
02.06.2021,CHILDREN AND FAMILIES,REDACTED PERSONAL DATA,712,FOSTERING ALLOWANCES,PAYMENTS TO CARERS,REDACTED,REDACTED
02.06.2021,CHILDREN AND FAMILIES,REDACTED PERSONAL DATA,712,FOSTERING ALLOWANCES,PAYMENTS TO CARERS,REDACTED,REDACTED
02.06.2021,CHILDREN AND FAMILIES,REDACTED PERSONAL DATA,906,FOSTERING ALLOWANCES,PAYMENTS TO CARERS,REDACTED,REDACTED
02.06.2021,CHILDREN AND FAMILIES,REDACTED PERSONAL DATA,954,FOSTERING ALLOWANCES,PAYMENTS TO CARERS,REDACTED,REDACTED
02.06.2021,CHILDREN AND FAMILIES,REDACTED PERSONAL DATA,862,FOSTERING ALLOWANCES,PAYMENTS TO CARERS,REDACTED,REDACTED
02.06.2021,CHILDREN AND FAMILIES,REDACTED PERSONAL DATA,862,FOSTERING ALLOWANCES,PAYMENTS TO CARERS,REDACTED,REDACTED
02.06.2021,CHILDREN AND FAMILIES,REDACTED PERSONAL DATA,864,FOSTERING ALLOWANCES,PAYMENTS TO CARERS,REDACTED,REDACTED
02.06.2021,CHILDREN AND FAMILIES,REDACTED PERSONAL DATA,864,FOSTERING ALLOWANCES,PAYMENTS TO CARERS,REDACTED,REDACTED
02.06.2021,CHILDREN AND FAMILIES,REDACTED PERSONAL DATA,864,FOSTERING ALLOWANCES,PAYMENTS TO CARERS,REDACTED,REDACTED
02.06.2021,CHILDREN AND FAMILIES,REDACTED PERSONAL DATA,864,FOSTERING ALLOWANCES,PAYMENTS TO CARERS,REDACTED,REDACTED
02.06.2021,CHILDREN AND FAMILIES,REDACTED PERSONAL DATA,864,FOSTERING ALLOWANCES,PAYMENTS TO CARERS,REDACTED,REDACTED
02.06.2021,CHILDREN AND FAMILIES,REDACTED PERSONAL DATA,712,FOSTERING ALLOWANCES,PAYMENTS TO CARERS,REDACTED,REDACTED
02.06.2021,CHILDREN AND FAMILIES,REDACTED PERSONAL DATA,712,FOSTERING ALLOWANCES,PAYMENTS TO CARERS,REDACTED,REDACTED
02.06.2021,CHILDREN AND FAMILIES,REDACTED PERSONAL DATA,712,FOSTERING ALLOWANCES,PAYMENTS TO CARERS,REDACTED,REDACTED
02.06.2021,CHILDREN AND FAMILIES,REDACTED PERSONAL DATA,832,FOSTERING ALLOWANCES,PAYMENTS TO CARERS,REDACTED,REDACTED
02.06.2021,CHILDREN AND FAMILIES,REDACTED PERSONAL DATA,862,FOSTERING ALLOWANCES,PAYMENTS TO CARERS,REDACTED,REDACTED
02.06.2021,CHILDREN AND FAMILIES,REDACTED PERSONAL DATA,864,FOSTERING ALLOWANCES,PAYMENTS TO CARERS,REDACTED,REDACTED
02.06.2021,CHILDREN AND FAMILIES,REDACTED PERSONAL DATA,954,FOSTERING ALLOWANCES,PAYMENTS TO CARERS,REDACTED,REDACTED
02.06.2021,CHILDREN AND FAMILIES,REDACTED PERSONAL DATA,762,FOSTERING ALLOWANCES,PAYMENTS TO CARERS,REDACTED,REDACTED
02.06.2021,CHILDREN AND FAMILIES,REDACTED PERSONAL DATA,862,FOSTERING ALLOWANCES,PAYMENTS TO CARERS,REDACTED,REDACTED
02.06.2021,CHILDREN AND FAMILIES,REDACTED PERSONAL DATA,888.28,FOSTERING ALLOWANCES,PAYMENTS TO CARERS,REDACTED,REDACTED
02.06.2021,CHILDREN AND FAMILIES,REDACTED PERSONAL DATA,682,FOSTERING ALLOWANCES,PAYMENTS TO CARERS,REDACTED,REDACTED
02.06.2021,CHILDREN AND FAMILIES,REDACTED PERSONAL DATA,732,FOSTERING ALLOWANCES,PAYMENTS TO CARERS,REDACTED,REDACTED
02.06.2021,CHILDREN AND FAMILIES,REDACTED PERSONAL DATA,712,FOSTERING ALLOWANCES,PAYMENTS TO CARERS,REDACTED,REDACTED
02.06.2021,CHILDREN AND FAMILIES,REDACTED PERSONAL DATA,862,FOSTERING ALLOWANCES,PAYMENTS TO CARERS,REDACTED,REDACTED
02.06.2021,CHILDREN AND FAMILIES,REDACTED PERSONAL DATA,862,FOSTERING ALLOWANCES,PAYMENTS TO CARERS,REDACTED,REDACTED
02.06.2021,CHILDREN AND FAMILIES,REDACTED PERSONAL DATA,762,FOSTERING ALLOWANCES,PAYMENTS TO CARERS,REDACTED,REDACTED
02.06.2021,CHILDREN AND FAMILIES,REDACTED PERSONAL DATA,862,FOSTERING ALLOWANCES,PAYMENTS TO CARERS,REDACTED,REDACTED
02.06.2021,CHILDREN AND FAMILIES,REDACTED PERSONAL DATA,712,FOSTERING ALLOWANCES,PAYMENTS TO CARERS,REDACTED,REDACTED
02.06.2021,CHILDREN AND FAMILIES,REDACTED PERSONAL DATA,762,FOSTERING ALLOWANCES,PAYMENTS TO CARERS,REDACTED,REDACTED
02.06.2021,CHILDREN AND FAMILIES,REDACTED PERSONAL DATA,862,FOSTERING ALLOWANCES,PAYMENTS TO CARERS,REDACTED,REDACTED
02.06.2021,CHILDREN AND FAMILIES,REDACTED PERSONAL DATA,712,FOSTERING ALLOWANCES,PAYMENTS TO CARERS,REDACTED,REDACTED
02.06.2021,CHILDREN AND FAMILIES,REDACTED PERSONAL DATA,862,FOSTERING ALLOWANCES,PAYMENTS TO CARERS,REDACTED,REDACTED
02.06.2021,CHILDREN AND FAMILIES,REDACTED PERSONAL DATA,862,FOSTERING ALLOWANCES,PAYMENTS TO CARERS,REDACTED,REDACTED
02.06.2021,CHILDREN AND FAMILIES,REDACTED PERSONAL DATA,862,FOSTERING ALLOWANCES,PAYMENTS TO CARERS,REDACTED,REDACTED
02.06.2021,CHILDREN AND FAMILIES,REDACTED PERSONAL DATA,"1,726.29",FOSTERING ALLOWANCES,PAYMENTS TO CARERS,REDACTED,REDACTED
02.06.2021,CHILDREN AND FAMILIES,REDACTED PERSONAL DATA,862,FOSTERING ALLOWANCES,PAYMENTS TO CARERS,REDACTED,REDACTED
02.06.2021,CHILDREN AND FAMILIES,REDACTED PERSONAL DATA,762,FOSTERING ALLOWANCES,PAYMENTS TO CARERS,REDACTED,REDACTED
02.06.2021,CHILDREN AND FAMILIES,REDACTED PERSONAL DATA,832,FOSTERING ALLOWANCES,PAYMENTS TO CARERS,REDACTED,REDACTED
02.06.2021,CHILDREN AND FAMILIES,REDACTED PERSONAL DATA,832,FOSTERING ALLOWANCES,PAYMENTS TO CARERS,REDACTED,REDACTED
02.06.2021,CHILDREN AND FAMILIES,REDACTED PERSONAL DATA,832,FOSTERING ALLOWANCES,PAYMENTS TO CARERS,REDACTED,REDACTED
02.06.2021,CHILDREN AND FAMILIES,REDACTED PERSONAL DATA,864,FOSTERING ALLOWANCES,PAYMENTS TO CARERS,REDACTED,REDACTED
02.06.2021,CHILDREN AND FAMILIES,REDACTED PERSONAL DATA,732,FOSTERING ALLOWANCES,PAYMENTS TO CARERS,REDACTED,REDACTED
02.06.2021,CHILDREN AND FAMILIES,REDACTED PERSONAL DATA,954,FOSTERING ALLOWANCES,PAYMENTS TO CARERS,REDACTED,REDACTED
02.06.2021,CHILDREN AND FAMILIES,REDACTED PERSONAL DATA,762,FOSTERING ALLOWANCES,PAYMENTS TO CARERS,REDACTED,REDACTED
02.06.2021,CHILDREN AND FAMILIES,REDACTED PERSONAL DATA,762,FOSTERING ALLOWANCES,PAYMENTS TO CARERS,REDACTED,REDACTED
02.06.2021,CHILDREN AND FAMILIES,REDACTED PERSONAL DATA,862,FOSTERING ALLOWANCES,PAYMENTS TO CARERS,REDACTED,REDACTED
02.06.2021,CHILDREN AND FAMILIES,REDACTED PERSONAL DATA,776.08,FOSTERING ALLOWANCES,PAYMENTS TO CARERS,REDACTED,REDACTED
02.06.2021,CHILDREN AND FAMILIES,REDACTED PERSONAL DATA,762,FOSTERING ALLOWANCES,PAYMENTS TO CARERS,REDACTED,REDACTED
02.06.2021,CHILDREN AND FAMILIES,REDACTED PERSONAL DATA,712,FOSTERING ALLOWANCES,PAYMENTS TO CARERS,REDACTED,REDACTED
02.06.2021,CHILDREN AND FAMILIES,REDACTED PERSONAL DATA,"1,632.00",FOSTERING ALLOWANCES,PAYMENTS TO CARERS,REDACTED,REDACTED
02.06.2021,CHILDREN AND FAMILIES,REDACTED PERSONAL DATA,862,FOSTERING ALLOWANCES,PAYMENTS TO CARERS,REDACTED,REDACTED
02.06.2021,CHILDREN AND FAMILIES,REDACTED PERSONAL DATA,832,FOSTERING ALLOWANCES,PAYMENTS TO CARERS,REDACTED,REDACTED
02.06.2021,CHILDREN AND FAMILIES,REDACTED PERSONAL DATA,862,FOSTERING ALLOWANCES,PAYMENTS TO CARERS,REDACTED,REDACTED
02.06.2021,CHILDREN AND FAMILIES,REDACTED PERSONAL DATA,862,FOSTERING ALLOWANCES,PAYMENTS TO CARERS,REDACTED,REDACTED
02.06.2021,CHILDREN AND FAMILIES,REDACTED PERSONAL DATA,864,FOSTERING ALLOWANCES,PAYMENTS TO CARERS,REDACTED,REDACTED
02.06.2021,CHILDREN AND FAMILIES,REDACTED PERSONAL DATA,"1,713.10",FOSTERING ALLOWANCES,PAYMENTS TO CARERS,REDACTED,REDACTED
02.06.2021,CHILDREN AND FAMILIES,REDACTED PERSONAL DATA,920,FOSTERING ALLOWANCES,PAYMENTS TO CARERS,REDACTED,REDACTED
02.06.2021,CHILDREN AND FAMILIES,REDACTED PERSONAL DATA,832,FOSTERING ALLOWANCES,PAYMENTS TO CARERS,REDACTED,REDACTED
02.06.2021,CHILDREN AND FAMILIES,REDACTED PERSONAL DATA,732,FOSTERING ALLOWANCES,PAYMENTS TO CARERS,REDACTED,REDACTED
02.06.2021,CHILDREN AND FAMILIES,REDACTED PERSONAL DATA,920,FOSTERING ALLOWANCES,PAYMENTS TO CARERS,REDACTED,REDACTED
02.06.2021,CHILDREN AND FAMILIES,REDACTED PERSONAL DATA,682,FOSTERING ALLOWANCES,PAYMENTS TO CARERS,REDACTED,REDACTED
02.06.2021,CHILDREN AND FAMILIES,REDACTED PERSONAL DATA,920,FOSTERING ALLOWANCES,PAYMENTS TO CARERS,REDACTED,REDACTED
02.06.2021,CHILDREN AND FAMILIES,REDACTED PERSONAL DATA,732,FOSTERING ALLOWANCES,PAYMENTS TO CARERS,REDACTED,REDACTED
02.06.2021,CHILDREN AND FAMILIES,REDACTED PERSONAL DATA,682,FOSTERING ALLOWANCES,PAYMENTS TO CARERS,REDACTED,REDACTED
02.06.2021,CHILDREN AND FAMILIES,REDACTED PERSONAL DATA,832,FOSTERING ALLOWANCES,PAYMENTS TO CARERS,REDACTED,REDACTED
02.06.2021,CHILDREN AND FAMILIES,REDACTED PERSONAL DATA,920,FOSTERING ALLOWANCES,PAYMENTS TO CARERS,REDACTED,REDACTED
02.06.2021,CHILDREN AND FAMILIES,REDACTED PERSONAL DATA,"1,632.00",FOSTERING ALLOWANCES,PAYMENTS TO CARERS,REDACTED,REDACTED
02.06.2021,CHILDREN AND FAMILIES,REDACTED PERSONAL DATA,750,FRIENDS &FAMILY FOST,ADDITIONAL PAYMENTS TO AGENCIES/CARERS,REDACTED,REDACTED
02.06.2021,CHILDREN AND FAMILIES,REDACTED PERSONAL DATA,912,FRIENDS &FAMILY FOST,PAYMENTS TO CARERS,REDACTED,REDACTED
02.06.2021,CHILDREN AND FAMILIES,REDACTED PERSONAL DATA,348,FRIENDS &FAMILY FOST,PAYMENTS TO CARERS,REDACTED,REDACTED
02.06.2021,CHILDREN AND FAMILIES,REDACTED PERSONAL DATA,476.08,FRIENDS &FAMILY FOST,PAYMENTS TO CARERS,REDACTED,REDACTED
02.06.2021,CHILDREN AND FAMILIES,REDACTED PERSONAL DATA,824,FRIENDS &FAMILY FOST,PAYMENTS TO CARERS,REDACTED,REDACTED
02.06.2021,CHILDREN AND FAMILIES,REDACTED PERSONAL DATA,832,FRIENDS &FAMILY FOST,PAYMENTS TO CARERS,REDACTED,REDACTED
02.06.2021,CHILDREN AND FAMILIES,REDACTED PERSONAL DATA,830,FRIENDS &FAMILY FOST,PAYMENTS TO CARERS,REDACTED,REDACTED
02.06.2021,CHILDREN AND FAMILIES,REDACTED PERSONAL DATA,716,FRIENDS &FAMILY FOST,PAYMENTS TO CARERS,REDACTED,REDACTED
02.06.2021,CHILDREN AND FAMILIES,REDACTED PERSONAL DATA,824,FRIENDS &FAMILY FOST,PAYMENTS TO CARERS,REDACTED,REDACTED
02.06.2021,CHILDREN AND FAMILIES,REDACTED PERSONAL DATA,824,FRIENDS &FAMILY FOST,PAYMENTS TO CARERS,REDACTED,REDACTED
02.06.2021,CHILDREN AND FAMILIES,REDACTED PERSONAL DATA,832,FRIENDS &FAMILY FOST,PAYMENTS TO CARERS,REDACTED,REDACTED
02.06.2021,CHILDREN AND FAMILIES,REDACTED PERSONAL DATA,716,FRIENDS &FAMILY FOST,PAYMENTS TO CARERS,REDACTED,REDACTED
02.06.2021,CHILDREN AND FAMILIES,REDACTED PERSONAL DATA,824,FRIENDS &FAMILY FOST,PAYMENTS TO CARERS,REDACTED,REDACTED
02.06.2021,CHILDREN AND FAMILIES,REDACTED PERSONAL DATA,862,FRIENDS &FAMILY FOST,PAYMENTS TO CARERS,REDACTED,REDACTED
02.06.2021,CHILDREN AND FAMILIES,REDACTED PERSONAL DATA,954,FRIENDS &FAMILY FOST,PAYMENTS TO CARERS,REDACTED,REDACTED
02.06.2021,CHILDREN AND FAMILIES,REDACTED PERSONAL DATA,732,FRIENDS &FAMILY FOST,PAYMENTS TO CARERS,REDACTED,REDACTED
02.06.2021,CHILDREN AND FAMILIES,REDACTED PERSONAL DATA,832,FRIENDS &FAMILY FOST,PAYMENTS TO CARERS,REDACTED,REDACTED
02.06.2021,CHILDREN AND FAMILIES,REDACTED PERSONAL DATA,394,FRIENDS &FAMILY FOST,PAYMENTS TO CARERS,REDACTED,REDACTED
02.06.2021,CHILDREN AND FAMILIES,REDACTED PERSONAL DATA,394,FRIENDS &FAMILY FOST,PAYMENTS TO CARERS,REDACTED,REDACTED
02.06.2021,CHILDREN AND FAMILIES,REDACTED PERSONAL DATA,920,FRIENDS &FAMILY FOST,PAYMENTS TO CARERS,REDACTED,REDACTED
02.06.2021,CHILDREN AND FAMILIES,REDACTED PERSONAL DATA,732,FRIENDS &FAMILY FOST,PAYMENTS TO CARERS,REDACTED,REDACTED
02.06.2021,CHILDREN AND FAMILIES,REDACTED PERSONAL DATA,832,FRIENDS &FAMILY FOST,PAYMENTS TO CARERS,REDACTED,REDACTED
02.06.2021,CHILDREN AND FAMILIES,REDACTED PERSONAL DATA,732,FRIENDS &FAMILY FOST,PAYMENTS TO CARERS,REDACTED,REDACTED
02.06.2021,CHILDREN AND FAMILIES,REDACTED PERSONAL DATA,796.29,FRIENDS &FAMILY FOST,PAYMENTS TO CARERS,REDACTED,REDACTED
02.06.2021,CHILDREN AND FAMILIES,REDACTED PERSONAL DATA,832,FRIENDS &FAMILY FOST,PAYMENTS TO CARERS,REDACTED,REDACTED
02.06.2021,CHILDREN AND FAMILIES,REDACTED PERSONAL DATA,666,FRIENDS &FAMILY FOST,PAYMENTS TO CARERS,REDACTED,REDACTED
02.06.2021,CHILDREN AND FAMILIES,REDACTED PERSONAL DATA,394,FRIENDS &FAMILY FOST,PAYMENTS TO CARERS,REDACTED,REDACTED
02.06.2021,CHILDREN AND FAMILIES,REDACTED PERSONAL DATA,830,FRIENDS &FAMILY FOST,PAYMENTS TO CARERS,REDACTED,REDACTED
02.06.2021,CHILDREN AND FAMILIES,REDACTED PERSONAL DATA,824,FRIENDS &FAMILY FOST,PAYMENTS TO CARERS,REDACTED,REDACTED
02.06.2021,CHILDREN AND FAMILIES,REDACTED PERSONAL DATA,462,FRIENDS &FAMILY FOST,PAYMENTS TO CARERS,REDACTED,REDACTED
02.06.2021,CHILDREN AND FAMILIES,REDACTED PERSONAL DATA,832,FRIENDS &FAMILY FOST,PAYMENTS TO CARERS,REDACTED,REDACTED
02.06.2021,CHILDREN AND FAMILIES,REDACTED PERSONAL DATA,832,FRIENDS &FAMILY FOST,PAYMENTS TO CARERS,REDACTED,REDACTED
02.06.2021,CHILDREN AND FAMILIES,REDACTED PERSONAL DATA,832,FRIENDS &FAMILY FOST,PAYMENTS TO CARERS,REDACTED,REDACTED
02.06.2021,CHILDREN AND FAMILIES,REDACTED PERSONAL DATA,682,FRIENDS &FAMILY FOST,PAYMENTS TO CARERS,REDACTED,REDACTED
02.06.2021,CHILDREN AND FAMILIES,REDACTED PERSONAL DATA,666,FRIENDS &FAMILY FOST,PAYMENTS TO CARERS,REDACTED,REDACTED
02.06.2021,CHILDREN AND FAMILIES,REDACTED PERSONAL DATA,832,FRIENDS &FAMILY FOST,PAYMENTS TO CARERS,REDACTED,REDACTED
02.06.2021,CHILDREN AND FAMILIES,REDACTED PERSONAL DATA,824,FRIENDS &FAMILY FOST,PAYMENTS TO CARERS,REDACTED,REDACTED
02.06.2021,CHILDREN AND FAMILIES,REDACTED PERSONAL DATA,832,FRIENDS &FAMILY FOST,PAYMENTS TO CARERS,REDACTED,REDACTED
02.06.2021,CHILDREN AND FAMILIES,REDACTED PERSONAL DATA,394,FRIENDS &FAMILY FOST,PAYMENTS TO CARERS,REDACTED,REDACTED
02.06.2021,CHILDREN AND FAMILIES,REDACTED PERSONAL DATA,418,FRIENDS &FAMILY FOST,PAYMENTS TO CARERS,REDACTED,REDACTED
02.06.2021,CHILDREN AND FAMILIES,REDACTED PERSONAL DATA,"1,461.43",FRIENDS &FAMILY FOST,PAYMENTS TO CARERS,REDACTED,REDACTED
02.06.2021,CHILDREN AND FAMILIES,REDACTED PERSONAL DATA,932,FRIENDS &FAMILY FOST,PAYMENTS TO CARERS,REDACTED,REDACTED
02.06.2021,CHILDREN AND FAMILIES,REDACTED PERSONAL DATA,682,FRIENDS &FAMILY FOST,PAYMENTS TO CARERS,REDACTED,REDACTED
02.06.2021,CHILDREN AND FAMILIES,REDACTED PERSONAL DATA,682,FRIENDS &FAMILY FOST,PAYMENTS TO CARERS,REDACTED,REDACTED
02.06.2021,CHILDREN AND FAMILIES,REDACTED PERSONAL DATA,348,FRIENDS &FAMILY FOST,PAYMENTS TO CARERS,REDACTED,REDACTED
02.06.2021,CHILDREN AND FAMILIES,REDACTED PERSONAL DATA,348,FRIENDS &FAMILY FOST,PAYMENTS TO CARERS,REDACTED,REDACTED
02.06.2021,CHILDREN AND FAMILIES,REDACTED PERSONAL DATA,394,FRIENDS &FAMILY FOST,PAYMENTS TO CARERS,REDACTED,REDACTED
02.06.2021,CHILDREN AND FAMILIES,REDACTED PERSONAL DATA,348,FRIENDS &FAMILY FOST,PAYMENTS TO CARERS,REDACTED,REDACTED
02.06.2021,CHILDREN AND FAMILIES,REDACTED PERSONAL DATA,832,FRIENDS &FAMILY FOST,PAYMENTS TO CARERS,REDACTED,REDACTED
02.06.2021,CHILDREN AND FAMILIES,REDACTED PERSONAL DATA,310,FRIENDS &FAMILY FOST,PAYMENTS TO CARERS,REDACTED,REDACTED
02.06.2021,CHILDREN AND FAMILIES,REDACTED PERSONAL DATA,394,FRIENDS &FAMILY FOST,PAYMENTS TO CARERS,REDACTED,REDACTED
02.06.2021,CHILDREN AND FAMILIES,REDACTED PERSONAL DATA,462,FRIENDS &FAMILY FOST,PAYMENTS TO CARERS,REDACTED,REDACTED
02.06.2021,CHILDREN AND FAMILIES,REDACTED PERSONAL DATA,310,FRIENDS &FAMILY FOST,PAYMENTS TO CARERS,REDACTED,REDACTED
02.06.2021,CHILDREN AND FAMILIES,REDACTED PERSONAL DATA,394,FRIENDS &FAMILY FOST,PAYMENTS TO CARERS,REDACTED,REDACTED
02.06.2021,CHILDREN AND FAMILIES,REDACTED PERSONAL DATA,394,FRIENDS &FAMILY FOST,PAYMENTS TO CARERS,REDACTED,REDACTED
02.06.2021,CHILDREN AND FAMILIES,OASIS PLACES LTD,"15,500.00",PARENT ASSESSMENTS,RESIDENTIAL CARE,5902471819,1000077696
02.06.2021,CHILDREN AND FAMILIES,REDACTED PERSONAL DATA,388.04,SPECIAL GUARDIANSHIP,PAYMENTS TO CARERS,REDACTED,REDACTED
02.06.2021,CHILDREN AND FAMILIES,REDACTED PERSONAL DATA,342.45,SPECIAL GUARDIANSHIP,PAYMENTS TO CARERS,REDACTED,REDACTED
02.06.2021,CHILDREN AND FAMILIES,REDACTED PERSONAL DATA,389.34,SPECIAL GUARDIANSHIP,PAYMENTS TO CARERS,REDACTED,REDACTED
02.06.2021,CHILDREN AND FAMILIES,REDACTED PERSONAL DATA,356.15,SPECIAL GUARDIANSHIP,PAYMENTS TO CARERS,REDACTED,REDACTED
02.06.2021,CHILDREN AND FAMILIES,REDACTED PERSONAL DATA,403.04,SPECIAL GUARDIANSHIP,PAYMENTS TO CARERS,REDACTED,REDACTED
02.06.2021,CHILDREN AND FAMILIES,REDACTED PERSONAL DATA,525,SPECIAL GUARDIANSHIP,PAYMENTS TO CARERS,REDACTED,REDACTED
02.06.2021,CHILDREN AND FAMILIES,REDACTED PERSONAL DATA,525,SPECIAL GUARDIANSHIP,PAYMENTS TO CARERS,REDACTED,REDACTED
02.06.2021,CHILDREN AND FAMILIES,REDACTED PERSONAL DATA,341.15,SPECIAL GUARDIANSHIP,PAYMENTS TO CARERS,REDACTED,REDACTED
02.06.2021,CHILDREN AND FAMILIES,REDACTED PERSONAL DATA,498.1,SPECIAL GUARDIANSHIP,PAYMENTS TO CARERS,REDACTED,REDACTED
02.06.2021,CHILDREN AND FAMILIES,REDACTED PERSONAL DATA,500,STAYPUT- FOST CARERS,PAYMENTS TO CARERS,REDACTED,REDACTED
02.06.2021,CHILDREN AND FAMILIES,REDACTED PERSONAL DATA,500,STAYPUT- FOST CARERS,PAYMENTS TO CARERS,REDACTED,REDACTED
02.06.2021,CHILDREN AND FAMILIES,REDACTED PERSONAL DATA,500,STAYPUT- FOST CARERS,PAYMENTS TO CARERS,REDACTED,REDACTED
02.06.2021,CHILDREN AND FAMILIES,REDACTED PERSONAL DATA,500,STAYPUT- FOST CARERS,PAYMENTS TO CARERS,REDACTED,REDACTED
02.06.2021,CHILDREN AND FAMILIES,REDACTED PERSONAL DATA,600,STAYPUT- FOST CARERS,PAYMENTS TO CARERS,REDACTED,REDACTED
02.06.2021,CHILDREN AND FAMILIES,REDACTED PERSONAL DATA,500,STAYPUT- FOST CARERS,PAYMENTS TO CARERS,REDACTED,REDACTED
02.06.2021,CHILDREN AND FAMILIES,REDACTED PERSONAL DATA,500,STAYPUT- FOST CARERS,PAYMENTS TO CARERS,REDACTED,REDACTED
02.06.2021,CHILDREN AND FAMILIES,REDACTED PERSONAL DATA,500,STAYPUT- FOST CARERS,PAYMENTS TO CARERS,REDACTED,REDACTED
02.06.2021,CHILDREN AND FAMILIES,REDACTED PERSONAL DATA,500,STAYPUT- FOST CARERS,PAYMENTS TO CARERS,REDACTED,REDACTED
02.06.2021,CHILDREN AND FAMILIES,REDACTED PERSONAL DATA,500,STAYPUT- FOST CARERS,PAYMENTS TO CARERS,REDACTED,REDACTED
02.06.2021,CHILDREN AND FAMILIES,REDACTED PERSONAL DATA,500,STAYPUT- FOST CARERS,PAYMENTS TO CARERS,REDACTED,REDACTED
02.06.2021,CHILDREN AND FAMILIES,REDACTED PERSONAL DATA,500,STAYPUT- FOST CARERS,PAYMENTS TO CARERS,REDACTED,REDACTED
02.06.2021,CHILDREN AND FAMILIES,REDACTED PERSONAL DATA,500,STAYPUT- FOST CARERS,PAYMENTS TO CARERS,REDACTED,REDACTED
02.06.2021,CHILDREN AND FAMILIES,REDACTED PERSONAL DATA,500,STAYPUT- FOST CARERS,PAYMENTS TO CARERS,REDACTED,REDACTED
02.06.2021,CHILDREN AND FAMILIES,REDACTED PERSONAL DATA,500,STAYPUT- FOST CARERS,PAYMENTS TO CARERS,REDACTED,REDACTED
02.06.2021,CHILDREN AND FAMILIES,REDACTED PERSONAL DATA,500,STAYPUT- FOST CARERS,PAYMENTS TO CARERS,REDACTED,REDACTED
02.06.2021,CHILDREN AND FAMILIES,REDACTED PERSONAL DATA,852,STAYPUT- FOST CARERS,PAYMENTS TO CARERS,REDACTED,REDACTED
02.06.2021,CHILDREN AND FAMILIES,REDACTED PERSONAL DATA,500,STAYPUT- FOST CARERS,PAYMENTS TO CARERS,REDACTED,REDACTED
02.06.2021,CHILDREN AND FAMILIES,REDACTED PERSONAL DATA,500,STAYPUT- FOST CARERS,PAYMENTS TO CARERS,REDACTED,REDACTED
02.06.2021,CHILDREN AND FAMILIES,REDACTED PERSONAL DATA,500,STAYPUT- FOST CARERS,PAYMENTS TO CARERS,REDACTED,REDACTED
02.06.2021,CHILDREN AND FAMILIES,REDACTED PERSONAL DATA,500,STAYPUT- FOST CARERS,PAYMENTS TO CARERS,REDACTED,REDACTED
02.06.2021,CHILDREN AND FAMILIES,REDACTED PERSONAL DATA,500,STAYPUT- FOST CARERS,PAYMENTS TO CARERS,REDACTED,REDACTED
02.06.2021,CHILDREN AND FAMILIES,REDACTED PERSONAL DATA,500,STAYPUT- FOST CARERS,PAYMENTS TO CARERS,REDACTED,REDACTED
02.06.2021,CHILDREN AND FAMILIES,REDACTED PERSONAL DATA,265.4,STAYPUT- FOST CARERS,PAYMENTS TO CARERS,REDACTED,REDACTED
02.06.2021,CHILDREN AND FAMILIES,REDACTED PERSONAL DATA,500,STAYPUT- FOST CARERS,PAYMENTS TO CARERS,REDACTED,REDACTED
02.06.2021,CHILDREN AND FAMILIES,REDACTED PERSONAL DATA,500,STAYPUT- FOST CARERS,PAYMENTS TO CARERS,REDACTED,REDACTED
02.06.2021,CHILDREN AND FAMILIES,REDACTED PERSONAL DATA,832,STAYPUT- FOST CARERS,PAYMENTS TO CARERS,REDACTED,REDACTED
02.06.2021,CHILDREN AND FAMILIES,REDACTED PERSONAL DATA,784,STAYPUT- FOST CARERS,PAYMENTS TO CARERS,REDACTED,REDACTED
02.06.2021,CHILDREN AND FAMILIES,REDACTED PERSONAL DATA,600,STAYPUT- FOST CARERS,PAYMENTS TO CARERS,REDACTED,REDACTED
02.06.2021,CHILDREN AND FAMILIES,REDACTED PERSONAL DATA,500,STAYPUT- FOST CARERS,PAYMENTS TO CARERS,REDACTED,REDACTED
02.06.2021,CHILDREN AND FAMILIES,REDACTED PERSONAL DATA,500,STAYPUT- FOST CARERS,PAYMENTS TO CARERS,REDACTED,REDACTED
02.06.2021,CHILDREN AND FAMILIES,REDACTED PERSONAL DATA,500,STAYPUT- FOST CARERS,PAYMENTS TO CARERS,REDACTED,REDACTED
02.06.2021,CHILDREN AND FAMILIES,REDACTED PERSONAL DATA,700,STAYPUT- FOST CARERS,PAYMENTS TO CARERS,REDACTED,REDACTED
02.06.2021,CHILDREN AND FAMILIES,REDACTED PERSONAL DATA,600,STAYPUT- FOST CARERS,PAYMENTS TO CARERS,REDACTED,REDACTED
02.06.2021,CHILDREN AND FAMILIES,REDACTED PERSONAL DATA,450,UASC CARELEAVERS,OTHER PAYMENTS FOR CLIENTS,REDACTED,REDACTED
02.06.2021,COMMISSIONING & CENTRAL,POSTURITE (UK) LTD,627.77,"QUALITY, PERFORMANCE AND TRANSFORMATION",EXTERNAL AGENCIES AND BODIES,5902471646,11015468
02.06.2021,CUSTOMER EXPERIENCE HGF,CITYGLEN LTD,255,NIGHTLY TA (NSC),EXTERNAL AGENCIES AND BODIES,5902471826,1000026239
02.06.2021,CUSTOMER EXPERIENCE HGF,RENT CONNECT HOUSING LTD,"15,178.50",NIGHTLY TA (NSC),EXTERNAL AGENCIES AND BODIES,5902471702,1000074815
02.06.2021,CUSTOMER EXPERIENCE HGF,DMS PROPERTIES SERVICES LTD,"26,671.50",NIGHTLY TA (NSC),EXTERNAL AGENCIES AND BODIES,5902471844,1000081522
02.06.2021,EDUCATION,ARK SCHOOLS T/A GLOBE ACADEMY,"2,660.00",FREE FRUIT,SCHOOLS CAPITATION,2103271877,1000060008
02.06.2021,EDUCATION,DULWICH HAMLET JUNIOR SCHOOL,"4,275.00",FREE FRUIT,SCHOOLS CAPITATION,2103271873,1000066949
02.06.2021,EDUCATION,GOOSE GREEN PRIMARY AND NURSERY SCHOOL,"2,387.00",FREE FRUIT,SCHOOLS CAPITATION,2103271871,1000070613
02.06.2021,EDUCATION,ANGEL OAK ACADEMY,"2,802.00",FREE FRUIT,SCHOOLS CAPITATION,2103271869,1000075379
02.06.2021,EDUCATION,HARRIS PRIMARY ACADEMY EAST DULWICH,"2,625.00",FREE FRUIT,SCHOOLS CAPITATION,2103271868,1000080271
02.06.2021,EDUCATION,REDRIFF PRIMARY SCHOOL,"3,480.00",FREE FRUIT,SCHOOLS CAPITATION,2103271874,1000067877
02.06.2021,EDUCATION,HARRIS PRIMARY ACADEMY PECKHAM PARK,"2,007.00",FREE FRUIT,SCHOOLS CAPITATION,2103271875,1000068029
02.06.2021,EDUCATION,HARRIS PRIMARY FREE SCHOOL PECKHAM,"2,055.00",FREE FRUIT,SCHOOLS CAPITATION,2103271866,1000071084
02.06.2021,EDUCATION,JUDITH KERR PRIMARY SCHOOL,"2,114.00",FREE FRUIT,SCHOOLS CAPITATION,2103271867,1000073200
02.06.2021,EDUCATION,JOHN DONNE PRIMARY SCHOOL,"2,589.00",FREE FRUIT,SCHOOLS CAPITATION,2103271872,1000073253
02.06.2021,EDUCATION,GALLEYWALL PRIMARY SCHOOL,"1,390.00",FREE FRUIT,SCHOOLS CAPITATION,2103271879,1000078128
02.06.2021,EDUCATION,THE BELHAM PRIMARY SCHOOL,"2,720.00",FREE FRUIT,SCHOOLS CAPITATION,2103271870,1000080044
02.06.2021,EDUCATION,ST PAULS C OF E PRIMARY SCHOOL,"1,556.00",FREE FRUIT,SCHOOLS CAPITATION,2103271878,1000082314
02.06.2021,EDUCATION,SURREY SQUARE PRIMARY SCHOOL,"2,791.00",FREE FRUIT,SCHOOLS CAPITATION,2103271876,1000082648
02.06.2021,EDUCATION,CHARLES DICKENS PRIMARY SCHOOL,"2,838.00",FREE FRUIT,SCHOOLS CAPITATION,2103271880,1000085158
02.06.2021,EDUCATION,ALBION PRIMARY SCHOOL,"2,672.00",FREE FRUIT,SCHOOLS CAPITATION,2103271882,5001000000
02.06.2021,EDUCATION,ALFRED SALTER PRIMARY SCHOOL,"2,517.00",FREE FRUIT,SCHOOLS CAPITATION,2103271910,5001000005
02.06.2021,EDUCATION,BELLENDEN PRIMARY SCHOOL,"1,401.00",FREE FRUIT,SCHOOLS CAPITATION,2103271883,5001000007
02.06.2021,EDUCATION,BEORMUND PRIMARY SCHOOL,356,FREE FRUIT,SCHOOLS CAPITATION,2103271939,5001000008
02.06.2021,EDUCATION,BESSEMER GRANGE PRIMARY SCHOOL,"3,717.00",FREE FRUIT,SCHOOLS CAPITATION,2103271912,5001000009
02.06.2021,EDUCATION,BOUCHER C OF E PRIMARY SCHOOL,"1,366.00",FREE FRUIT,SCHOOLS CAPITATION,2103271914,5001000011
02.06.2021,EDUCATION,BRUNSWICK PARK PRIMARY SCHOOL,"2,625.00",FREE FRUIT,SCHOOLS CAPITATION,2103271913,5001000013
02.06.2021,EDUCATION,CAMELOT PRIMARY SCHOOL,"2,446.00",FREE FRUIT,SCHOOLS CAPITATION,2103271884,5001000014
02.06.2021,EDUCATION,CHARLOTTE  SHARMAN PRIMARY SCHOOL,"1,200.00",FREE FRUIT,SCHOOLS CAPITATION,2103271937,5001000016
02.06.2021,EDUCATION,ST JOSEPHS RC JUNIOR  SCHOOL,"2,648.00",FREE FRUIT,SCHOOLS CAPITATION,2103271935,5001000017
02.06.2021,EDUCATION,ST JUDES CHURCH OF ENGLAND PRIMARY,641,FREE FRUIT,SCHOOLS CAPITATION,2103271926,5001000019
02.06.2021,EDUCATION,CHERRY GARDEN SCHOOL,440,FREE FRUIT,SCHOOLS CAPITATION,2103271940,5001000020
02.06.2021,EDUCATION,COBOURG PRIMARY SCHOOL,"2,245.00",FREE FRUIT,SCHOOLS CAPITATION,2103271885,5001000021
02.06.2021,EDUCATION,COMBER GROVE PRIMARY SCHOOL,"1,556.00",FREE FRUIT,SCHOOLS CAPITATION,2103271886,5001000022
02.06.2021,EDUCATION,CRAMPTON PRIMARY SCHOOL,"1,390.00",FREE FRUIT,SCHOOLS CAPITATION,2103271887,5001000023
02.06.2021,EDUCATION,CRAWFORD PRIMARY SCHOOL,"3,195.00",FREE FRUIT,SCHOOLS CAPITATION,2103271888,5001000024
02.06.2021,EDUCATION,DOG KENNEL HILL PRIMARY SCHOOL,"2,304.00",FREE FRUIT,SCHOOLS CAPITATION,2103271889,5001000025
02.06.2021,EDUCATION,GOODRICH PRIMARY SCHOOL,"3,717.00",FREE FRUIT,SCHOOLS CAPITATION,2103271890,5001000028
02.06.2021,EDUCATION,GRANGE PRIMARY SCHOOL,"2,316.00",FREE FRUIT,SCHOOLS CAPITATION,2103271891,5001000029
02.06.2021,EDUCATION,ENGLISH MARTYRS RC PRIMARY SCHOOL,"2,031.00",FREE FRUIT,SCHOOLS CAPITATION,2103271915,5001000030
02.06.2021,EDUCATION,PHOENIX PRIMARY SCHOOL,"3,919.00",FREE FRUIT,SCHOOLS CAPITATION,2103271908,5001000032
02.06.2021,EDUCATION,FRIARS PRIMARY (FOUNDATION) SCHOOL,"1,128.00",FREE FRUIT,SCHOOLS CAPITATION,2103271936,5001000033
02.06.2021,EDUCATION,HEBER PRIMARY SCHOOL,"2,280.00",FREE FRUIT,SCHOOLS CAPITATION,2103271892,5001000035
02.06.2021,EDUCATION,HOLLYDALE PRIMARY SCHOOL,"1,282.00",FREE FRUIT,SCHOOLS CAPITATION,2103271893,5001000036
02.06.2021,EDUCATION,ILDERTON PRIMARY SCHOOL,"2,161.00",FREE FRUIT,SCHOOLS CAPITATION,2103271894,5001000037
02.06.2021,EDUCATION,IVYDALE PRIMARY SCHOOL,"3,123.00",FREE FRUIT,SCHOOLS CAPITATION,2103271895,5001000038
02.06.2021,EDUCATION,JOHN RUSKIN PRIMARY SCHOOL,"2,850.00",FREE FRUIT,SCHOOLS CAPITATION,2103271896,5001000040
02.06.2021,EDUCATION,KEYWORTH PRIMARY SCHOOL,"2,209.00",FREE FRUIT,SCHOOLS CAPITATION,2103271897,5001000041
02.06.2021,EDUCATION,DULWICH WOOD PRIMARY SCHOOL,"1,971.00",FREE FRUIT,SCHOOLS CAPITATION,2103271898,5001000042
02.06.2021,EDUCATION,HAYMERLE SCHOOL,487,FREE FRUIT,SCHOOLS CAPITATION,2103271938,5001000045
02.06.2021,EDUCATION,MICHAEL FARADAY PRIMARY SCHOOL,"2,696.00",FREE FRUIT,SCHOOLS CAPITATION,2103271899,5001000048
02.06.2021,EDUCATION,OLIVER GOLDSMITH PRIMARY SCHOOL,"2,494.00",FREE FRUIT,SCHOOLS CAPITATION,2103271911,5001000051
02.06.2021,EDUCATION,PETER HILLS CE SCHOOL,"1,092.00",FREE FRUIT,SCHOOLS CAPITATION,2103271928,5001000053
02.06.2021,EDUCATION,PILGRIM'S WAY PRIMARY SCHOOL,"1,318.00",FREE FRUIT,SCHOOLS CAPITATION,2103271909,5001000054
02.06.2021,EDUCATION,RIVERSIDE PRIMARY SCHOOL,"1,971.00",FREE FRUIT,SCHOOLS CAPITATION,2103271900,5001000056
02.06.2021,EDUCATION,ROBERT BROWNING PRIMARY SCHOOL,"1,354.00",FREE FRUIT,SCHOOLS CAPITATION,2103271901,5001000057
02.06.2021,EDUCATION,ROTHERHITHE PRIMARY SCHOOL,"2,612.00",FREE FRUIT,SCHOOLS CAPITATION,2103271902,5001000058
02.06.2021,EDUCATION,RYE OAK PRIMARY SCHOOL,"1,852.00",FREE FRUIT,SCHOOLS CAPITATION,2103271932,5001000059
02.06.2021,EDUCATION,SNOWSFIELDS PRIMARY SCHOOL,"1,318.00",FREE FRUIT,SCHOOLS CAPITATION,2103271903,5001000061
02.06.2021,EDUCATION,SOUTHWARK PARK PRIMARY SCHOOL,"2,612.00",FREE FRUIT,SCHOOLS CAPITATION,2103271904,5001000062
02.06.2021,EDUCATION,ST ANTHONYS RC SCHOOL,"2,553.00",FREE FRUIT,SCHOOLS CAPITATION,2103271934,5001000064
02.06.2021,EDUCATION,ST FRANCESCA CABRINI PRIMARY SCHOOL,"1,805.00",FREE FRUIT,SCHOOLS CAPITATION,2103271933,5001000065
02.06.2021,EDUCATION,ST FRANCIS'S RC PRIMARY SCHOOL,"2,565.00",FREE FRUIT,SCHOOLS CAPITATION,2103271917,5001000067
02.06.2021,EDUCATION,ST GEORGES RC SCHOOL,"1,425.00",FREE FRUIT,SCHOOLS CAPITATION,2103271919,5001000068
02.06.2021,EDUCATION,ST GEORGES CE SCHOOL,"1,021.00",FREE FRUIT,SCHOOLS CAPITATION,2103271918,5001000069
02.06.2021,EDUCATION,ST JAMES CE SCHOOL,"3,301.00",FREE FRUIT,SCHOOLS CAPITATION,2103271920,5001000070
02.06.2021,EDUCATION,ST JAMES THE GREAT RC SCHOOL,"1,330.00",FREE FRUIT,SCHOOLS CAPITATION,2103271916,5001000071
02.06.2021,EDUCATION,ST JOHNS WALWORTH CE SCHOOL,"1,187.00",FREE FRUIT,SCHOOLS CAPITATION,2103271922,5001000072
02.06.2021,EDUCATION,ST JOHNS & ST CLEMENTS CE SCHOOL,"2,482.00",FREE FRUIT,SCHOOLS CAPITATION,2103271921,5001000073
02.06.2021,EDUCATION,ST JOHNS RC PRIMARY SCHOOL,"1,342.00",FREE FRUIT,SCHOOLS CAPITATION,2103271931,5001000075
02.06.2021,EDUCATION,ST JOSEPHS CATHOLIC SCHOOL,"1,330.00",FREE FRUIT,SCHOOLS CAPITATION,2103271925,5001000076
02.06.2021,EDUCATION,ST JOSEPHS RC PRIMARY SCHOOL,"2,078.00",FREE FRUIT,SCHOOLS CAPITATION,2103271923,5001000077
02.06.2021,EDUCATION,ST JOSEPHS CATHOLIC PRIMARY SCHOOL,"1,354.00",FREE FRUIT,SCHOOLS CAPITATION,2103271924,5001000078
02.06.2021,EDUCATION,ST MARY MAGDALENE CE SCHOOL,"1,187.00",FREE FRUIT,SCHOOLS CAPITATION,2103271927,5001000080
02.06.2021,EDUCATION,ST PETERS CE SCHOOL,"1,247.00",FREE FRUIT,SCHOOLS CAPITATION,2103271929,5001000083
02.06.2021,EDUCATION,CATHEDRAL SCHOOL OF ST SAVIOUR & MARY,"1,354.00",FREE FRUIT,SCHOOLS CAPITATION,2103271930,5001000088
02.06.2021,EDUCATION,TOWER BRIDGE PRIMARY SCHOOL,"1,152.00",FREE FRUIT,SCHOOLS CAPITATION,2103271905,5001000095
02.06.2021,EDUCATION,TOWNSEND PRIMARY SCHOOL,"1,152.00",FREE FRUIT,SCHOOLS CAPITATION,2103271906,5001000096
02.06.2021,EDUCATION,VICTORY SCHOOL,867,FREE FRUIT,SCHOOLS CAPITATION,2103271907,5001000098
02.06.2021,EDUCATION,ARK SCHOOLS T/A GLOBE ACADEMY,"12,485.00",FREE HEALTHY SCHOOL MEALS,SCHOOLS CAPITATION,2103271073,1000060008
02.06.2021,EDUCATION,DULWICH HAMLET JUNIOR SCHOOL,"43,621.00",FREE HEALTHY SCHOOL MEALS,SCHOOLS CAPITATION,2103271069,1000066949
02.06.2021,EDUCATION,GOOSE GREEN PRIMARY AND NURSERY SCHOOL,"16,696.00",FREE HEALTHY SCHOOL MEALS,SCHOOLS CAPITATION,2103271067,1000070613
02.06.2021,EDUCATION,ANGEL OAK ACADEMY,"13,688.00",FREE HEALTHY SCHOOL MEALS,SCHOOLS CAPITATION,2103271065,1000075379
02.06.2021,EDUCATION,HARRIS PRIMARY ACADEMY EAST DULWICH,"23,014.00",FREE HEALTHY SCHOOL MEALS,SCHOOLS CAPITATION,2103271064,1000080271
02.06.2021,EDUCATION,SPA EDUCATION TRUST,"1,203.00",FREE HEALTHY SCHOOL MEALS,SCHOOLS CAPITATION,2103271077,1000081600
02.06.2021,EDUCATION,REDRIFF PRIMARY SCHOOL,"33,092.00",FREE HEALTHY SCHOOL MEALS,SCHOOLS CAPITATION,2103271070,1000067877
02.06.2021,EDUCATION,HARRIS PRIMARY ACADEMY PECKHAM PARK,"10,379.00",FREE HEALTHY SCHOOL MEALS,SCHOOLS CAPITATION,2103271071,1000068029
02.06.2021,EDUCATION,HARRIS PRIMARY FREE SCHOOL PECKHAM,"13,086.00",FREE HEALTHY SCHOOL MEALS,SCHOOLS CAPITATION,2103271062,1000071084
02.06.2021,EDUCATION,JUDITH KERR PRIMARY SCHOOL,"21,810.00",FREE HEALTHY SCHOOL MEALS,SCHOOLS CAPITATION,2103271063,1000073200
02.06.2021,EDUCATION,JOHN DONNE PRIMARY SCHOOL,"16,546.00",FREE HEALTHY SCHOOL MEALS,SCHOOLS CAPITATION,2103271068,1000073253
02.06.2021,EDUCATION,GALLEYWALL PRIMARY SCHOOL,"7,521.00",FREE HEALTHY SCHOOL MEALS,SCHOOLS CAPITATION,2103271075,1000078128
02.06.2021,EDUCATION,THE BELHAM PRIMARY SCHOOL,"27,075.00",FREE HEALTHY SCHOOL MEALS,SCHOOLS CAPITATION,2103271066,1000080044
02.06.2021,EDUCATION,ST PAULS C OF E PRIMARY SCHOOL,"4,813.00",FREE HEALTHY SCHOOL MEALS,SCHOOLS CAPITATION,2103271074,1000082314
02.06.2021,EDUCATION,SURREY SQUARE PRIMARY SCHOOL,"13,537.00",FREE HEALTHY SCHOOL MEALS,SCHOOLS CAPITATION,2103271072,1000082648
02.06.2021,EDUCATION,CHARLES DICKENS PRIMARY SCHOOL,"20,607.00",FREE HEALTHY SCHOOL MEALS,SCHOOLS CAPITATION,2103271076,1000085158
02.06.2021,EDUCATION,ALBION PRIMARY SCHOOL,"16,546.00",FREE HEALTHY SCHOOL MEALS,SCHOOLS CAPITATION,2103271078,5001000000
02.06.2021,EDUCATION,ALFRED SALTER PRIMARY SCHOOL,"18,050.00",FREE HEALTHY SCHOOL MEALS,SCHOOLS CAPITATION,2103271106,5001000005
02.06.2021,EDUCATION,BELLENDEN PRIMARY SCHOOL,"8,273.00",FREE HEALTHY SCHOOL MEALS,SCHOOLS CAPITATION,2103271079,5001000007
02.06.2021,EDUCATION,BESSEMER GRANGE PRIMARY SCHOOL,"37,153.00",FREE HEALTHY SCHOOL MEALS,SCHOOLS CAPITATION,2103271108,5001000009
02.06.2021,EDUCATION,BOUCHER C OF E PRIMARY SCHOOL,"10,980.00",FREE HEALTHY SCHOOL MEALS,SCHOOLS CAPITATION,2103271110,5001000011
02.06.2021,EDUCATION,BRUNSWICK PARK PRIMARY SCHOOL,"14,590.00",FREE HEALTHY SCHOOL MEALS,SCHOOLS CAPITATION,2103271109,5001000013
02.06.2021,EDUCATION,CAMELOT PRIMARY SCHOOL,"14,590.00",FREE HEALTHY SCHOOL MEALS,SCHOOLS CAPITATION,2103271080,5001000014
02.06.2021,EDUCATION,CHARLOTTE  SHARMAN PRIMARY SCHOOL,"9,025.00",FREE HEALTHY SCHOOL MEALS,SCHOOLS CAPITATION,2103271133,5001000016
02.06.2021,EDUCATION,ST JOSEPHS RC JUNIOR  SCHOOL,"21,359.00",FREE HEALTHY SCHOOL MEALS,SCHOOLS CAPITATION,2103271131,5001000017
02.06.2021,EDUCATION,ST JUDES CHURCH OF ENGLAND PRIMARY,"4,212.00",FREE HEALTHY SCHOOL MEALS,SCHOOLS CAPITATION,2103271122,5001000019
02.06.2021,EDUCATION,CHERRY GARDEN SCHOOL,"1,955.00",FREE HEALTHY SCHOOL MEALS,SCHOOLS CAPITATION,2103271135,5001000020
02.06.2021,EDUCATION,COBOURG PRIMARY SCHOOL,"16,546.00",FREE HEALTHY SCHOOL MEALS,SCHOOLS CAPITATION,2103271081,5001000021
02.06.2021,EDUCATION,COMBER GROVE PRIMARY SCHOOL,"10,078.00",FREE HEALTHY SCHOOL MEALS,SCHOOLS CAPITATION,2103271082,5001000022
02.06.2021,EDUCATION,CRAMPTON PRIMARY SCHOOL,"10,980.00",FREE HEALTHY SCHOOL MEALS,SCHOOLS CAPITATION,2103271083,5001000023
02.06.2021,EDUCATION,CRAWFORD PRIMARY SCHOOL,"19,404.00",FREE HEALTHY SCHOOL MEALS,SCHOOLS CAPITATION,2103271084,5001000024
02.06.2021,EDUCATION,DOG KENNEL HILL PRIMARY SCHOOL,"19,253.00",FREE HEALTHY SCHOOL MEALS,SCHOOLS CAPITATION,2103271085,5001000025
02.06.2021,EDUCATION,GOODRICH PRIMARY SCHOOL,"-4,841.00",FREE HEALTHY SCHOOL MEALS,SCHOOLS CAPITATION,2103271000,5001000028
02.06.2021,EDUCATION,GOODRICH PRIMARY SCHOOL,"33,392.00",FREE HEALTHY SCHOOL MEALS,SCHOOLS CAPITATION,2103271086,5001000028
02.06.2021,EDUCATION,GRANGE PRIMARY SCHOOL,"12,033.00",FREE HEALTHY SCHOOL MEALS,SCHOOLS CAPITATION,2103271087,5001000029
02.06.2021,EDUCATION,ENGLISH MARTYRS RC PRIMARY SCHOOL,"15,493.00",FREE HEALTHY SCHOOL MEALS,SCHOOLS CAPITATION,2103271111,5001000030
02.06.2021,EDUCATION,PHOENIX PRIMARY SCHOOL,"27,977.00",FREE HEALTHY SCHOOL MEALS,SCHOOLS CAPITATION,2103271104,5001000032
02.06.2021,EDUCATION,FRIARS PRIMARY (FOUNDATION) SCHOOL,"7,370.00",FREE HEALTHY SCHOOL MEALS,SCHOOLS CAPITATION,2103271132,5001000033
02.06.2021,EDUCATION,HEBER PRIMARY SCHOOL,"21,209.00",FREE HEALTHY SCHOOL MEALS,SCHOOLS CAPITATION,2103271088,5001000035
02.06.2021,EDUCATION,HOLLYDALE PRIMARY SCHOOL,"10,228.00",FREE HEALTHY SCHOOL MEALS,SCHOOLS CAPITATION,2103271089,5001000036
02.06.2021,EDUCATION,ILDERTON PRIMARY SCHOOL,"13,989.00",FREE HEALTHY SCHOOL MEALS,SCHOOLS CAPITATION,2103271090,5001000037
02.06.2021,EDUCATION,IVYDALE PRIMARY SCHOOL,"30,234.00",FREE HEALTHY SCHOOL MEALS,SCHOOLS CAPITATION,2103271091,5001000038
02.06.2021,EDUCATION,JOHN RUSKIN PRIMARY SCHOOL,"16,095.00",FREE HEALTHY SCHOOL MEALS,SCHOOLS CAPITATION,2103271092,5001000040
02.06.2021,EDUCATION,KEYWORTH PRIMARY SCHOOL,"12,184.00",FREE HEALTHY SCHOOL MEALS,SCHOOLS CAPITATION,2103271093,5001000041
02.06.2021,EDUCATION,DULWICH WOOD PRIMARY SCHOOL,"15,643.00",FREE HEALTHY SCHOOL MEALS,SCHOOLS CAPITATION,2103271094,5001000042
02.06.2021,EDUCATION,HAYMERLE SCHOOL,"2,256.00",FREE HEALTHY SCHOOL MEALS,SCHOOLS CAPITATION,2103271134,5001000045
02.06.2021,EDUCATION,MICHAEL FARADAY PRIMARY SCHOOL,"19,705.00",FREE HEALTHY SCHOOL MEALS,SCHOOLS CAPITATION,2103271095,5001000048
02.06.2021,EDUCATION,OLIVER GOLDSMITH PRIMARY SCHOOL,"13,537.00",FREE HEALTHY SCHOOL MEALS,SCHOOLS CAPITATION,2103271107,5001000051
02.06.2021,EDUCATION,PETER HILLS CE SCHOOL,"6,468.00",FREE HEALTHY SCHOOL MEALS,SCHOOLS CAPITATION,2103271124,5001000053
02.06.2021,EDUCATION,PILGRIM'S WAY PRIMARY SCHOOL,"7,370.00",FREE HEALTHY SCHOOL MEALS,SCHOOLS CAPITATION,2103271105,5001000054
02.06.2021,EDUCATION,RIVERSIDE PRIMARY SCHOOL,"13,237.00",FREE HEALTHY SCHOOL MEALS,SCHOOLS CAPITATION,2103271096,5001000056
02.06.2021,EDUCATION,ROBERT BROWNING PRIMARY SCHOOL,"8,273.00",FREE HEALTHY SCHOOL MEALS,SCHOOLS CAPITATION,2103271097,5001000057
02.06.2021,EDUCATION,ROTHERHITHE PRIMARY SCHOOL,"14,741.00",FREE HEALTHY SCHOOL MEALS,SCHOOLS CAPITATION,2103271098,5001000058
02.06.2021,EDUCATION,RYE OAK PRIMARY SCHOOL,"11,131.00",FREE HEALTHY SCHOOL MEALS,SCHOOLS CAPITATION,2103271128,5001000059
02.06.2021,EDUCATION,SNOWSFIELDS PRIMARY SCHOOL,"8,574.00",FREE HEALTHY SCHOOL MEALS,SCHOOLS CAPITATION,2103271099,5001000061
02.06.2021,EDUCATION,SOUTHWARK PARK PRIMARY SCHOOL,"20,457.00",FREE HEALTHY SCHOOL MEALS,SCHOOLS CAPITATION,2103271100,5001000062
02.06.2021,EDUCATION,ST ANTHONYS RC SCHOOL,"24,518.00",FREE HEALTHY SCHOOL MEALS,SCHOOLS CAPITATION,2103271130,5001000064
02.06.2021,EDUCATION,ST FRANCESCA CABRINI PRIMARY SCHOOL,"14,590.00",FREE HEALTHY SCHOOL MEALS,SCHOOLS CAPITATION,2103271129,5001000065
02.06.2021,EDUCATION,ST FRANCIS'S RC PRIMARY SCHOOL,"19,404.00",FREE HEALTHY SCHOOL MEALS,SCHOOLS CAPITATION,2103271113,5001000067
02.06.2021,EDUCATION,ST GEORGES RC SCHOOL,"13,387.00",FREE HEALTHY SCHOOL MEALS,SCHOOLS CAPITATION,2103271115,5001000068
02.06.2021,EDUCATION,ST GEORGES CE SCHOOL,"6,167.00",FREE HEALTHY SCHOOL MEALS,SCHOOLS CAPITATION,2103271114,5001000069
02.06.2021,EDUCATION,ST JAMES CE SCHOOL,"13,086.00",FREE HEALTHY SCHOOL MEALS,SCHOOLS CAPITATION,2103271116,5001000070
02.06.2021,EDUCATION,ST JAMES THE GREAT RC SCHOOL,"8,423.00",FREE HEALTHY SCHOOL MEALS,SCHOOLS CAPITATION,2103271112,5001000071
02.06.2021,EDUCATION,ST JOHNS WALWORTH CE SCHOOL,"7,671.00",FREE HEALTHY SCHOOL MEALS,SCHOOLS CAPITATION,2103271118,5001000072
02.06.2021,EDUCATION,ST JOHNS & ST CLEMENTS CE SCHOOL,"22,111.00",FREE HEALTHY SCHOOL MEALS,SCHOOLS CAPITATION,2103271117,5001000073
02.06.2021,EDUCATION,ST JOHNS RC PRIMARY SCHOOL,"9,175.00",FREE HEALTHY SCHOOL MEALS,SCHOOLS CAPITATION,2103271127,5001000075
02.06.2021,EDUCATION,ST JOSEPHS CATHOLIC SCHOOL,"7,822.00",FREE HEALTHY SCHOOL MEALS,SCHOOLS CAPITATION,2103271121,5001000076
02.06.2021,EDUCATION,ST JOSEPHS RC PRIMARY SCHOOL,"17,448.00",FREE HEALTHY SCHOOL MEALS,SCHOOLS CAPITATION,2103271119,5001000077
02.06.2021,EDUCATION,ST JOSEPHS CATHOLIC PRIMARY SCHOOL,"10,529.00",FREE HEALTHY SCHOOL MEALS,SCHOOLS CAPITATION,2103271120,5001000078
02.06.2021,EDUCATION,ST MARY MAGDALENE CE SCHOOL,"7,972.00",FREE HEALTHY SCHOOL MEALS,SCHOOLS CAPITATION,2103271123,5001000080
02.06.2021,EDUCATION,ST PETERS CE SCHOOL,"7,370.00",FREE HEALTHY SCHOOL MEALS,SCHOOLS CAPITATION,2103271125,5001000083
02.06.2021,EDUCATION,CATHEDRAL SCHOOL OF ST SAVIOUR & MARY,"13,237.00",FREE HEALTHY SCHOOL MEALS,SCHOOLS CAPITATION,2103271126,5001000088
02.06.2021,EDUCATION,TOWER BRIDGE PRIMARY SCHOOL,"4,663.00",FREE HEALTHY SCHOOL MEALS,SCHOOLS CAPITATION,2103271101,5001000095
02.06.2021,EDUCATION,TOWNSEND PRIMARY SCHOOL,"7,521.00",FREE HEALTHY SCHOOL MEALS,SCHOOLS CAPITATION,2103271102,5001000096
02.06.2021,EDUCATION,VICTORY SCHOOL,"6,167.00",FREE HEALTHY SCHOOL MEALS,SCHOOLS CAPITATION,2103271103,5001000098
02.06.2021,ENVIRONMENT AND LEISURE,WYEVALE NURSERIES LTD,285,CAPITAL PS (LEISURE),CONSTRUCTION FEES,5902471751,1000086362
02.06.2021,ENVIRONMENT AND LEISURE,WYEVALE NURSERIES LTD,630,CAPITAL PS (LEISURE),CONSTRUCTION FEES,5902471752,1000086362
02.06.2021,ENVIRONMENT AND LEISURE,WYEVALE NURSERIES LTD,"11,456.15",CAPITAL PS (LEISURE),CONSTRUCTION FEES,5902471752,1000086362
02.06.2021,ENVIRONMENT AND LEISURE,LAND USE CONSULTANTS LTD,"1,900.00",CAPITAL PS (LEISURE),CONSTRUCTION FEES  - EXTERNAL,5902471719,11132526
02.06.2021,ENVIRONMENT AND LEISURE,WIFI SPARK LTD,"6,146.63",CAPITAL PS (REGEN),ICT ACQUISITION,5902471877,1000069461
02.06.2021,ENVIRONMENT AND LEISURE,RELIANCE HIGH-TECH LTD,"1,731.95",SERVICE DEVELOPMENT TEAM,OFFICE EXPENSES,5902471770,1000079374
02.06.2021,ENVIRONMENT DIRECTORATE,LONDON TOOLS LIMITED,376.5,BUSINESS CORE,STATIONERY,5902471689,1000003017
02.06.2021,ENVIRONMENT DIRECTORATE,SIGNSCAPE SYSTEMS LTD,"1,013.55",ENGINEERING CRAFTS,MATERIALS,5902471789,1000052408
02.06.2021,ENVIRONMENT DIRECTORATE,LONDON TOOLS LIMITED,596.25,FLEET SERVICES MANAGEMENT,MATERIALS,5902471682,1000003017
02.06.2021,ENVIRONMENT DIRECTORATE,LONDON TOOLS LIMITED,596.25,FLEET SERVICES MANAGEMENT,MATERIALS,5902471684,1000003017
02.06.2021,ENVIRONMENT DIRECTORATE,LONDON TOOLS LIMITED,315,GROUNDS (CENTRAL),MATERIALS,5902471602,1000003017
02.06.2021,ENVIRONMENT DIRECTORATE,LONDON TOOLS LIMITED,489.5,PARKS TECH UNIT (PREMISES),BUILDING R&M,5902471621,1000003017
02.06.2021,ENVIRONMENT DIRECTORATE,LONDON TOOLS LIMITED,520,PEST CONTROL,MATERIALS,5902471686,1000003017
02.06.2021,ENVIRONMENT DIRECTORATE,LONDON TOOLS LIMITED,305.15,PUBLIC LIGHTING,MATERIALS,5902471634,1000003017
02.06.2021,ENVIRONMENT DIRECTORATE,TOFCO CPP LTD,"1,071.30",PUBLIC LIGHTING,MATERIALS,5902471791,1000084062
02.06.2021,F & C S EXCLUDING CORPORATE BUDGETS,BSI ASSURANCE UK LIMITED,"1,448.00",ADMINISTRATIVE SUPPORT,EQUIPMENT PURCHASE & REPAIR,5902471755,1000001195
02.06.2021,F & C S EXCLUDING CORPORATE BUDGETS,BDO LLP,"22,005.00",INTERNAL AUDIT CONTRACTS,PAYMENTS FOR FINANCIAL SERVICES,5902471619,1000057898
02.06.2021,F & C S EXCLUDING CORPORATE BUDGETS,REDACTED PERSONAL DATA,500,SESS,OTHER PAYMENTS FOR CLIENTS,REDACTED,REDACTED
02.06.2021,F & C S EXCLUDING CORPORATE BUDGETS,REDACTED PERSONAL DATA,500,SESS,OTHER PAYMENTS FOR CLIENTS,REDACTED,REDACTED
02.06.2021,F & C S EXCLUDING CORPORATE BUDGETS,REDACTED PERSONAL DATA,500,SESS,OTHER PAYMENTS FOR CLIENTS,REDACTED,REDACTED
02.06.2021,HOUSING,LIFTEC LIFTS LTD,"79,585.20",PAYMENTS CONTROL ACCOUNT - LIFTEC,I-WORLD CONTRACTORS HOLDING ACCOUNT,5902471599,1000057278
02.06.2021,HOUSING,OCO LIMITED,"138,474.17",PAYMENTS CONTROL ACCOUNT - OCO,I-WORLD CONTRACTORS HOLDING ACCOUNT,5902471709,1006066
02.06.2021,HOUSING,SMITH & BYFORD LTD,"113,765.58",SMITH AND BYFORD,I-WORLD CONTRACTORS HOLDING ACCOUNT,5902471710,11212119
02.06.2021,HOUSING GENERAL FUND,INTERSERVE (FACILITIES MANAGEMENT),641.09,CAPITAL PS (REGEN),CONSTRUCTION MAIN CONTRACT,2103271941,3000000166
02.06.2021,HOUSING GENERAL FUND,INTERSERVE (FACILITIES MANAGEMENT),"3,176.20",CAPITAL PS (REGEN),CONSTRUCTION MAIN CONTRACT,2103271941,3000000166
02.06.2021,HOUSING GENERAL FUND,INTERSERVE (FACILITIES MANAGEMENT),"3,180.00",CAPITAL PS (REGEN),CONSTRUCTION MAIN CONTRACT,2103271941,3000000166
02.06.2021,HOUSING GENERAL FUND,INTERSERVE (FACILITIES MANAGEMENT),"4,633.35",CAPITAL PS (REGEN),CONSTRUCTION MAIN CONTRACT,2103271941,3000000166
02.06.2021,HOUSING GENERAL FUND,INTERSERVE (FACILITIES MANAGEMENT),"9,741.23",CAPITAL PS (REGEN),CONSTRUCTION MAIN CONTRACT,2103271941,3000000166
02.06.2021,HOUSING GENERAL FUND,INTERSERVE (FACILITIES MANAGEMENT),"19,336.67",CAPITAL PS (REGEN),CONSTRUCTION MAIN CONTRACT,2103271941,3000000166
02.06.2021,HOUSING GENERAL FUND,INTERSERVE (FACILITIES MANAGEMENT),"28,725.68",CAPITAL PS (REGEN),CONSTRUCTION MAIN CONTRACT,2103271941,3000000166
02.06.2021,HOUSING GENERAL FUND,INTERSERVE (FACILITIES MANAGEMENT),"32,236.45",CAPITAL PS (REGEN),CONSTRUCTION MAIN CONTRACT,2103271941,3000000166
02.06.2021,HOUSING GENERAL FUND,INTERSERVE (FACILITIES MANAGEMENT),"48,614.63",CAPITAL PS (REGEN),CONSTRUCTION MAIN CONTRACT,2103271941,3000000166
02.06.2021,HOUSING GENERAL FUND,INTERSERVE (FACILITIES MANAGEMENT),"65,175.00",CAPITAL PS (REGEN),CONSTRUCTION MAIN CONTRACT,2103271941,3000000166
02.06.2021,HOUSING GENERAL FUND,INTERSERVE (FACILITIES MANAGEMENT),"91,924.43",CAPITAL PS (REGEN),CONSTRUCTION MAIN CONTRACT,2103271941,3000000166
02.06.2021,HOUSING HRA,ASPEN BUILD (EAST ANGLIA) LTD,"319,073.62",CAPITAL PS (HRA),CONSTRUCTION MAIN CONTRACT -CERTIFICATED,2103271942,3000002075
02.06.2021,HOUSING HRA,TROWERS & HAMLINS LLP,690.5,CAPITAL PS (REGEN),CONSTRUCTION FEES - LEGAL,5902471727,1000016239
02.06.2021,HOUSING HRA,TROWERS & HAMLINS LLP,865.5,CAPITAL PS (REGEN),CONSTRUCTION FEES - LEGAL,5902471742,1000016239
02.06.2021,HOUSING HRA,TROWERS & HAMLINS LLP,"1,559.00",CAPITAL PS (REGEN),CONSTRUCTION FEES - LEGAL,5902471748,1000016239
02.06.2021,HOUSING HRA,TROWERS & HAMLINS LLP,"2,209.50",CAPITAL PS (REGEN),CONSTRUCTION FEES - LEGAL,5902471730,1000016239
02.06.2021,LEISURE DIRECTORATE,CASTLE WATER LTD,"1,897.73",DULWICH AREA TEAM,WATER,5902471672,1000078867
02.06.2021,LEISURE DIRECTORATE,YOUTH FUTURES,"5,400.50",GRANTS COMMISSIONING,GRANTS,5902471891,1000068524
02.06.2021,LEISURE DIRECTORATE,TECHNICAL SURFACES,375,SOUTHWARK AREA TEAM,OTHER R&M,5902471767,1000011451
02.06.2021,LEISURE DIRECTORATE,TECHNICAL SURFACES,460,SOUTHWARK AREA TEAM,OTHER R&M,5902471776,1000011451
02.06.2021,MODERNISATION HGF,PLANET TRAINING LIMITED,550,CORPORATE TRAINING BUDGETS,TRAINING,5902471816,1000064733
02.06.2021,SBS OPERATIONS,LONDON TOOLS LIMITED,540,SBS IN-HOUR EMERGENCIES,MATERIALS,5902471695,1000003017
02.06.2021,SBS OPERATIONS,LONDON TOOLS LIMITED,750,SBS IN-HOUR EMERGENCIES,MATERIALS,5902471694,1000003017
02.06.2021,SOUTHWARK BUILDING SERVICES,CALLOW MASTER LOCKSMITHS,275,STORES/LOGISTICS,CREDITORS -GR/IR CLEARING ACCOUNT,5902471775,11179552
02.06.2021,SOUTHWARK BUILDING SERVICES,CALLOW MASTER LOCKSMITHS,362.3,STORES/LOGISTICS,CREDITORS -GR/IR CLEARING ACCOUNT,5902471781,11179552
02.06.2021,SOUTHWARK BUILDING SERVICES,CALLOW MASTER LOCKSMITHS,507.22,STORES/LOGISTICS,CREDITORS -GR/IR CLEARING ACCOUNT,5902471757,11179552
02.06.2021,SOUTHWARK BUILDING SERVICES,CALLOW MASTER LOCKSMITHS,517.5,STORES/LOGISTICS,CREDITORS -GR/IR CLEARING ACCOUNT,5902471778,11179552
02.06.2021,SOUTHWARK BUILDING SERVICES,CALLOW MASTER LOCKSMITHS,713.9,STORES/LOGISTICS,CREDITORS -GR/IR CLEARING ACCOUNT,5902471759,11179552
02.06.2021,SOUTHWARK BUILDING SERVICES,CALLOW MASTER LOCKSMITHS,785.29,STORES/LOGISTICS,CREDITORS -GR/IR CLEARING ACCOUNT,5902471781,11179552
02.06.2021,SOUTHWARK BUILDING SERVICES,CALLOW MASTER LOCKSMITHS,856.68,STORES/LOGISTICS,CREDITORS -GR/IR CLEARING ACCOUNT,5902471778,11179552
02.06.2021,SOUTHWARK BUILDING SERVICES,CALLOW MASTER LOCKSMITHS,"3,053.25",STORES/LOGISTICS,CREDITORS -GR/IR CLEARING ACCOUNT,5902471759,11179552
02.06.2021,SOUTHWARK BUILDING SERVICES,LONDON TOOLS LIMITED,324,STORES/LOGISTICS,CREDITORS -GR/IR CLEARING ACCOUNT,5902471633,1000003017
02.06.2021,SOUTHWARK BUILDING SERVICES,LONDON TOOLS LIMITED,331.2,STORES/LOGISTICS,CREDITORS -GR/IR CLEARING ACCOUNT,5902471633,1000003017
02.06.2021,SOUTHWARK BUILDING SERVICES,LONDON TOOLS LIMITED,772.75,STORES/LOGISTICS,CREDITORS -GR/IR CLEARING ACCOUNT,5902471633,1000003017
02.06.2021,SOUTHWARK BUILDING SERVICES,LONDON TOOLS LIMITED,"7,650.00",STORES/LOGISTICS,CREDITORS -GR/IR CLEARING ACCOUNT,5902471604,1000003017
03.06.2021,ADULT SOCIAL CARE,MISSION CARE,"6,584.44",DIR OF ASC,EXTERNAL AGENCIES AND BODIES,5902471419,11059369
03.06.2021,ADULT SOCIAL CARE,ANCHOR TRUST,"13,024.78",DIR OF ASC,EXTERNAL AGENCIES AND BODIES,5902471336,11257534
03.06.2021,ADULT SOCIAL CARE,ANCHOR TRUST,"13,024.78",DIR OF ASC,EXTERNAL AGENCIES AND BODIES,5902471336,11257534
03.06.2021,ADULT SOCIAL CARE,ANCHOR TRUST,"17,366.37",DIR OF ASC,EXTERNAL AGENCIES AND BODIES,5902471336,11257534
03.06.2021,ADULT SOCIAL CARE,ANCHOR TRUST,"17,366.37",DIR OF ASC,EXTERNAL AGENCIES AND BODIES,5902471336,11257534
03.06.2021,ADULT SOCIAL CARE,ANCHOR TRUST,"47,577.88",DIR OF ASC,EXTERNAL AGENCIES AND BODIES,5902471335,11257534
03.06.2021,ADULT SOCIAL CARE,SWK DISABLEMENT ASSN,"8,274.75",DIR OF ASC,EXTERNAL AGENCIES AND BODIES,5902471829,1000011698
03.06.2021,ADULT SOCIAL CARE,SWK DISABLEMENT ASSN,"9,235.61",DIR OF ASC,EXTERNAL AGENCIES AND BODIES,5902471786,1000011698
03.06.2021,ADULT SOCIAL CARE,THREE CS,"1,486.81",DIR OF ASC,EXTERNAL AGENCIES AND BODIES,5902471415,1000033865
03.06.2021,ADULT SOCIAL CARE,LEONARD CHESHIRE DISABILITY,"4,460.43",DIR OF ASC,EXTERNAL AGENCIES AND BODIES,5902471333,1000065128
03.06.2021,ADULT SOCIAL CARE,LEONARD CHESHIRE DISABILITY,"5,698.34",DIR OF ASC,EXTERNAL AGENCIES AND BODIES,5902471333,1000065128
03.06.2021,ADULT SOCIAL CARE,NPOWER LTD,"1,165.91",FRED FRANCIS CENTRE,ELECTRICITY,5902471922,1000078994
03.06.2021,ADULT SOCIAL CARE,BEDE HOUSE ASSOCIATION,260,LD LTS 18-64,DAYCARE,2103272075,1553877
03.06.2021,ADULT SOCIAL CARE,BEDE HOUSE ASSOCIATION,260,LD LTS 18-64,DAYCARE,2103272089,1553877
03.06.2021,ADULT SOCIAL CARE,BEDE HOUSE ASSOCIATION,280,LD LTS 18-64,DAYCARE,2103272094,1553877
03.06.2021,ADULT SOCIAL CARE,BEDE HOUSE ASSOCIATION,372,LD LTS 18-64,DAYCARE,2103272085,1553877
03.06.2021,ADULT SOCIAL CARE,BEDE HOUSE ASSOCIATION,492,LD LTS 18-64,DAYCARE,2103272068,1553877
03.06.2021,ADULT SOCIAL CARE,BEDE HOUSE ASSOCIATION,497,LD LTS 18-64,DAYCARE,2103272088,1553877
03.06.2021,ADULT SOCIAL CARE,BEDE HOUSE ASSOCIATION,520,LD LTS 18-64,DAYCARE,2103272064,1553877
03.06.2021,ADULT SOCIAL CARE,BEDE HOUSE ASSOCIATION,520,LD LTS 18-64,DAYCARE,2103272069,1553877
03.06.2021,ADULT SOCIAL CARE,BEDE HOUSE ASSOCIATION,520,LD LTS 18-64,DAYCARE,2103272073,1553877
03.06.2021,ADULT SOCIAL CARE,BEDE HOUSE ASSOCIATION,520,LD LTS 18-64,DAYCARE,2103272081,1553877
03.06.2021,ADULT SOCIAL CARE,BEDE HOUSE ASSOCIATION,520,LD LTS 18-64,DAYCARE,2103272082,1553877
03.06.2021,ADULT SOCIAL CARE,BEDE HOUSE ASSOCIATION,520,LD LTS 18-64,DAYCARE,2103272092,1553877
03.06.2021,ADULT SOCIAL CARE,BEDE HOUSE ASSOCIATION,680,LD LTS 18-64,DAYCARE,2103272093,1553877
03.06.2021,ADULT SOCIAL CARE,BEDE HOUSE ASSOCIATION,688,LD LTS 18-64,DAYCARE,2103272080,1553877
03.06.2021,ADULT SOCIAL CARE,BEDE HOUSE ASSOCIATION,956,LD LTS 18-64,DAYCARE,2103272074,1553877
03.06.2021,ADULT SOCIAL CARE,BEDE HOUSE ASSOCIATION,"1,000.00",LD LTS 18-64,DAYCARE,2103272063,1553877
03.06.2021,ADULT SOCIAL CARE,BEDE HOUSE ASSOCIATION,"1,020.00",LD LTS 18-64,DAYCARE,2103272076,1553877
03.06.2021,ADULT SOCIAL CARE,BEDE HOUSE ASSOCIATION,"1,040.00",LD LTS 18-64,DAYCARE,2103272062,1553877
03.06.2021,ADULT SOCIAL CARE,BEDE HOUSE ASSOCIATION,"1,040.00",LD LTS 18-64,DAYCARE,2103272067,1553877
03.06.2021,ADULT SOCIAL CARE,BEDE HOUSE ASSOCIATION,"1,040.00",LD LTS 18-64,DAYCARE,2103272079,1553877
03.06.2021,ADULT SOCIAL CARE,BEDE HOUSE ASSOCIATION,"1,040.00",LD LTS 18-64,DAYCARE,2103272087,1553877
03.06.2021,ADULT SOCIAL CARE,BEDE HOUSE ASSOCIATION,"1,040.00",LD LTS 18-64,DAYCARE,2103272091,1553877
03.06.2021,ADULT SOCIAL CARE,BEDE HOUSE ASSOCIATION,"1,250.00",LD LTS 18-64,DAYCARE,2103272066,1553877
03.06.2021,ADULT SOCIAL CARE,BEDE HOUSE ASSOCIATION,"1,490.00",LD LTS 18-64,DAYCARE,2103272077,1553877
03.06.2021,ADULT SOCIAL CARE,BEDE HOUSE ASSOCIATION,"2,920.00",LD LTS 18-64,DAYCARE,2103272090,1553877
03.06.2021,ADULT SOCIAL CARE,BEDE HOUSE ASSOCIATION,568,LD LTS 18-64,SUPPORTED LIVING,2103272095,1553877
03.06.2021,ADULT SOCIAL CARE,CONTACT PROFESSIONALS,"1,064.00",LD LTS 18-64,SUPPORTED LIVING,2103272051,1000057263
03.06.2021,ADULT SOCIAL CARE,CONTACT PROFESSIONALS,"1,064.00",LD LTS 18-64,SUPPORTED LIVING,2103272052,1000057263
03.06.2021,ADULT SOCIAL CARE,CONTACT PROFESSIONALS,"1,064.00",LD LTS 18-64,SUPPORTED LIVING,2103272053,1000057263
03.06.2021,ADULT SOCIAL CARE,CONTACT PROFESSIONALS,"1,064.00",LD LTS 18-64,SUPPORTED LIVING,2103272054,1000057263
03.06.2021,ADULT SOCIAL CARE,CONTACT PROFESSIONALS,"1,064.00",LD LTS 18-64,SUPPORTED LIVING,2103272055,1000057263
03.06.2021,ADULT SOCIAL CARE,CONTACT PROFESSIONALS,"1,064.00",LD LTS 18-64,SUPPORTED LIVING,2103272056,1000057263
03.06.2021,ADULT SOCIAL CARE,BEDE HOUSE ASSOCIATION,280,MH LTS 18-64,DAYCARE,2103272084,1553877
03.06.2021,ADULT SOCIAL CARE,BEDE HOUSE ASSOCIATION,"1,168.00",SOCIAL ISOLATION,DAYCARE,2103272078,1553877
03.06.2021,ASSET MANAGEMENT,ONSITE SUPPORT LTD,"1,790.00",ENG CONTRACTS,MATERIALS,5902471920,1000043198
03.06.2021,ASSET MANAGEMENT,ONSITE SUPPORT LTD,"1,790.00",ENG CONTRACTS,MATERIALS,5902471920,1000043198
03.06.2021,ASSET MANAGEMENT,LONDON FIRE BRIGADE,352,ENG CONTRACTS (NORTH),LIFTS,5902472060,1000083629
03.06.2021,ASSET MANAGEMENT,LONDON FIRE BRIGADE,352,ENG CONTRACTS (NORTH),LIFTS,5902472064,1000083629
03.06.2021,ASSET MANAGEMENT,LONDON FIRE BRIGADE,352,ENG CONTRACTS (NORTH),LIFTS,5902472066,1000083629
03.06.2021,ASSET MANAGEMENT,LONDON FIRE BRIGADE,352,ENG CONTRACTS (NORTH),LIFTS,5902472068,1000083629
03.06.2021,ASSET MANAGEMENT,RELIANCE HIGH-TECH LTD,743,REPAIRS OPERATIONS,OFFICE EXPENSES,5902472046,1000079374
03.06.2021,CENTRAL FUNCTIONS,PURCELL ARCHITECTURE LTD,730,COMMERCIAL PROPERTIES,PROFESSIONAL FEES,5902471292,1000082955
03.06.2021,CHIEF EXECUTIVE,CURRIE & BROWN UK LTD,"6,035.00",CAPITAL PS (REGEN),CONSTRUCTION,5902471170,1000033455
03.06.2021,CHIEF EXECUTIVE,CURRIE & BROWN UK LTD,"8,333.00",CAPITAL PS (REGEN),CONSTRUCTION,5902471168,1000033455
03.06.2021,CHILDREN AND ADULT,FARRANS CONSTRUCTION,"524,419.10",CAPITAL PS (EDUCATION),CONSTRUCTION MAIN CONTRACT -CERTIFICATED,2103271949,3000002159
03.06.2021,CHILDREN AND FAMILIES,REDACTED PERSONAL DATA,284.4,ADOPTION SUPP FUND,PROFESSIONAL FEES,REDACTED,REDACTED
03.06.2021,CHILDREN AND FAMILIES,REDACTED PERSONAL DATA,285,ADOPTION SUPP FUND,PROFESSIONAL FEES,REDACTED,REDACTED
03.06.2021,CHILDREN AND FAMILIES,REDACTED PERSONAL DATA,285,ADOPTION SUPP FUND,PROFESSIONAL FEES,REDACTED,REDACTED
03.06.2021,CHILDREN AND FAMILIES,REDACTED PERSONAL DATA,380,ADOPTION SUPP FUND,PROFESSIONAL FEES,REDACTED,REDACTED
03.06.2021,CHILDREN AND FAMILIES,REDACTED PERSONAL DATA,380,ADOPTION SUPP FUND,PROFESSIONAL FEES,REDACTED,REDACTED
03.06.2021,CHILDREN AND FAMILIES,REDACTED PERSONAL DATA,490,ADOPTION SUPP FUND,PROFESSIONAL FEES,REDACTED,REDACTED
03.06.2021,CHILDREN AND FAMILIES,INTERPRETING DIRECT CO (UK) LTD,"4,089.90",CENTRAL SUPPORT,TRANSLATION SERVICES,5902471963,1000070133
03.06.2021,CHILDREN AND FAMILIES,CARE O LINE,326.25,EDGE OF CARE DECIS�S,SECTION 17 PAYMENTS TO AGENCIES/CARERS,2103272101,11241743
03.06.2021,CHILDREN AND FAMILIES,CARE O LINE,326.25,EDGE OF CARE DECIS�S,SECTION 17 PAYMENTS TO AGENCIES/CARERS,2103272102,11241743
03.06.2021,CHILDREN AND FAMILIES,MAVERICK ARTISTS LTD,666.67,FAMILY GROUP CONF�S,PROFESSIONAL FEES,5902472022,1000080368
03.06.2021,CHILDREN AND FAMILIES,REDACTED PERSONAL DATA,"1,602.86",FOSTERING ALLOWANCES,OTHER PAYMENTS FOR CLIENTS,REDACTED,REDACTED
03.06.2021,CHILDREN AND FAMILIES,SWIIS FOSTER CARE LTD,784,FRIENDS & FAMILY FOSTERING,EXTERNAL AGENCIES AND BODIES,2103270697,1000069633
03.06.2021,CHILDREN AND FAMILIES,SWIIS FOSTER CARE LTD,784,FRIENDS & FAMILY FOSTERING,EXTERNAL AGENCIES AND BODIES,2103270714,1000069633
03.06.2021,CHILDREN AND FAMILIES,SWIIS FOSTER CARE LTD,784,FRIENDS & FAMILY FOSTERING,EXTERNAL AGENCIES AND BODIES,2103270735,1000069633
03.06.2021,CHILDREN AND FAMILIES,SWIIS FOSTER CARE LTD,784,FRIENDS & FAMILY FOSTERING,EXTERNAL AGENCIES AND BODIES,2103270736,1000069633
03.06.2021,CHILDREN AND FAMILIES,FAMILY FOSTERING LTD,"1,114.26",FRIENDS & FAMILY FOSTERING,EXTERNAL AGENCIES AND BODIES,2103272113,1000075179
03.06.2021,CHILDREN AND FAMILIES,REDACTED PERSONAL DATA,"1,000.00",LEAVING CARE GRANT,OTHER PAYMENTS FOR CLIENTS,REDACTED,REDACTED
03.06.2021,CHILDREN AND FAMILIES,REDACTED PERSONAL DATA,320,P & R CARE TEAM,OTHER PAYMENTS FOR CLIENTS,REDACTED,REDACTED
03.06.2021,CHILDREN AND FAMILIES,HM PRISON & PROBATION SERVICE,963,REMAND - YDA YOI,RESIDENTIAL CARE,5902471982,1000083827
03.06.2021,CHILDREN AND FAMILIES,HM PRISON & PROBATION SERVICE,"3,210.00",REMAND - YDA YOI,RESIDENTIAL CARE,5902471985,1000083827
03.06.2021,CHILDREN AND FAMILIES,HM PRISON & PROBATION SERVICE,"6,099.00",REMAND - YDA YOI,RESIDENTIAL CARE,5902471981,1000083827
03.06.2021,CHILDREN AND FAMILIES,HM PRISON & PROBATION SERVICE,"9,630.00",REMAND - YDA YOI,RESIDENTIAL CARE,5902471983,1000083827
03.06.2021,CHILDREN AND FAMILIES,HM PRISON & PROBATION SERVICE,"9,951.00",REMAND - YDA YOI,RESIDENTIAL CARE,5902471984,1000083827
03.06.2021,CHILDREN AND FAMILIES,HM PRISON & PROBATION SERVICE,"9,951.00",REMAND - YDA YOI,RESIDENTIAL CARE,5902471986,1000083827
03.06.2021,CHILDREN AND FAMILIES,LOOK AHEAD CARE AND SUPPORT LTD,"1,076.52",SEMI-IND CARELEAVERS,EXTERNAL AGENCIES AND BODIES,2103272105,1000047299
03.06.2021,CHILDREN AND FAMILIES,PURPLE PEBBLES(CHILD CARE) SERVICES,"2,228.57",SEMI-IND CARELEAVERS,EXTERNAL AGENCIES AND BODIES,2103272109,1000070705
03.06.2021,CHILDREN AND FAMILIES,SILVER BIRCH CARE LTD,"1,375.00",SEMI-IND CARELEAVERS,EXTERNAL AGENCIES AND BODIES,2103272112,1000076525
03.06.2021,CHILDREN AND FAMILIES,SILVER BIRCH CARE LTD,"3,875.00",SEMI-IND CARELEAVERS,EXTERNAL AGENCIES AND BODIES,2103272106,1000076525
03.06.2021,CHILDREN AND FAMILIES,ELLIOT LEIGH TLC LTD,"1,924.20",SEMI-IND CARELEAVERS,EXTERNAL AGENCIES AND BODIES,2103272111,1000079022
03.06.2021,CHILDREN AND FAMILIES,SYDNEY CARE LTD,"5,314.28",SEMI-IND CARELEAVERS,EXTERNAL AGENCIES AND BODIES,2103272104,1000081598
03.06.2021,CHILDREN AND FAMILIES,TRANSFORMING LIVES COMPANY LTD,"3,619.20",SEMI-IND CARELEAVERS,EXTERNAL AGENCIES AND BODIES,2103272103,1000083352
03.06.2021,CHILDREN AND FAMILIES,SILVER BIRCH CARE LTD,"3,875.00",SEMI-IND LAC 16-17,EXTERNAL AGENCIES AND BODIES,2103272122,1000076525
03.06.2021,CHILDREN AND FAMILIES,SILVER BIRCH CARE LTD,"17,714.29",SEMI-IND LAC 16-17,EXTERNAL AGENCIES AND BODIES,2103272121,1000076525
03.06.2021,CHILDREN AND FAMILIES,SYDNEY CARE LTD,"7,612.71",SEMI-IND LAC 16-17,EXTERNAL AGENCIES AND BODIES,2103272123,1000081598
03.06.2021,CHILDREN AND FAMILIES,TRANSFORMING LIVES COMPANY LTD,"4,149.35",SEMI-IND LAC 16-17,EXTERNAL AGENCIES AND BODIES,2103272116,1000083352
03.06.2021,CHILDREN AND FAMILIES,SILVER BIRCH CARE LTD,287.86,SEMI-IND LAC 16-17,OTHER PAYMENTS FOR CLIENTS,2103272120,1000076525
03.06.2021,CHILDREN AND FAMILIES,SYDNEY CARE LTD,310,SEMI-IND LAC 16-17,OTHER PAYMENTS FOR CLIENTS,2103272124,1000081598
03.06.2021,CHILDREN AND FAMILIES,TRANSFORMING LIVES COMPANY LTD,310,SEMI-IND LAC 16-17,OTHER PAYMENTS FOR CLIENTS,2103272118,1000083352
03.06.2021,CHILDREN AND FAMILIES,FORESIGHT CLINICAL SERVICES LTD,359.1,SFS MGMT & SUPPORT,LEGAL FEES & COURT COSTS,2103270922,1000061649
03.06.2021,CHILDREN AND FAMILIES,FORESIGHT CLINICAL SERVICES LTD,405,SFS MGMT & SUPPORT,LEGAL FEES & COURT COSTS,2103270920,1000061649
03.06.2021,CHILDREN AND FAMILIES,CARE O LINE,983.75,TEAM B,OTHER PAYMENTS FOR CLIENTS,2103272097,11241743
03.06.2021,CHILDREN AND FAMILIES,ALPHABETS NURSERY,757,TEAM B,OTHER PAYMENTS FOR CLIENTS,5902471997,1000086801
03.06.2021,CHILDREN AND FAMILIES,CARE O LINE,-262.5,TEAM D,OTHER PAYMENTS FOR CLIENTS,2103272099,11241743
03.06.2021,CHILDREN AND FAMILIES,LOOK AHEAD CARE AND SUPPORT LTD,"2,207.51",UASC CARELEAVERS,EXTERNAL AGENCIES AND BODIES,2103272110,1000047299
03.06.2021,CHILDREN AND FAMILIES,OWNLIFE LTD,"2,790.00",UASC CARELEAVERS,EXTERNAL AGENCIES AND BODIES,2103272115,1000056219
03.06.2021,COMMUNITIES,WILSON SOLICITORS LLP,260,NO RECOURSE TO PUBLIC FUNDS,LEGAL FEES & COURT COSTS,5902471508,1000084191
03.06.2021,COMMUNITIES,WILSON SOLICITORS LLP,375,NO RECOURSE TO PUBLIC FUNDS,LEGAL FEES & COURT COSTS,5902471443,1000084191
03.06.2021,COMMUNITIES,WILSON SOLICITORS LLP,395,NO RECOURSE TO PUBLIC FUNDS,LEGAL FEES & COURT COSTS,5902471512,1000084191
03.06.2021,COMMUNITIES,WILSON SOLICITORS LLP,420,NO RECOURSE TO PUBLIC FUNDS,LEGAL FEES & COURT COSTS,5902471537,1000084191
03.06.2021,COMMUNITIES,WILSON SOLICITORS LLP,"1,770.00",NO RECOURSE TO PUBLIC FUNDS,LEGAL FEES & COURT COSTS,5902471510,1000084191
03.06.2021,CUSTOMER EXPERIENCE HGF,PROFESSOR  S AL-SARRAJ,"2,500.00",CORONER'S,PROFESSIONAL FEES,5902472093,1000043051
03.06.2021,CUSTOMER EXPERIENCE HGF,SG PATH LTD,415.8,CORONER'S,PROFESSIONAL FEES,5902472077,1000077883
03.06.2021,CUSTOMER EXPERIENCE HGF,FRESHVIEW ESTATES LTD,"1,235.82",HOMELESS PROJECTS,GRANTS,5902472049,1000081189
03.06.2021,CUSTOMER EXPERIENCE HGF,FRESHVIEW ESTATES LTD,"1,587.96",HOMELESS PROJECTS,GRANTS,5902472050,1000081189
03.06.2021,CUSTOMER EXPERIENCE HGF,NOWMEDICAL LTD,"3,253.00",HOUSING OPTIONS,PROFESSIONAL FEES,5902472020,1000068185
03.06.2021,CUSTOMER EXPERIENCE HGF,NATIONWIDE ACCOMMODATION,"8,898.84",NIGHTLY TA (NSC),EXTERNAL AGENCIES AND BODIES,5902471979,1000076112
03.06.2021,CUSTOMER EXPERIENCE HGF,NATIONWIDE ACCOMMODATION,"114,216.50",NIGHTLY TA (NSC),EXTERNAL AGENCIES AND BODIES,5902472086,1000076112
03.06.2021,CUSTOMER EXPERIENCE HGF,HOMES 2 LET UK LTD,"9,744.00",NIGHTLY TA (NSC),EXTERNAL AGENCIES AND BODIES,5902472052,1000079868
03.06.2021,CUSTOMER EXPERIENCE HGF,ZFA ACCOMMODATION LTD,"1,054.00",NIGHTLY TA (NSC),EXTERNAL AGENCIES AND BODIES,5902472078,1000082620
03.06.2021,CUSTOMER EXPERIENCE HGF,ZFA ACCOMMODATION LTD,"2,282.00",NIGHTLY TA (NSC),EXTERNAL AGENCIES AND BODIES,5902472067,1000082620
03.06.2021,CUSTOMER EXPERIENCE HGF,ZFA ACCOMMODATION LTD,"25,718.50",NIGHTLY TA (NSC),EXTERNAL AGENCIES AND BODIES,5902471987,1000082620
03.06.2021,CUSTOMER EXPERIENCE HGF,CHRIS ANTHONY ESTATES,"2,983.37",PSL PLACEMENTS,EXTERNAL AGENCIES AND BODIES,5902471968,1000086346
03.06.2021,DSG,CROSS EDUCATION SUPPORT SERVS LTD,"1,300.00",SCHOOLS FORUM,CONSULTANTS SERVICES,5902472072,1000046629
03.06.2021,EDUCATION,PULSE HEALTHCARE LTD,308,SCH TRANS � TRAVEL,AGENCY STAFF,5902471536,1000035063
03.06.2021,EDUCATION,KENT COUNTY COUNCIL - LASER,"2,108.94",THOMAS CALTON CENTRE,GAS,5902472037,1000012926
03.06.2021,ENVIRONMENT AND LEISURE,ART INSTALLATION SERVICES LTD,280,CAPITAL PS (REGEN),CONSTRUCTION FEES  - EXTERNAL,5902471893,1000086170
03.06.2021,ENVIRONMENT AND LEISURE,BELL BRUSH COMPANY,948,MANAGEMENT TEAM,MATERIALS,5902471051,1259776
03.06.2021,ENVIRONMENT DIRECTORATE,THE T P PARTNERSHIP,445,ESTATE CLEANING-GENERAL,OTHER CONTRACTORS,5902472054,1000045906
03.06.2021,ENVIRONMENT DIRECTORATE,CITY ELECTRICAL FACTORS LTD,307.8,PUBLIC LIGHTING,MATERIALS,5902471930,1003485
03.06.2021,ENVIRONMENT DIRECTORATE,CITY ELECTRICAL FACTORS LTD,461.7,PUBLIC LIGHTING,MATERIALS,5902471929,1003485
03.06.2021,ENVIRONMENT DIRECTORATE,PORT OF LONDON AUTHORITY,"2,001.78",RIVER WALLS MAINTENANCE,OTHER CONTRACTORS,5902472042,1046683
03.06.2021,ENVIRONMENT DIRECTORATE,DRAIN SCAN,"2,310.00",SUBWAYS MINOR ROADS,OTHER CONTRACTORS,5902472069,1908746
03.06.2021,F & C S EXCLUDING CORPORATE BUDGETS,CAPITA BUSINESS SERVICES LTD,"2,210.00",ADMINISTRATIVE SUPPORT,EQUIPMENT PURCHASE & REPAIR,5902471925,1000006291
03.06.2021,F & C S EXCLUDING CORPORATE BUDGETS,CAPITA BUSINESS SERVICES LTD,"2,405.00",ADMINISTRATIVE SUPPORT,EQUIPMENT PURCHASE & REPAIR,5902471923,1000006291
03.06.2021,F & C S EXCLUDING CORPORATE BUDGETS,CIVICA UK LTD,799,ADMINISTRATIVE SUPPORT,SOFTWARE,5902471945,1730625
03.06.2021,F & C S EXCLUDING CORPORATE BUDGETS,REDACTED PERSONAL DATA,500,SESS,OTHER PAYMENTS FOR CLIENTS,REDACTED,REDACTED
03.06.2021,F & C S EXCLUDING CORPORATE BUDGETS,BUDGET CARPETS,266.67,SESS,OTHER PAYMENTS FOR CLIENTS,5902471375,11319076
03.06.2021,HOUSING,SPOKEMEAD MAINTENANCE LTD,"182,019.82",PAYMENTS CONTROL ACCOUNT - SPOKEMEAD,I-WORLD CONTRACTORS HOLDING ACCOUNT,5902471918,1000059211
03.06.2021,HOUSING HRA,CALFORD SEADEN LLP,802.65,CAPITAL PS (HRA),CONSTRUCTION FEES  - EXTERNAL,5902472007,1061592
03.06.2021,HOUSING HRA,CALFORD SEADEN LLP,"2,930.16",CAPITAL PS (HRA),CONSTRUCTION FEES  - EXTERNAL,5902472009,1061592
03.06.2021,HOUSING HRA,CALFORD SEADEN LLP,"7,820.40",CAPITAL PS (HRA),CONSTRUCTION FEES  - EXTERNAL,5902472012,1061592
03.06.2021,HOUSING HRA,OVE ARUP & PARTNERS LTD,"6,506.00",CAPITAL PS (HRA),CONSTRUCTION FEES  - EXTERNAL,5902472017,1000066606
03.06.2021,HUMAN RESOURCES,HALFORDS LTD,532.5,BIKE SCHEME,OTHER EMPLOYEE EXPENSES,5902471109,1000041969
03.06.2021,LEISURE DIRECTORATE,WARWICK LANDSCAPING LTD,"7,064.57",CEMETERIES,OTHER R&M,2103271947,3000001705
03.06.2021,LEISURE DIRECTORATE,SOMERVILLE YOUTH & PLAY PROVISION,"7,377.50",GRANTS COMMISSIONING,GRANTS,5902472074,1000080341
03.06.2021,LEISURE DIRECTORATE,ASKEWS & HOLTS LIBRARY SERVICES LTD,"4,735.64",STOCK SERVICES,BOOKS & PUBLICATIONS,5902471383,1494168
03.06.2021,MODERNISATION HGF,ROFFEY PARK INSTITUTE LIMITED,"2,400.00",ORG TRANSFORMATION,TRAINING,5902471973,1000042963
03.06.2021,PUBLIC HEALTH,TRINITY IN CAMBERWELL,"1,560.00",PLACE & HEALTH IMPROVEMENT,EXTERNAL AGENCIES AND BODIES,5902470990,1000071860
03.06.2021,PUBLIC HEALTH,BARTS HEALTH NHS TRUST,"5,269.81",SEXUAL HEALTH - STI,EXTERNAL AGENCIES AND BODIES,5902472036,1000055762
03.06.2021,PUBLIC HEALTH,WESTERN SUSSEX HOSPITALS NHS FOUNDATION TRUST C/O SERCO,284.95,SEXUAL HEALTH - STI,EXTERNAL AGENCIES AND BODIES,5902472043,1000077805
03.06.2021,PUBLIC HEALTH,BROMLEY HEALTHCARE CIC,760.66,SEXUAL HEALTH - STI,MEDICAL / HEALTH & SAFETY SERVICES,5902472030,1000081559
03.06.2021,REGENERATION,KENT COUNTY COUNCIL - LASER,265.11,PROPERTY - - PHASE 4,ELECTRICITY,5902472063,1000012926
03.06.2021,REGENERATION,KENT COUNTY COUNCIL - LASER,273.93,PROPERTY - - PHASE 4,ELECTRICITY,5902472035,1000012926
03.06.2021,REGENERATION,KENT COUNTY COUNCIL - LASER,286.72,PROPERTY - - PHASE 4,ELECTRICITY,5902472038,1000012926
03.06.2021,REGENERATION,KENT COUNTY COUNCIL - LASER,297.66,PROPERTY - - PHASE 4,ELECTRICITY,5902471989,1000012926
03.06.2021,REGENERATION,KENT COUNTY COUNCIL - LASER,309.15,PROPERTY - - PHASE 4,ELECTRICITY,5902471990,1000012926
03.06.2021,REGENERATION,KENT COUNTY COUNCIL - LASER,319.42,PROPERTY - - PHASE 4,ELECTRICITY,5902472002,1000012926
03.06.2021,REGENERATION,KENT COUNTY COUNCIL - LASER,322.55,PROPERTY - - PHASE 4,ELECTRICITY,5902471993,1000012926
03.06.2021,REGENERATION,KENT COUNTY COUNCIL - LASER,336.98,PROPERTY - - PHASE 4,ELECTRICITY,5902472000,1000012926
03.06.2021,REGENERATION,KENT COUNTY COUNCIL - LASER,345.17,PROPERTY - - PHASE 4,ELECTRICITY,5902472057,1000012926
03.06.2021,REGENERATION,KENT COUNTY COUNCIL - LASER,345.31,PROPERTY - - PHASE 4,ELECTRICITY,5902471999,1000012926
03.06.2021,REGENERATION,KENT COUNTY COUNCIL - LASER,347.75,PROPERTY - - PHASE 4,ELECTRICITY,5902472011,1000012926
03.06.2021,REGENERATION,KENT COUNTY COUNCIL - LASER,349.98,PROPERTY - - PHASE 4,ELECTRICITY,5902472061,1000012926
03.06.2021,REGENERATION,KENT COUNTY COUNCIL - LASER,350.44,PROPERTY - - PHASE 4,ELECTRICITY,5902472003,1000012926
03.06.2021,REGENERATION,KENT COUNTY COUNCIL - LASER,351.51,PROPERTY - - PHASE 4,ELECTRICITY,5902472031,1000012926
03.06.2021,REGENERATION,KENT COUNTY COUNCIL - LASER,351.89,PROPERTY - - PHASE 4,ELECTRICITY,5902471991,1000012926
03.06.2021,REGENERATION,KENT COUNTY COUNCIL - LASER,357.57,PROPERTY - - PHASE 4,ELECTRICITY,5902471998,1000012926
03.06.2021,REGENERATION,KENT COUNTY COUNCIL - LASER,374.33,PROPERTY - - PHASE 4,ELECTRICITY,5902471992,1000012926
03.06.2021,REGENERATION,KENT COUNTY COUNCIL - LASER,377.64,PROPERTY - - PHASE 4,ELECTRICITY,5902472059,1000012926
03.06.2021,REGENERATION,KENT COUNTY COUNCIL - LASER,386.65,PROPERTY - - PHASE 4,ELECTRICITY,5902472039,1000012926
03.06.2021,REGENERATION,KENT COUNTY COUNCIL - LASER,412.19,PROPERTY - - PHASE 4,ELECTRICITY,5902472055,1000012926
03.06.2021,RESIDENT SERVICES,RELIANCE HIGH-TECH LTD,"1,789.88",OPERATIONS/OFFICES ACCOMMODATION,OFFICE EXPENSES,5902472046,1000079374
03.06.2021,RESIDENT SERVICES,QUINARY LTD,"1,440.00",TA PLACEMENTS,EXTERNAL AGENCIES AND BODIES,5902472014,1000029106
03.06.2021,SBS OPERATIONS,CITY ELECTRICAL FACTORS LTD,370.18,ELECTRICIANS - DAY TO DAY,MATERIALS,5902471941,1003485
03.06.2021,SBS OPERATIONS,LONDON TOOLS LIMITED,720,OUT OF HOURS - COMMUNAL,MATERIALS,5902471942,1000003017
03.06.2021,SBS OPERATIONS,PEARSON GLAZING LIMITED,252.3,SBS COMMUNAL REPAIRS,MATERIALS,5902471899,1891977
03.06.2021,SBS SUPPORT,SPECTRA-GLAZE SERVICES,"1,060.02",SBS - HOLDING ACCOUNT,OTHER CONTRACTORS,5902471980,1000077605
03.06.2021,SBS SUPPORT,VPS (UK) LTD,366.1,VOIDS OVERHEADS,OTHER CONTRACTORS,5902472048,1000040614
03.06.2021,SBS SUPPORT,INITIAL WASHROOM HYGIENE,505.34,VOIDS OVERHEADS,PREMISES CLEANING,5902472029,1644695
03.06.2021,SBS SUPPORT,INITIAL WASHROOM HYGIENE,"1,050.15",VOIDS OVERHEADS,PREMISES CLEANING,5902472029,1644695
03.06.2021,SBS SUPPORT,INITIAL WASHROOM HYGIENE,"1,166.59",VOIDS OVERHEADS,PREMISES CLEANING,5902472029,1644695
03.06.2021,SOUTHWARK BUILDING SERVICES,PPG ARCHITECTURAL COATINGS,337.8,STORES/LOGISTICS,CREDITORS -GR/IR CLEARING ACCOUNT,5902471895,11063178
03.06.2021,SOUTHWARK BUILDING SERVICES,LONDON TOOLS LIMITED,"1,250.00",STORES/LOGISTICS,CREDITORS -GR/IR CLEARING ACCOUNT,5902471953,1000003017
03.06.2021,SOUTHWARK BUILDING SERVICES,LONDON TOOLS LIMITED,"2,500.00",STORES/LOGISTICS,CREDITORS -GR/IR CLEARING ACCOUNT,5902471952,1000003017
03.06.2021,SOUTHWARK BUILDING SERVICES,LONDON TOOLS LIMITED,"2,500.00",STORES/LOGISTICS,CREDITORS -GR/IR CLEARING ACCOUNT,5902471953,1000003017
03.06.2021,STRATEGIC FINANCING BUDGETS,COMENSURA LTD,"547,186.48",WEEKLY PAYMENTS,AGENCY STAFF,5902472034,1000051261
04.06.2021,ADULT SOCIAL CARE,F A ALBIN AND SONS,"4,137.00",APPOINTEESHIPS,OTHER PAYMENTS FOR CLIENTS,2103273460,11313949
04.06.2021,ADULT SOCIAL CARE,REDACTED PERSONAL DATA,"2,427.36",CARERS SERVICES,PAYMENTS TO CLIENTS (DIRECT PAYMENTS),REDACTED,REDACTED
04.06.2021,ADULT SOCIAL CARE,PLUS SERVICES,"1,062.01",DIR OF ASC,EXTERNAL AGENCIES AND BODIES,5902471936,1000021241
04.06.2021,ADULT SOCIAL CARE,PLUS SERVICES,"1,166.60",DIR OF ASC,EXTERNAL AGENCIES AND BODIES,5902471928,1000021241
04.06.2021,ADULT SOCIAL CARE,KAIROS COMMUNITY TRUST,"8,708.45",DIR OF ASC,EXTERNAL AGENCIES AND BODIES,5902472241,1000025479
04.06.2021,ADULT SOCIAL CARE,BRANDON TRUST,"3,694.24",DIR OF ASC,EXTERNAL AGENCIES AND BODIES,5902471921,1000042417
04.06.2021,ADULT SOCIAL CARE,BRANDON TRUST,"8,030.20",DIR OF ASC,EXTERNAL AGENCIES AND BODIES,5902471913,1000042417
04.06.2021,ADULT SOCIAL CARE,LONDON CYRENIANS HOUSING LTD,583.3,DIR OF ASC,EXTERNAL AGENCIES AND BODIES,5902472246,1000078600
04.06.2021,ADULT SOCIAL CARE,CAPITAL STAFFING SERVICES LTD,"2,264.67",DIR OF ASC,EXTERNAL AGENCIES AND BODIES,5902472253,1000085279
04.06.2021,ADULT SOCIAL CARE,CAPITAL STAFFING SERVICES LTD,"2,527.64",DIR OF ASC,EXTERNAL AGENCIES AND BODIES,5902472255,1000085279
04.06.2021,ADULT SOCIAL CARE,BY THE BRIDGE LTD,"5,757.01",DISABILITIES LAC,EXTERNAL AGENCIES AND BODIES,2103272390,1000043961
04.06.2021,ADULT SOCIAL CARE,BY THE BRIDGE LTD,"6,231.00",DISABILITIES LAC,EXTERNAL AGENCIES AND BODIES,2103272391,1000043961
04.06.2021,ADULT SOCIAL CARE,THE DRIVE CARE HOMES LTD,"2,090.00",DISABILITIES LAC,OTHER PAYMENTS FOR CLIENTS,2103272317,1000003889
04.06.2021,ADULT SOCIAL CARE,REDACTED PERSONAL DATA,791.84,DISCHARGE TO ACCESS,PAYMENTS TO CLIENTS (DIRECT PAYMENTS),REDACTED,REDACTED
04.06.2021,ADULT SOCIAL CARE,REDACTED PERSONAL DATA,296.96,DISCHARGE TO ACCESS,PAYMENTS TO CLIENTS (DIRECT PAYMENTS),REDACTED,REDACTED
04.06.2021,ADULT SOCIAL CARE,REDACTED PERSONAL DATA,898.8,DISCHARGE TO ACCESS,PAYMENTS TO CLIENTS (DIRECT PAYMENTS),REDACTED,REDACTED
04.06.2021,ADULT SOCIAL CARE,REDACTED PERSONAL DATA,826,DISCHARGE TO ACCESS,PAYMENTS TO CLIENTS (DIRECT PAYMENTS),REDACTED,REDACTED
04.06.2021,ADULT SOCIAL CARE,PEOPLEPLUS ILS,"2,266.72",DISCHARGE TO ACCESS,PAYMENTS TO CLIENTS (DIRECT PAYMENTS),2103272545,1000061886
04.06.2021,ADULT SOCIAL CARE,PEOPLEPLUS ILS,"3,015.60",DISCHARGE TO ACCESS,PAYMENTS TO CLIENTS (DIRECT PAYMENTS),2103273064,1000061886
04.06.2021,ADULT SOCIAL CARE,REDACTED PERSONAL DATA,-347.2,LD LTS 18-64,DISCRETIONARY FLEXIBLE FEES & INCOME,REDACTED,REDACTED
04.06.2021,ADULT SOCIAL CARE,PEOPLEPLUS ILS,-769.8,LD LTS 18-64,DISCRETIONARY FLEXIBLE FEES & INCOME,2103273399,1000061886
04.06.2021,ADULT SOCIAL CARE,PEOPLEPLUS ILS,-344.72,LD LTS 18-64,DISCRETIONARY FLEXIBLE FEES & INCOME,2103272840,1000061886
04.06.2021,ADULT SOCIAL CARE,PEOPLEPLUS ILS,-287.28,LD LTS 18-64,DISCRETIONARY FLEXIBLE FEES & INCOME,2103272757,1000061886
04.06.2021,ADULT SOCIAL CARE,PEOPLEPLUS ILS,-273.56,LD LTS 18-64,DISCRETIONARY FLEXIBLE FEES & INCOME,2103272934,1000061886
04.06.2021,ADULT SOCIAL CARE,PEOPLEPLUS ILS,-273.4,LD LTS 18-64,DISCRETIONARY FLEXIBLE FEES & INCOME,2103273022,1000061886
04.06.2021,ADULT SOCIAL CARE,REDACTED PERSONAL DATA,"2,262.40",LD LTS 18-64,PAYMENTS TO CLIENTS (DIRECT PAYMENTS),REDACTED,REDACTED
04.06.2021,ADULT SOCIAL CARE,REDACTED PERSONAL DATA,"3,923.12",LD LTS 18-64,PAYMENTS TO CLIENTS (DIRECT PAYMENTS),REDACTED,REDACTED
04.06.2021,ADULT SOCIAL CARE,REDACTED PERSONAL DATA,698.72,LD LTS 18-64,PAYMENTS TO CLIENTS (DIRECT PAYMENTS),REDACTED,REDACTED
04.06.2021,ADULT SOCIAL CARE,REDACTED PERSONAL DATA,"6,287.92",LD LTS 18-64,PAYMENTS TO CLIENTS (DIRECT PAYMENTS),REDACTED,REDACTED
04.06.2021,ADULT SOCIAL CARE,REDACTED PERSONAL DATA,"1,829.92",LD LTS 18-64,PAYMENTS TO CLIENTS (DIRECT PAYMENTS),REDACTED,REDACTED
04.06.2021,ADULT SOCIAL CARE,REDACTED PERSONAL DATA,"1,979.60",LD LTS 18-64,PAYMENTS TO CLIENTS (DIRECT PAYMENTS),REDACTED,REDACTED
04.06.2021,ADULT SOCIAL CARE,REDACTED PERSONAL DATA,"8,484.60",LD LTS 18-64,PAYMENTS TO CLIENTS (DIRECT PAYMENTS),REDACTED,REDACTED
04.06.2021,ADULT SOCIAL CARE,REDACTED PERSONAL DATA,"1,534.00",LD LTS 18-64,PAYMENTS TO CLIENTS (DIRECT PAYMENTS),REDACTED,REDACTED
04.06.2021,ADULT SOCIAL CARE,REDACTED PERSONAL DATA,"2,158.60",LD LTS 18-64,PAYMENTS TO CLIENTS (DIRECT PAYMENTS),REDACTED,REDACTED
04.06.2021,ADULT SOCIAL CARE,REDACTED PERSONAL DATA,"3,864.64",LD LTS 18-64,PAYMENTS TO CLIENTS (DIRECT PAYMENTS),REDACTED,REDACTED
04.06.2021,ADULT SOCIAL CARE,REDACTED PERSONAL DATA,"1,420.12",LD LTS 18-64,PAYMENTS TO CLIENTS (DIRECT PAYMENTS),REDACTED,REDACTED
04.06.2021,ADULT SOCIAL CARE,REDACTED PERSONAL DATA,594.4,LD LTS 18-64,PAYMENTS TO CLIENTS (DIRECT PAYMENTS),REDACTED,REDACTED
04.06.2021,ADULT SOCIAL CARE,REDACTED PERSONAL DATA,414.8,LD LTS 18-64,PAYMENTS TO CLIENTS (DIRECT PAYMENTS),REDACTED,REDACTED
04.06.2021,ADULT SOCIAL CARE,REDACTED PERSONAL DATA,522.6,LD LTS 18-64,PAYMENTS TO CLIENTS (DIRECT PAYMENTS),REDACTED,REDACTED
04.06.2021,ADULT SOCIAL CARE,REDACTED PERSONAL DATA,282.8,LD LTS 18-64,PAYMENTS TO CLIENTS (DIRECT PAYMENTS),REDACTED,REDACTED
04.06.2021,ADULT SOCIAL CARE,REDACTED PERSONAL DATA,"1,368.32",LD LTS 18-64,PAYMENTS TO CLIENTS (DIRECT PAYMENTS),REDACTED,REDACTED
04.06.2021,ADULT SOCIAL CARE,REDACTED PERSONAL DATA,"2,317.60",LD LTS 18-64,PAYMENTS TO CLIENTS (DIRECT PAYMENTS),REDACTED,REDACTED
04.06.2021,ADULT SOCIAL CARE,REDACTED PERSONAL DATA,"1,980.00",LD LTS 18-64,PAYMENTS TO CLIENTS (DIRECT PAYMENTS),REDACTED,REDACTED
04.06.2021,ADULT SOCIAL CARE,REDACTED PERSONAL DATA,522.6,LD LTS 18-64,PAYMENTS TO CLIENTS (DIRECT PAYMENTS),REDACTED,REDACTED
04.06.2021,ADULT SOCIAL CARE,REDACTED PERSONAL DATA,"6,644.40",LD LTS 18-64,PAYMENTS TO CLIENTS (DIRECT PAYMENTS),REDACTED,REDACTED
04.06.2021,ADULT SOCIAL CARE,REDACTED PERSONAL DATA,"1,025.20",LD LTS 18-64,PAYMENTS TO CLIENTS (DIRECT PAYMENTS),REDACTED,REDACTED
04.06.2021,ADULT SOCIAL CARE,REDACTED PERSONAL DATA,327.2,LD LTS 18-64,PAYMENTS TO CLIENTS (DIRECT PAYMENTS),REDACTED,REDACTED
04.06.2021,ADULT SOCIAL CARE,REDACTED PERSONAL DATA,809.8,LD LTS 18-64,PAYMENTS TO CLIENTS (DIRECT PAYMENTS),REDACTED,REDACTED
04.06.2021,ADULT SOCIAL CARE,REDACTED PERSONAL DATA,300,LD LTS 18-64,PAYMENTS TO CLIENTS (DIRECT PAYMENTS),REDACTED,REDACTED
04.06.2021,ADULT SOCIAL CARE,REDACTED PERSONAL DATA,584,LD LTS 18-64,PAYMENTS TO CLIENTS (DIRECT PAYMENTS),REDACTED,REDACTED
04.06.2021,ADULT SOCIAL CARE,REDACTED PERSONAL DATA,"1,357.44",LD LTS 18-64,PAYMENTS TO CLIENTS (DIRECT PAYMENTS),REDACTED,REDACTED
04.06.2021,ADULT SOCIAL CARE,REDACTED PERSONAL DATA,282.8,LD LTS 18-64,PAYMENTS TO CLIENTS (DIRECT PAYMENTS),REDACTED,REDACTED
04.06.2021,ADULT SOCIAL CARE,REDACTED PERSONAL DATA,320,LD LTS 18-64,PAYMENTS TO CLIENTS (DIRECT PAYMENTS),REDACTED,REDACTED
04.06.2021,ADULT SOCIAL CARE,REDACTED PERSONAL DATA,463.36,LD LTS 18-64,PAYMENTS TO CLIENTS (DIRECT PAYMENTS),REDACTED,REDACTED
04.06.2021,ADULT SOCIAL CARE,REDACTED PERSONAL DATA,"2,116.00",LD LTS 18-64,PAYMENTS TO CLIENTS (DIRECT PAYMENTS),REDACTED,REDACTED
04.06.2021,ADULT SOCIAL CARE,REDACTED PERSONAL DATA,639.2,LD LTS 18-64,PAYMENTS TO CLIENTS (DIRECT PAYMENTS),REDACTED,REDACTED
04.06.2021,ADULT SOCIAL CARE,REDACTED PERSONAL DATA,888.84,LD LTS 18-64,PAYMENTS TO CLIENTS (DIRECT PAYMENTS),REDACTED,REDACTED
04.06.2021,ADULT SOCIAL CARE,REDACTED PERSONAL DATA,376,LD LTS 18-64,PAYMENTS TO CLIENTS (DIRECT PAYMENTS),REDACTED,REDACTED
04.06.2021,ADULT SOCIAL CARE,REDACTED PERSONAL DATA,718,LD LTS 18-64,PAYMENTS TO CLIENTS (DIRECT PAYMENTS),REDACTED,REDACTED
04.06.2021,ADULT SOCIAL CARE,REDACTED PERSONAL DATA,"1,815.00",LD LTS 18-64,PAYMENTS TO CLIENTS (DIRECT PAYMENTS),REDACTED,REDACTED
04.06.2021,ADULT SOCIAL CARE,REDACTED PERSONAL DATA,"1,532.68",LD LTS 18-64,PAYMENTS TO CLIENTS (DIRECT PAYMENTS),REDACTED,REDACTED
04.06.2021,ADULT SOCIAL CARE,REDACTED PERSONAL DATA,"1,532.92",LD LTS 18-64,PAYMENTS TO CLIENTS (DIRECT PAYMENTS),REDACTED,REDACTED
04.06.2021,ADULT SOCIAL CARE,REDACTED PERSONAL DATA,"5,026.00",LD LTS 18-64,PAYMENTS TO CLIENTS (DIRECT PAYMENTS),REDACTED,REDACTED
04.06.2021,ADULT SOCIAL CARE,REDACTED PERSONAL DATA,"6,286.08",LD LTS 18-64,PAYMENTS TO CLIENTS (DIRECT PAYMENTS),REDACTED,REDACTED
04.06.2021,ADULT SOCIAL CARE,REDACTED PERSONAL DATA,"1,033.72",LD LTS 18-64,PAYMENTS TO CLIENTS (DIRECT PAYMENTS),REDACTED,REDACTED
04.06.2021,ADULT SOCIAL CARE,REDACTED PERSONAL DATA,"2,347.24",LD LTS 18-64,PAYMENTS TO CLIENTS (DIRECT PAYMENTS),REDACTED,REDACTED
04.06.2021,ADULT SOCIAL CARE,REDACTED PERSONAL DATA,"1,746.16",LD LTS 18-64,PAYMENTS TO CLIENTS (DIRECT PAYMENTS),REDACTED,REDACTED
04.06.2021,ADULT SOCIAL CARE,REDACTED PERSONAL DATA,"2,660.20",LD LTS 18-64,PAYMENTS TO CLIENTS (DIRECT PAYMENTS),REDACTED,REDACTED
04.06.2021,ADULT SOCIAL CARE,REDACTED PERSONAL DATA,"1,293.44",LD LTS 18-64,PAYMENTS TO CLIENTS (DIRECT PAYMENTS),REDACTED,REDACTED
04.06.2021,ADULT SOCIAL CARE,REDACTED PERSONAL DATA,962.76,LD LTS 18-64,PAYMENTS TO CLIENTS (DIRECT PAYMENTS),REDACTED,REDACTED
04.06.2021,ADULT SOCIAL CARE,REDACTED PERSONAL DATA,444.04,LD LTS 18-64,PAYMENTS TO CLIENTS (DIRECT PAYMENTS),REDACTED,REDACTED
04.06.2021,ADULT SOCIAL CARE,REDACTED PERSONAL DATA,"12,580.00",LD LTS 18-64,PAYMENTS TO CLIENTS (DIRECT PAYMENTS),REDACTED,REDACTED
04.06.2021,ADULT SOCIAL CARE,REDACTED PERSONAL DATA,260,LD LTS 18-64,PAYMENTS TO CLIENTS (DIRECT PAYMENTS),REDACTED,REDACTED
04.06.2021,ADULT SOCIAL CARE,REDACTED PERSONAL DATA,502.6,LD LTS 18-64,PAYMENTS TO CLIENTS (DIRECT PAYMENTS),REDACTED,REDACTED
04.06.2021,ADULT SOCIAL CARE,REDACTED PERSONAL DATA,956.16,LD LTS 18-64,PAYMENTS TO CLIENTS (DIRECT PAYMENTS),REDACTED,REDACTED
04.06.2021,ADULT SOCIAL CARE,REDACTED PERSONAL DATA,"1,400.00",LD LTS 18-64,PAYMENTS TO CLIENTS (DIRECT PAYMENTS),REDACTED,REDACTED
04.06.2021,ADULT SOCIAL CARE,REDACTED PERSONAL DATA,"2,736.00",LD LTS 18-64,PAYMENTS TO CLIENTS (DIRECT PAYMENTS),REDACTED,REDACTED
04.06.2021,ADULT SOCIAL CARE,REDACTED PERSONAL DATA,359.36,LD LTS 18-64,PAYMENTS TO CLIENTS (DIRECT PAYMENTS),REDACTED,REDACTED
04.06.2021,ADULT SOCIAL CARE,REDACTED PERSONAL DATA,787.76,LD LTS 18-64,PAYMENTS TO CLIENTS (DIRECT PAYMENTS),REDACTED,REDACTED
04.06.2021,ADULT SOCIAL CARE,REDACTED PERSONAL DATA,460.04,LD LTS 18-64,PAYMENTS TO CLIENTS (DIRECT PAYMENTS),REDACTED,REDACTED
04.06.2021,ADULT SOCIAL CARE,REDACTED PERSONAL DATA,815.44,LD LTS 18-64,PAYMENTS TO CLIENTS (DIRECT PAYMENTS),REDACTED,REDACTED
04.06.2021,ADULT SOCIAL CARE,REDACTED PERSONAL DATA,858.88,LD LTS 18-64,PAYMENTS TO CLIENTS (DIRECT PAYMENTS),REDACTED,REDACTED
04.06.2021,ADULT SOCIAL CARE,REDACTED PERSONAL DATA,838.88,LD LTS 18-64,PAYMENTS TO CLIENTS (DIRECT PAYMENTS),REDACTED,REDACTED
04.06.2021,ADULT SOCIAL CARE,PEOPLEPLUS ILS,"-2,191.90",LD LTS 18-64,PAYMENTS TO CLIENTS (DIRECT PAYMENTS),2103272801,1000061886
04.06.2021,ADULT SOCIAL CARE,PEOPLEPLUS ILS,"-1,919.50",LD LTS 18-64,PAYMENTS TO CLIENTS (DIRECT PAYMENTS),2103272890,1000061886
04.06.2021,ADULT SOCIAL CARE,PEOPLEPLUS ILS,260,LD LTS 18-64,PAYMENTS TO CLIENTS (DIRECT PAYMENTS),2103272939,1000061886
04.06.2021,ADULT SOCIAL CARE,PEOPLEPLUS ILS,266,LD LTS 18-64,PAYMENTS TO CLIENTS (DIRECT PAYMENTS),2103272874,1000061886
04.06.2021,ADULT SOCIAL CARE,PEOPLEPLUS ILS,299.6,LD LTS 18-64,PAYMENTS TO CLIENTS (DIRECT PAYMENTS),2103272788,1000061886
04.06.2021,ADULT SOCIAL CARE,PEOPLEPLUS ILS,305.88,LD LTS 18-64,PAYMENTS TO CLIENTS (DIRECT PAYMENTS),2103273151,1000061886
04.06.2021,ADULT SOCIAL CARE,PEOPLEPLUS ILS,316.8,LD LTS 18-64,PAYMENTS TO CLIENTS (DIRECT PAYMENTS),2103273135,1000061886
04.06.2021,ADULT SOCIAL CARE,PEOPLEPLUS ILS,329.32,LD LTS 18-64,PAYMENTS TO CLIENTS (DIRECT PAYMENTS),2103272834,1000061886
04.06.2021,ADULT SOCIAL CARE,PEOPLEPLUS ILS,329.8,LD LTS 18-64,PAYMENTS TO CLIENTS (DIRECT PAYMENTS),2103273232,1000061886
04.06.2021,ADULT SOCIAL CARE,PEOPLEPLUS ILS,334,LD LTS 18-64,PAYMENTS TO CLIENTS (DIRECT PAYMENTS),2103273250,1000061886
04.06.2021,ADULT SOCIAL CARE,PEOPLEPLUS ILS,342,LD LTS 18-64,PAYMENTS TO CLIENTS (DIRECT PAYMENTS),2103273324,1000061886
04.06.2021,ADULT SOCIAL CARE,PEOPLEPLUS ILS,352,LD LTS 18-64,PAYMENTS TO CLIENTS (DIRECT PAYMENTS),2103273265,1000061886
04.06.2021,ADULT SOCIAL CARE,PEOPLEPLUS ILS,374,LD LTS 18-64,PAYMENTS TO CLIENTS (DIRECT PAYMENTS),2103272820,1000061886
04.06.2021,ADULT SOCIAL CARE,PEOPLEPLUS ILS,385.6,LD LTS 18-64,PAYMENTS TO CLIENTS (DIRECT PAYMENTS),2103272994,1000061886
04.06.2021,ADULT SOCIAL CARE,PEOPLEPLUS ILS,393.52,LD LTS 18-64,PAYMENTS TO CLIENTS (DIRECT PAYMENTS),2103272843,1000061886
04.06.2021,ADULT SOCIAL CARE,PEOPLEPLUS ILS,393.52,LD LTS 18-64,PAYMENTS TO CLIENTS (DIRECT PAYMENTS),2103272852,1000061886
04.06.2021,ADULT SOCIAL CARE,PEOPLEPLUS ILS,419.44,LD LTS 18-64,PAYMENTS TO CLIENTS (DIRECT PAYMENTS),2103273112,1000061886
04.06.2021,ADULT SOCIAL CARE,PEOPLEPLUS ILS,430.8,LD LTS 18-64,PAYMENTS TO CLIENTS (DIRECT PAYMENTS),2103273211,1000061886
04.06.2021,ADULT SOCIAL CARE,PEOPLEPLUS ILS,437.6,LD LTS 18-64,PAYMENTS TO CLIENTS (DIRECT PAYMENTS),2103273017,1000061886
04.06.2021,ADULT SOCIAL CARE,PEOPLEPLUS ILS,440,LD LTS 18-64,PAYMENTS TO CLIENTS (DIRECT PAYMENTS),2103273075,1000061886
04.06.2021,ADULT SOCIAL CARE,PEOPLEPLUS ILS,452.48,LD LTS 18-64,PAYMENTS TO CLIENTS (DIRECT PAYMENTS),2103272816,1000061886
04.06.2021,ADULT SOCIAL CARE,PEOPLEPLUS ILS,458.08,LD LTS 18-64,PAYMENTS TO CLIENTS (DIRECT PAYMENTS),2103273134,1000061886
04.06.2021,ADULT SOCIAL CARE,PEOPLEPLUS ILS,464.8,LD LTS 18-64,PAYMENTS TO CLIENTS (DIRECT PAYMENTS),2103272953,1000061886
04.06.2021,ADULT SOCIAL CARE,PEOPLEPLUS ILS,486.48,LD LTS 18-64,PAYMENTS TO CLIENTS (DIRECT PAYMENTS),2103272867,1000061886
04.06.2021,ADULT SOCIAL CARE,PEOPLEPLUS ILS,493.36,LD LTS 18-64,PAYMENTS TO CLIENTS (DIRECT PAYMENTS),2103272871,1000061886
04.06.2021,ADULT SOCIAL CARE,PEOPLEPLUS ILS,513.36,LD LTS 18-64,PAYMENTS TO CLIENTS (DIRECT PAYMENTS),2103272736,1000061886
04.06.2021,ADULT SOCIAL CARE,PEOPLEPLUS ILS,513.36,LD LTS 18-64,PAYMENTS TO CLIENTS (DIRECT PAYMENTS),2103273259,1000061886
04.06.2021,ADULT SOCIAL CARE,PEOPLEPLUS ILS,517.2,LD LTS 18-64,PAYMENTS TO CLIENTS (DIRECT PAYMENTS),2103273076,1000061886
04.06.2021,ADULT SOCIAL CARE,PEOPLEPLUS ILS,558.72,LD LTS 18-64,PAYMENTS TO CLIENTS (DIRECT PAYMENTS),2103273289,1000061886
04.06.2021,ADULT SOCIAL CARE,PEOPLEPLUS ILS,573.28,LD LTS 18-64,PAYMENTS TO CLIENTS (DIRECT PAYMENTS),2103272862,1000061886
04.06.2021,ADULT SOCIAL CARE,PEOPLEPLUS ILS,632.4,LD LTS 18-64,PAYMENTS TO CLIENTS (DIRECT PAYMENTS),2103273092,1000061886
04.06.2021,ADULT SOCIAL CARE,PEOPLEPLUS ILS,633.2,LD LTS 18-64,PAYMENTS TO CLIENTS (DIRECT PAYMENTS),2103273097,1000061886
04.06.2021,ADULT SOCIAL CARE,PEOPLEPLUS ILS,633.2,LD LTS 18-64,PAYMENTS TO CLIENTS (DIRECT PAYMENTS),2103273283,1000061886
04.06.2021,ADULT SOCIAL CARE,PEOPLEPLUS ILS,670,LD LTS 18-64,PAYMENTS TO CLIENTS (DIRECT PAYMENTS),2103272794,1000061886
04.06.2021,ADULT SOCIAL CARE,PEOPLEPLUS ILS,685.72,LD LTS 18-64,PAYMENTS TO CLIENTS (DIRECT PAYMENTS),2103273254,1000061886
04.06.2021,ADULT SOCIAL CARE,PEOPLEPLUS ILS,694,LD LTS 18-64,PAYMENTS TO CLIENTS (DIRECT PAYMENTS),2103273287,1000061886
04.06.2021,ADULT SOCIAL CARE,PEOPLEPLUS ILS,718,LD LTS 18-64,PAYMENTS TO CLIENTS (DIRECT PAYMENTS),2103272992,1000061886
04.06.2021,ADULT SOCIAL CARE,PEOPLEPLUS ILS,724.24,LD LTS 18-64,PAYMENTS TO CLIENTS (DIRECT PAYMENTS),2103273106,1000061886
04.06.2021,ADULT SOCIAL CARE,PEOPLEPLUS ILS,753.04,LD LTS 18-64,PAYMENTS TO CLIENTS (DIRECT PAYMENTS),2103272784,1000061886
04.06.2021,ADULT SOCIAL CARE,PEOPLEPLUS ILS,753.04,LD LTS 18-64,PAYMENTS TO CLIENTS (DIRECT PAYMENTS),2103273131,1000061886
04.06.2021,ADULT SOCIAL CARE,PEOPLEPLUS ILS,762.28,LD LTS 18-64,PAYMENTS TO CLIENTS (DIRECT PAYMENTS),2103273147,1000061886
04.06.2021,ADULT SOCIAL CARE,PEOPLEPLUS ILS,780,LD LTS 18-64,PAYMENTS TO CLIENTS (DIRECT PAYMENTS),2103272796,1000061886
04.06.2021,ADULT SOCIAL CARE,PEOPLEPLUS ILS,784.08,LD LTS 18-64,PAYMENTS TO CLIENTS (DIRECT PAYMENTS),2103273442,1000061886
04.06.2021,ADULT SOCIAL CARE,PEOPLEPLUS ILS,789.6,LD LTS 18-64,PAYMENTS TO CLIENTS (DIRECT PAYMENTS),2103273111,1000061886
04.06.2021,ADULT SOCIAL CARE,PEOPLEPLUS ILS,794,LD LTS 18-64,PAYMENTS TO CLIENTS (DIRECT PAYMENTS),2103273411,1000061886
04.06.2021,ADULT SOCIAL CARE,PEOPLEPLUS ILS,800,LD LTS 18-64,PAYMENTS TO CLIENTS (DIRECT PAYMENTS),2103273286,1000061886
04.06.2021,ADULT SOCIAL CARE,PEOPLEPLUS ILS,860,LD LTS 18-64,PAYMENTS TO CLIENTS (DIRECT PAYMENTS),2103273423,1000061886
04.06.2021,ADULT SOCIAL CARE,PEOPLEPLUS ILS,890.84,LD LTS 18-64,PAYMENTS TO CLIENTS (DIRECT PAYMENTS),2103273161,1000061886
04.06.2021,ADULT SOCIAL CARE,PEOPLEPLUS ILS,896.8,LD LTS 18-64,PAYMENTS TO CLIENTS (DIRECT PAYMENTS),2103272901,1000061886
04.06.2021,ADULT SOCIAL CARE,PEOPLEPLUS ILS,904.96,LD LTS 18-64,PAYMENTS TO CLIENTS (DIRECT PAYMENTS),2103273373,1000061886
04.06.2021,ADULT SOCIAL CARE,PEOPLEPLUS ILS,932.8,LD LTS 18-64,PAYMENTS TO CLIENTS (DIRECT PAYMENTS),2103273346,1000061886
04.06.2021,ADULT SOCIAL CARE,PEOPLEPLUS ILS,970.2,LD LTS 18-64,PAYMENTS TO CLIENTS (DIRECT PAYMENTS),2103273138,1000061886
04.06.2021,ADULT SOCIAL CARE,PEOPLEPLUS ILS,988,LD LTS 18-64,PAYMENTS TO CLIENTS (DIRECT PAYMENTS),2103273312,1000061886
04.06.2021,ADULT SOCIAL CARE,PEOPLEPLUS ILS,997.2,LD LTS 18-64,PAYMENTS TO CLIENTS (DIRECT PAYMENTS),2103273107,1000061886
04.06.2021,ADULT SOCIAL CARE,PEOPLEPLUS ILS,"1,000.00",LD LTS 18-64,PAYMENTS TO CLIENTS (DIRECT PAYMENTS),2103272828,1000061886
04.06.2021,ADULT SOCIAL CARE,PEOPLEPLUS ILS,"1,000.00",LD LTS 18-64,PAYMENTS TO CLIENTS (DIRECT PAYMENTS),2103273137,1000061886
04.06.2021,ADULT SOCIAL CARE,PEOPLEPLUS ILS,"1,009.00",LD LTS 18-64,PAYMENTS TO CLIENTS (DIRECT PAYMENTS),2103273189,1000061886
04.06.2021,ADULT SOCIAL CARE,PEOPLEPLUS ILS,"1,013.48",LD LTS 18-64,PAYMENTS TO CLIENTS (DIRECT PAYMENTS),2103273350,1000061886
04.06.2021,ADULT SOCIAL CARE,PEOPLEPLUS ILS,"1,040.60",LD LTS 18-64,PAYMENTS TO CLIENTS (DIRECT PAYMENTS),2103273417,1000061886
04.06.2021,ADULT SOCIAL CARE,PEOPLEPLUS ILS,"1,054.00",LD LTS 18-64,PAYMENTS TO CLIENTS (DIRECT PAYMENTS),2103273344,1000061886
04.06.2021,ADULT SOCIAL CARE,PEOPLEPLUS ILS,"1,112.56",LD LTS 18-64,PAYMENTS TO CLIENTS (DIRECT PAYMENTS),2103272853,1000061886
04.06.2021,ADULT SOCIAL CARE,PEOPLEPLUS ILS,"1,128.96",LD LTS 18-64,PAYMENTS TO CLIENTS (DIRECT PAYMENTS),2103273011,1000061886
04.06.2021,ADULT SOCIAL CARE,PEOPLEPLUS ILS,"1,170.00",LD LTS 18-64,PAYMENTS TO CLIENTS (DIRECT PAYMENTS),2103273024,1000061886
04.06.2021,ADULT SOCIAL CARE,PEOPLEPLUS ILS,"1,172.48",LD LTS 18-64,PAYMENTS TO CLIENTS (DIRECT PAYMENTS),2103273336,1000061886
04.06.2021,ADULT SOCIAL CARE,PEOPLEPLUS ILS,"1,182.80",LD LTS 18-64,PAYMENTS TO CLIENTS (DIRECT PAYMENTS),2103272965,1000061886
04.06.2021,ADULT SOCIAL CARE,PEOPLEPLUS ILS,"1,182.80",LD LTS 18-64,PAYMENTS TO CLIENTS (DIRECT PAYMENTS),2103273301,1000061886
04.06.2021,ADULT SOCIAL CARE,PEOPLEPLUS ILS,"1,242.40",LD LTS 18-64,PAYMENTS TO CLIENTS (DIRECT PAYMENTS),2103272951,1000061886
04.06.2021,ADULT SOCIAL CARE,PEOPLEPLUS ILS,"1,244.00",LD LTS 18-64,PAYMENTS TO CLIENTS (DIRECT PAYMENTS),2103273293,1000061886
04.06.2021,ADULT SOCIAL CARE,PEOPLEPLUS ILS,"1,326.40",LD LTS 18-64,PAYMENTS TO CLIENTS (DIRECT PAYMENTS),2103272964,1000061886
04.06.2021,ADULT SOCIAL CARE,PEOPLEPLUS ILS,"1,359.24",LD LTS 18-64,PAYMENTS TO CLIENTS (DIRECT PAYMENTS),2103273272,1000061886
04.06.2021,ADULT SOCIAL CARE,PEOPLEPLUS ILS,"1,360.24",LD LTS 18-64,PAYMENTS TO CLIENTS (DIRECT PAYMENTS),2103273397,1000061886
04.06.2021,ADULT SOCIAL CARE,PEOPLEPLUS ILS,"1,433.20",LD LTS 18-64,PAYMENTS TO CLIENTS (DIRECT PAYMENTS),2103272907,1000061886
04.06.2021,ADULT SOCIAL CARE,PEOPLEPLUS ILS,"1,460.96",LD LTS 18-64,PAYMENTS TO CLIENTS (DIRECT PAYMENTS),2103273169,1000061886
04.06.2021,ADULT SOCIAL CARE,PEOPLEPLUS ILS,"1,593.92",LD LTS 18-64,PAYMENTS TO CLIENTS (DIRECT PAYMENTS),2103272970,1000061886
04.06.2021,ADULT SOCIAL CARE,PEOPLEPLUS ILS,"1,605.76",LD LTS 18-64,PAYMENTS TO CLIENTS (DIRECT PAYMENTS),2103272895,1000061886
04.06.2021,ADULT SOCIAL CARE,PEOPLEPLUS ILS,"1,674.96",LD LTS 18-64,PAYMENTS TO CLIENTS (DIRECT PAYMENTS),2103272795,1000061886
04.06.2021,ADULT SOCIAL CARE,PEOPLEPLUS ILS,"1,689.00",LD LTS 18-64,PAYMENTS TO CLIENTS (DIRECT PAYMENTS),2103273108,1000061886
04.06.2021,ADULT SOCIAL CARE,PEOPLEPLUS ILS,"1,693.36",LD LTS 18-64,PAYMENTS TO CLIENTS (DIRECT PAYMENTS),2103272729,1000061886
04.06.2021,ADULT SOCIAL CARE,PEOPLEPLUS ILS,"1,696.80",LD LTS 18-64,PAYMENTS TO CLIENTS (DIRECT PAYMENTS),2103272821,1000061886
04.06.2021,ADULT SOCIAL CARE,PEOPLEPLUS ILS,"1,730.80",LD LTS 18-64,PAYMENTS TO CLIENTS (DIRECT PAYMENTS),2103272882,1000061886
04.06.2021,ADULT SOCIAL CARE,PEOPLEPLUS ILS,"1,823.48",LD LTS 18-64,PAYMENTS TO CLIENTS (DIRECT PAYMENTS),2103273426,1000061886
04.06.2021,ADULT SOCIAL CARE,PEOPLEPLUS ILS,"1,829.60",LD LTS 18-64,PAYMENTS TO CLIENTS (DIRECT PAYMENTS),2103273437,1000061886
04.06.2021,ADULT SOCIAL CARE,PEOPLEPLUS ILS,"1,832.64",LD LTS 18-64,PAYMENTS TO CLIENTS (DIRECT PAYMENTS),2103273381,1000061886
04.06.2021,ADULT SOCIAL CARE,PEOPLEPLUS ILS,"1,888.28",LD LTS 18-64,PAYMENTS TO CLIENTS (DIRECT PAYMENTS),2103273086,1000061886
04.06.2021,ADULT SOCIAL CARE,PEOPLEPLUS ILS,"2,090.00",LD LTS 18-64,PAYMENTS TO CLIENTS (DIRECT PAYMENTS),2103272933,1000061886
04.06.2021,ADULT SOCIAL CARE,PEOPLEPLUS ILS,"2,097.56",LD LTS 18-64,PAYMENTS TO CLIENTS (DIRECT PAYMENTS),2103273334,1000061886
04.06.2021,ADULT SOCIAL CARE,PEOPLEPLUS ILS,"2,131.20",LD LTS 18-64,PAYMENTS TO CLIENTS (DIRECT PAYMENTS),2103273257,1000061886
04.06.2021,ADULT SOCIAL CARE,PEOPLEPLUS ILS,"2,194.88",LD LTS 18-64,PAYMENTS TO CLIENTS (DIRECT PAYMENTS),2103273173,1000061886
04.06.2021,ADULT SOCIAL CARE,PEOPLEPLUS ILS,"2,289.28",LD LTS 18-64,PAYMENTS TO CLIENTS (DIRECT PAYMENTS),2103272912,1000061886
04.06.2021,ADULT SOCIAL CARE,PEOPLEPLUS ILS,"2,494.00",LD LTS 18-64,PAYMENTS TO CLIENTS (DIRECT PAYMENTS),2103272848,1000061886
04.06.2021,ADULT SOCIAL CARE,PEOPLEPLUS ILS,"2,550.80",LD LTS 18-64,PAYMENTS TO CLIENTS (DIRECT PAYMENTS),2103272894,1000061886
04.06.2021,ADULT SOCIAL CARE,PEOPLEPLUS ILS,"2,769.00",LD LTS 18-64,PAYMENTS TO CLIENTS (DIRECT PAYMENTS),2103273418,1000061886
04.06.2021,ADULT SOCIAL CARE,PEOPLEPLUS ILS,"2,817.12",LD LTS 18-64,PAYMENTS TO CLIENTS (DIRECT PAYMENTS),2103273416,1000061886
04.06.2021,ADULT SOCIAL CARE,PEOPLEPLUS ILS,"2,865.00",LD LTS 18-64,PAYMENTS TO CLIENTS (DIRECT PAYMENTS),2103273148,1000061886
04.06.2021,ADULT SOCIAL CARE,PEOPLEPLUS ILS,"2,889.40",LD LTS 18-64,PAYMENTS TO CLIENTS (DIRECT PAYMENTS),2103272976,1000061886
04.06.2021,ADULT SOCIAL CARE,PEOPLEPLUS ILS,"2,906.00",LD LTS 18-64,PAYMENTS TO CLIENTS (DIRECT PAYMENTS),2103273337,1000061886
04.06.2021,ADULT SOCIAL CARE,PEOPLEPLUS ILS,"2,918.00",LD LTS 18-64,PAYMENTS TO CLIENTS (DIRECT PAYMENTS),2103273083,1000061886
04.06.2021,ADULT SOCIAL CARE,PEOPLEPLUS ILS,"3,106.52",LD LTS 18-64,PAYMENTS TO CLIENTS (DIRECT PAYMENTS),2103272949,1000061886
04.06.2021,ADULT SOCIAL CARE,PEOPLEPLUS ILS,"3,795.20",LD LTS 18-64,PAYMENTS TO CLIENTS (DIRECT PAYMENTS),2103273316,1000061886
04.06.2021,ADULT SOCIAL CARE,PEOPLEPLUS ILS,"3,913.00",LD LTS 18-64,PAYMENTS TO CLIENTS (DIRECT PAYMENTS),2103272824,1000061886
04.06.2021,ADULT SOCIAL CARE,PEOPLEPLUS ILS,"4,242.00",LD LTS 18-64,PAYMENTS TO CLIENTS (DIRECT PAYMENTS),2103273276,1000061886
04.06.2021,ADULT SOCIAL CARE,PEOPLEPLUS ILS,"4,524.80",LD LTS 18-64,PAYMENTS TO CLIENTS (DIRECT PAYMENTS),2103272998,1000061886
04.06.2021,ADULT SOCIAL CARE,PEOPLEPLUS ILS,"4,629.20",LD LTS 18-64,PAYMENTS TO CLIENTS (DIRECT PAYMENTS),2103273374,1000061886
04.06.2021,ADULT SOCIAL CARE,PEOPLEPLUS ILS,"7,997.92",LD LTS 18-64,PAYMENTS TO CLIENTS (DIRECT PAYMENTS),2103273084,1000061886
04.06.2021,ADULT SOCIAL CARE,PEOPLEPLUS ILS,"9,126.80",LD LTS 18-64,PAYMENTS TO CLIENTS (DIRECT PAYMENTS),2103273063,1000061886
04.06.2021,ADULT SOCIAL CARE,PEOPLEPLUS ILS,"11,809.20",LD LTS 18-64,PAYMENTS TO CLIENTS (DIRECT PAYMENTS),2103273103,1000061886
04.06.2021,ADULT SOCIAL CARE,PEOPLEPLUS ILS,"12,619.20",LD LTS 18-64,PAYMENTS TO CLIENTS (DIRECT PAYMENTS),2103272881,1000061886
04.06.2021,ADULT SOCIAL CARE,PEOPLEPLUS ILS,"12,619.20",LD LTS 18-64,PAYMENTS TO CLIENTS (DIRECT PAYMENTS),2103272918,1000061886
04.06.2021,ADULT SOCIAL CARE,FRESH IDEAS & SOLUTIONS SERVICES CIC,465.64,LD LTS 18-64,PAYMENTS TO CLIENTS (DIRECT PAYMENTS),2103273172,1000070832
04.06.2021,ADULT SOCIAL CARE,FRESH IDEAS & SOLUTIONS SERVICES CIC,740,LD LTS 18-64,PAYMENTS TO CLIENTS (DIRECT PAYMENTS),2103273171,1000070832
04.06.2021,ADULT SOCIAL CARE,FRESH IDEAS & SOLUTIONS SERVICES CIC,791.84,LD LTS 18-64,PAYMENTS TO CLIENTS (DIRECT PAYMENTS),2103273376,1000070832
04.06.2021,ADULT SOCIAL CARE,FRESH IDEAS & SOLUTIONS SERVICES CIC,875.6,LD LTS 18-64,PAYMENTS TO CLIENTS (DIRECT PAYMENTS),2103272929,1000070832
04.06.2021,ADULT SOCIAL CARE,FRESH IDEAS & SOLUTIONS SERVICES CIC,900,LD LTS 18-64,PAYMENTS TO CLIENTS (DIRECT PAYMENTS),2103272981,1000070832
04.06.2021,ADULT SOCIAL CARE,FRESH IDEAS & SOLUTIONS SERVICES CIC,"1,047.52",LD LTS 18-64,PAYMENTS TO CLIENTS (DIRECT PAYMENTS),2103273115,1000070832
04.06.2021,ADULT SOCIAL CARE,FRESH IDEAS & SOLUTIONS SERVICES CIC,"1,848.00",LD LTS 18-64,PAYMENTS TO CLIENTS (DIRECT PAYMENTS),2103273241,1000070832
04.06.2021,ADULT SOCIAL CARE,FRESH IDEAS & SOLUTIONS SERVICES CIC,"2,618.80",LD LTS 18-64,PAYMENTS TO CLIENTS (DIRECT PAYMENTS),2103272883,1000070832
04.06.2021,ADULT SOCIAL CARE,REDACTED PERSONAL DATA,"1,032.16",LD LTS 18-64,SUPPORTED LIVING,REDACTED,REDACTED
04.06.2021,ADULT SOCIAL CARE,GRANGE FARM COMPLEX,"1,778.36",LD LTS 18-64,SUPPORTED LIVING,2103273036,11086081
04.06.2021,ADULT SOCIAL CARE,PEOPLEPLUS ILS,-445.6,LD LTS 65+,DISCRETIONARY FLEXIBLE FEES & INCOME,2103272844,1000061886
04.06.2021,ADULT SOCIAL CARE,PEOPLEPLUS ILS,735,LD LTS 65+,PAYMENTS TO CLIENTS (DIRECT PAYMENTS),2103272963,1000061886
04.06.2021,ADULT SOCIAL CARE,PEOPLEPLUS ILS,480.76,MEM LTS 18-64,PAYMENTS TO CLIENTS (DIRECT PAYMENTS),2103273159,1000061886
04.06.2021,ADULT SOCIAL CARE,PEOPLEPLUS ILS,"1,184.00",MEM LTS 18-64,PAYMENTS TO CLIENTS (DIRECT PAYMENTS),2103273096,1000061886
04.06.2021,ADULT SOCIAL CARE,REDACTED PERSONAL DATA,256,MEM LTS 18-64,SUPPORTED LIVING,REDACTED,REDACTED
04.06.2021,ADULT SOCIAL CARE,REDACTED PERSONAL DATA,-309.64,MEM LTS 65+,DISCRETIONARY FLEXIBLE FEES & INCOME,REDACTED,REDACTED
04.06.2021,ADULT SOCIAL CARE,REDACTED PERSONAL DATA,"-1,219.00",MEM LTS 65+,DISCRETIONARY FLEXIBLE FEES & INCOME,REDACTED,REDACTED
04.06.2021,ADULT SOCIAL CARE,PEOPLEPLUS ILS,-274.48,MEM LTS 65+,DISCRETIONARY FLEXIBLE FEES & INCOME,2103272785,1000061886
04.06.2021,ADULT SOCIAL CARE,PROFAD CARE AGENCY,855.36,MEM LTS 65+,HOMECARE - SPOT,2103272490,1000079032
04.06.2021,ADULT SOCIAL CARE,PROFAD CARE AGENCY,"1,088.64",MEM LTS 65+,HOMECARE - SPOT,2103272500,1000079032
04.06.2021,ADULT SOCIAL CARE,PROFAD CARE AGENCY,"1,380.24",MEM LTS 65+,HOMECARE - SPOT,2103272494,1000079032
04.06.2021,ADULT SOCIAL CARE,REDACTED PERSONAL DATA,"1,345.44",MEM LTS 65+,PAYMENTS TO CLIENTS (DIRECT PAYMENTS),REDACTED,REDACTED
04.06.2021,ADULT SOCIAL CARE,REDACTED PERSONAL DATA,"3,167.36",MEM LTS 65+,PAYMENTS TO CLIENTS (DIRECT PAYMENTS),REDACTED,REDACTED
04.06.2021,ADULT SOCIAL CARE,REDACTED PERSONAL DATA,"2,678.32",MEM LTS 65+,PAYMENTS TO CLIENTS (DIRECT PAYMENTS),REDACTED,REDACTED
04.06.2021,ADULT SOCIAL CARE,PEOPLEPLUS ILS,989.8,MEM LTS 65+,PAYMENTS TO CLIENTS (DIRECT PAYMENTS),2103272786,1000061886
04.06.2021,ADULT SOCIAL CARE,PEOPLEPLUS ILS,"1,221.76",MEM LTS 65+,PAYMENTS TO CLIENTS (DIRECT PAYMENTS),2103273136,1000061886
04.06.2021,ADULT SOCIAL CARE,PEOPLEPLUS ILS,"2,191.56",MEM LTS 65+,PAYMENTS TO CLIENTS (DIRECT PAYMENTS),2103273093,1000061886
04.06.2021,ADULT SOCIAL CARE,PEOPLEPLUS ILS,-503.36,MH LTS 18-64,DISCRETIONARY FLEXIBLE FEES & INCOME,2103273222,1000061886
04.06.2021,ADULT SOCIAL CARE,PEOPLEPLUS ILS,-318,MH LTS 18-64,DISCRETIONARY FLEXIBLE FEES & INCOME,2103273213,1000061886
04.06.2021,ADULT SOCIAL CARE,PROFAD CARE AGENCY,311.04,MH LTS 18-64,HOMECARE - SPOT,2103272417,1000079032
04.06.2021,ADULT SOCIAL CARE,PROFAD CARE AGENCY,"1,321.92",MH LTS 18-64,HOMECARE - SPOT,2103272440,1000079032
04.06.2021,ADULT SOCIAL CARE,REDACTED PERSONAL DATA,410.08,MH LTS 18-64,PAYMENTS TO CLIENTS (DIRECT PAYMENTS),REDACTED,REDACTED
04.06.2021,ADULT SOCIAL CARE,REDACTED PERSONAL DATA,-539.14,MH LTS 18-64,PAYMENTS TO CLIENTS (DIRECT PAYMENTS),REDACTED,REDACTED
04.06.2021,ADULT SOCIAL CARE,REDACTED PERSONAL DATA,541.71,MH LTS 18-64,PAYMENTS TO CLIENTS (DIRECT PAYMENTS),REDACTED,REDACTED
04.06.2021,ADULT SOCIAL CARE,REDACTED PERSONAL DATA,"1,158.36",MH LTS 18-64,PAYMENTS TO CLIENTS (DIRECT PAYMENTS),REDACTED,REDACTED
04.06.2021,ADULT SOCIAL CARE,REDACTED PERSONAL DATA,396,MH LTS 18-64,PAYMENTS TO CLIENTS (DIRECT PAYMENTS),REDACTED,REDACTED
04.06.2021,ADULT SOCIAL CARE,PEOPLEPLUS ILS,287.2,MH LTS 18-64,PAYMENTS TO CLIENTS (DIRECT PAYMENTS),2103273330,1000061886
04.06.2021,ADULT SOCIAL CARE,PEOPLEPLUS ILS,287.96,MH LTS 18-64,PAYMENTS TO CLIENTS (DIRECT PAYMENTS),2103273000,1000061886
04.06.2021,ADULT SOCIAL CARE,PEOPLEPLUS ILS,293.44,MH LTS 18-64,PAYMENTS TO CLIENTS (DIRECT PAYMENTS),2103272780,1000061886
04.06.2021,ADULT SOCIAL CARE,PEOPLEPLUS ILS,308,MH LTS 18-64,PAYMENTS TO CLIENTS (DIRECT PAYMENTS),2103273016,1000061886
04.06.2021,ADULT SOCIAL CARE,PEOPLEPLUS ILS,316.8,MH LTS 18-64,PAYMENTS TO CLIENTS (DIRECT PAYMENTS),2103272755,1000061886
04.06.2021,ADULT SOCIAL CARE,PEOPLEPLUS ILS,316.8,MH LTS 18-64,PAYMENTS TO CLIENTS (DIRECT PAYMENTS),2103272920,1000061886
04.06.2021,ADULT SOCIAL CARE,PEOPLEPLUS ILS,318,MH LTS 18-64,PAYMENTS TO CLIENTS (DIRECT PAYMENTS),2103273267,1000061886
04.06.2021,ADULT SOCIAL CARE,PEOPLEPLUS ILS,327.44,MH LTS 18-64,PAYMENTS TO CLIENTS (DIRECT PAYMENTS),2103273266,1000061886
04.06.2021,ADULT SOCIAL CARE,PEOPLEPLUS ILS,334,MH LTS 18-64,PAYMENTS TO CLIENTS (DIRECT PAYMENTS),2103272741,1000061886
04.06.2021,ADULT SOCIAL CARE,PEOPLEPLUS ILS,334,MH LTS 18-64,PAYMENTS TO CLIENTS (DIRECT PAYMENTS),2103273396,1000061886
04.06.2021,ADULT SOCIAL CARE,PEOPLEPLUS ILS,364,MH LTS 18-64,PAYMENTS TO CLIENTS (DIRECT PAYMENTS),2103273445,1000061886
04.06.2021,ADULT SOCIAL CARE,PEOPLEPLUS ILS,364.12,MH LTS 18-64,PAYMENTS TO CLIENTS (DIRECT PAYMENTS),2103273223,1000061886
04.06.2021,ADULT SOCIAL CARE,PEOPLEPLUS ILS,373,MH LTS 18-64,PAYMENTS TO CLIENTS (DIRECT PAYMENTS),2103272766,1000061886
04.06.2021,ADULT SOCIAL CARE,PEOPLEPLUS ILS,373.36,MH LTS 18-64,PAYMENTS TO CLIENTS (DIRECT PAYMENTS),2103272791,1000061886
04.06.2021,ADULT SOCIAL CARE,PEOPLEPLUS ILS,373.36,MH LTS 18-64,PAYMENTS TO CLIENTS (DIRECT PAYMENTS),2103273424,1000061886
04.06.2021,ADULT SOCIAL CARE,PEOPLEPLUS ILS,385.76,MH LTS 18-64,PAYMENTS TO CLIENTS (DIRECT PAYMENTS),2103272938,1000061886
04.06.2021,ADULT SOCIAL CARE,PEOPLEPLUS ILS,427.92,MH LTS 18-64,PAYMENTS TO CLIENTS (DIRECT PAYMENTS),2103273410,1000061886
04.06.2021,ADULT SOCIAL CARE,PEOPLEPLUS ILS,440.16,MH LTS 18-64,PAYMENTS TO CLIENTS (DIRECT PAYMENTS),2103273326,1000061886
04.06.2021,ADULT SOCIAL CARE,PEOPLEPLUS ILS,454,MH LTS 18-64,PAYMENTS TO CLIENTS (DIRECT PAYMENTS),2103272804,1000061886
04.06.2021,ADULT SOCIAL CARE,PEOPLEPLUS ILS,486.48,MH LTS 18-64,PAYMENTS TO CLIENTS (DIRECT PAYMENTS),2103273328,1000061886
04.06.2021,ADULT SOCIAL CARE,PEOPLEPLUS ILS,493,MH LTS 18-64,PAYMENTS TO CLIENTS (DIRECT PAYMENTS),2103273204,1000061886
04.06.2021,ADULT SOCIAL CARE,PEOPLEPLUS ILS,504.4,MH LTS 18-64,PAYMENTS TO CLIENTS (DIRECT PAYMENTS),2103273140,1000061886
04.06.2021,ADULT SOCIAL CARE,PEOPLEPLUS ILS,510.84,MH LTS 18-64,PAYMENTS TO CLIENTS (DIRECT PAYMENTS),2103273323,1000061886
04.06.2021,ADULT SOCIAL CARE,PEOPLEPLUS ILS,547.52,MH LTS 18-64,PAYMENTS TO CLIENTS (DIRECT PAYMENTS),2103272959,1000061886
04.06.2021,ADULT SOCIAL CARE,PEOPLEPLUS ILS,559.84,MH LTS 18-64,PAYMENTS TO CLIENTS (DIRECT PAYMENTS),2103273121,1000061886
04.06.2021,ADULT SOCIAL CARE,PEOPLEPLUS ILS,565.6,MH LTS 18-64,PAYMENTS TO CLIENTS (DIRECT PAYMENTS),2103273369,1000061886
04.06.2021,ADULT SOCIAL CARE,PEOPLEPLUS ILS,573,MH LTS 18-64,PAYMENTS TO CLIENTS (DIRECT PAYMENTS),2103273271,1000061886
04.06.2021,ADULT SOCIAL CARE,PEOPLEPLUS ILS,587.84,MH LTS 18-64,PAYMENTS TO CLIENTS (DIRECT PAYMENTS),2103273392,1000061886
04.06.2021,ADULT SOCIAL CARE,PEOPLEPLUS ILS,657.08,MH LTS 18-64,PAYMENTS TO CLIENTS (DIRECT PAYMENTS),2103272891,1000061886
04.06.2021,ADULT SOCIAL CARE,PEOPLEPLUS ILS,659.6,MH LTS 18-64,PAYMENTS TO CLIENTS (DIRECT PAYMENTS),2103273419,1000061886
04.06.2021,ADULT SOCIAL CARE,PEOPLEPLUS ILS,694.16,MH LTS 18-64,PAYMENTS TO CLIENTS (DIRECT PAYMENTS),2103272892,1000061886
04.06.2021,ADULT SOCIAL CARE,PEOPLEPLUS ILS,694.24,MH LTS 18-64,PAYMENTS TO CLIENTS (DIRECT PAYMENTS),2103273335,1000061886
04.06.2021,ADULT SOCIAL CARE,PEOPLEPLUS ILS,"1,144.00",MH LTS 18-64,PAYMENTS TO CLIENTS (DIRECT PAYMENTS),2103273110,1000061886
04.06.2021,ADULT SOCIAL CARE,PEOPLEPLUS ILS,"1,630.56",MH LTS 18-64,PAYMENTS TO CLIENTS (DIRECT PAYMENTS),2103273339,1000061886
04.06.2021,ADULT SOCIAL CARE,PEOPLEPLUS ILS,"2,311.60",MH LTS 18-64,PAYMENTS TO CLIENTS (DIRECT PAYMENTS),2103273444,1000061886
04.06.2021,ADULT SOCIAL CARE,PEOPLEPLUS ILS,"4,075.76",MH LTS 18-64,PAYMENTS TO CLIENTS (DIRECT PAYMENTS),2103272825,1000061886
04.06.2021,ADULT SOCIAL CARE,PROFAD CARE AGENCY,622.08,MH LTS 65+,HOMECARE - SPOT,2103272415,1000079032
04.06.2021,ADULT SOCIAL CARE,PROFAD CARE AGENCY,"1,088.64",MH LTS 65+,HOMECARE - SPOT,2103272421,1000079032
04.06.2021,ADULT SOCIAL CARE,PEOPLEPLUS ILS,321.56,MH LTS 65+,PAYMENTS TO CLIENTS (DIRECT PAYMENTS),2103273432,1000061886
04.06.2021,ADULT SOCIAL CARE,PEOPLEPLUS ILS,"1,202.60",MH LTS 65+,PAYMENTS TO CLIENTS (DIRECT PAYMENTS),2103273193,1000061886
04.06.2021,ADULT SOCIAL CARE,REDACTED PERSONAL DATA,"9,079.20",PHB- SOUTHWARK CCG,RECOVERABLE COSTS INCL. HEALTH,REDACTED,REDACTED
04.06.2021,ADULT SOCIAL CARE,REDACTED PERSONAL DATA,"7,482.40",PHB- SOUTHWARK CCG,RECOVERABLE COSTS INCL. HEALTH,REDACTED,REDACTED
04.06.2021,ADULT SOCIAL CARE,REDACTED PERSONAL DATA,"2,549.52",PHB- SOUTHWARK CCG,RECOVERABLE COSTS INCL. HEALTH,REDACTED,REDACTED
04.06.2021,ADULT SOCIAL CARE,PEOPLEPLUS ILS,"1,470.00",PHB- SOUTHWARK CCG,RECOVERABLE COSTS INCL. HEALTH,2103273351,1000061886
04.06.2021,ADULT SOCIAL CARE,PEOPLEPLUS ILS,"4,127.92",PHB- SOUTHWARK CCG,RECOVERABLE COSTS INCL. HEALTH,2103273446,1000061886
04.06.2021,ADULT SOCIAL CARE,PEOPLEPLUS ILS,"6,673.20",PHB- SOUTHWARK CCG,RECOVERABLE COSTS INCL. HEALTH,2103273015,1000061886
04.06.2021,ADULT SOCIAL CARE,REDACTED PERSONAL DATA,-359.04,PHY LTS 18-64,DISCRETIONARY FLEXIBLE FEES & INCOME,REDACTED,REDACTED
04.06.2021,ADULT SOCIAL CARE,REDACTED PERSONAL DATA,-326.96,PHY LTS 18-64,DISCRETIONARY FLEXIBLE FEES & INCOME,REDACTED,REDACTED
04.06.2021,ADULT SOCIAL CARE,PEOPLEPLUS ILS,"-2,501.62",PHY LTS 18-64,DISCRETIONARY FLEXIBLE FEES & INCOME,2103273071,1000061886
04.06.2021,ADULT SOCIAL CARE,PEOPLEPLUS ILS,-525.63,PHY LTS 18-64,DISCRETIONARY FLEXIBLE FEES & INCOME,2103273034,1000061886
04.06.2021,ADULT SOCIAL CARE,PROFAD CARE AGENCY,"3,129.84",PHY LTS 18-64,HOMECARE - C&V,2103272412,1000079032
04.06.2021,ADULT SOCIAL CARE,PROFAD CARE AGENCY,257.58,PHY LTS 18-64,HOMECARE - SPOT,2103272437,1000079032
04.06.2021,ADULT SOCIAL CARE,PROFAD CARE AGENCY,272.16,PHY LTS 18-64,HOMECARE - SPOT,2103272418,1000079032
04.06.2021,ADULT SOCIAL CARE,PROFAD CARE AGENCY,277.02,PHY LTS 18-64,HOMECARE - SPOT,2103272456,1000079032
04.06.2021,ADULT SOCIAL CARE,PROFAD CARE AGENCY,408.24,PHY LTS 18-64,HOMECARE - SPOT,2103272460,1000079032
04.06.2021,ADULT SOCIAL CARE,PROFAD CARE AGENCY,544.32,PHY LTS 18-64,HOMECARE - SPOT,2103272482,1000079032
04.06.2021,ADULT SOCIAL CARE,PROFAD CARE AGENCY,738.72,PHY LTS 18-64,HOMECARE - SPOT,2103272470,1000079032
04.06.2021,ADULT SOCIAL CARE,PROFAD CARE AGENCY,"2,332.80",PHY LTS 18-64,HOMECARE - SPOT,2103272433,1000079032
04.06.2021,ADULT SOCIAL CARE,PROFAD CARE AGENCY,"3,090.96",PHY LTS 18-64,HOMECARE - SPOT,2103272411,1000079032
04.06.2021,ADULT SOCIAL CARE,PROFAD CARE AGENCY,"3,888.00",PHY LTS 18-64,HOMECARE - SPOT,2103272469,1000079032
04.06.2021,ADULT SOCIAL CARE,PROFAD CARE AGENCY,"4,004.64",PHY LTS 18-64,HOMECARE - SPOT,2103272476,1000079032
04.06.2021,ADULT SOCIAL CARE,REDACTED PERSONAL DATA,"1,583.68",PHY LTS 18-64,PAYMENTS TO CLIENTS (DIRECT PAYMENTS),REDACTED,REDACTED
04.06.2021,ADULT SOCIAL CARE,REDACTED PERSONAL DATA,543.2,PHY LTS 18-64,PAYMENTS TO CLIENTS (DIRECT PAYMENTS),REDACTED,REDACTED
04.06.2021,ADULT SOCIAL CARE,REDACTED PERSONAL DATA,904.96,PHY LTS 18-64,PAYMENTS TO CLIENTS (DIRECT PAYMENTS),REDACTED,REDACTED
04.06.2021,ADULT SOCIAL CARE,REDACTED PERSONAL DATA,"2,395.52",PHY LTS 18-64,PAYMENTS TO CLIENTS (DIRECT PAYMENTS),REDACTED,REDACTED
04.06.2021,ADULT SOCIAL CARE,REDACTED PERSONAL DATA,"1,145.36",PHY LTS 18-64,PAYMENTS TO CLIENTS (DIRECT PAYMENTS),REDACTED,REDACTED
04.06.2021,ADULT SOCIAL CARE,REDACTED PERSONAL DATA,806,PHY LTS 18-64,PAYMENTS TO CLIENTS (DIRECT PAYMENTS),REDACTED,REDACTED
04.06.2021,ADULT SOCIAL CARE,REDACTED PERSONAL DATA,"1,137.00",PHY LTS 18-64,PAYMENTS TO CLIENTS (DIRECT PAYMENTS),REDACTED,REDACTED
04.06.2021,ADULT SOCIAL CARE,REDACTED PERSONAL DATA,254.52,PHY LTS 18-64,PAYMENTS TO CLIENTS (DIRECT PAYMENTS),REDACTED,REDACTED
04.06.2021,ADULT SOCIAL CARE,REDACTED PERSONAL DATA,738,PHY LTS 18-64,PAYMENTS TO CLIENTS (DIRECT PAYMENTS),REDACTED,REDACTED
04.06.2021,ADULT SOCIAL CARE,REDACTED PERSONAL DATA,395.92,PHY LTS 18-64,PAYMENTS TO CLIENTS (DIRECT PAYMENTS),REDACTED,REDACTED
04.06.2021,ADULT SOCIAL CARE,REDACTED PERSONAL DATA,"1,131.20",PHY LTS 18-64,PAYMENTS TO CLIENTS (DIRECT PAYMENTS),REDACTED,REDACTED
04.06.2021,ADULT SOCIAL CARE,REDACTED PERSONAL DATA,593.88,PHY LTS 18-64,PAYMENTS TO CLIENTS (DIRECT PAYMENTS),REDACTED,REDACTED
04.06.2021,ADULT SOCIAL CARE,REDACTED PERSONAL DATA,551.48,PHY LTS 18-64,PAYMENTS TO CLIENTS (DIRECT PAYMENTS),REDACTED,REDACTED
04.06.2021,ADULT SOCIAL CARE,REDACTED PERSONAL DATA,"1,371.60",PHY LTS 18-64,PAYMENTS TO CLIENTS (DIRECT PAYMENTS),REDACTED,REDACTED
04.06.2021,ADULT SOCIAL CARE,REDACTED PERSONAL DATA,"1,204.16",PHY LTS 18-64,PAYMENTS TO CLIENTS (DIRECT PAYMENTS),REDACTED,REDACTED
04.06.2021,ADULT SOCIAL CARE,REDACTED PERSONAL DATA,"1,278.48",PHY LTS 18-64,PAYMENTS TO CLIENTS (DIRECT PAYMENTS),REDACTED,REDACTED
04.06.2021,ADULT SOCIAL CARE,REDACTED PERSONAL DATA,"1,481.20",PHY LTS 18-64,PAYMENTS TO CLIENTS (DIRECT PAYMENTS),REDACTED,REDACTED
04.06.2021,ADULT SOCIAL CARE,REDACTED PERSONAL DATA,"3,535.00",PHY LTS 18-64,PAYMENTS TO CLIENTS (DIRECT PAYMENTS),REDACTED,REDACTED
04.06.2021,ADULT SOCIAL CARE,REDACTED PERSONAL DATA,"2,262.40",PHY LTS 18-64,PAYMENTS TO CLIENTS (DIRECT PAYMENTS),REDACTED,REDACTED
04.06.2021,ADULT SOCIAL CARE,REDACTED PERSONAL DATA,585.6,PHY LTS 18-64,PAYMENTS TO CLIENTS (DIRECT PAYMENTS),REDACTED,REDACTED
04.06.2021,ADULT SOCIAL CARE,REDACTED PERSONAL DATA,592.91,PHY LTS 18-64,PAYMENTS TO CLIENTS (DIRECT PAYMENTS),REDACTED,REDACTED
04.06.2021,ADULT SOCIAL CARE,REDACTED PERSONAL DATA,961.52,PHY LTS 18-64,PAYMENTS TO CLIENTS (DIRECT PAYMENTS),REDACTED,REDACTED
04.06.2021,ADULT SOCIAL CARE,REDACTED PERSONAL DATA,"1,024.88",PHY LTS 18-64,PAYMENTS TO CLIENTS (DIRECT PAYMENTS),REDACTED,REDACTED
04.06.2021,ADULT SOCIAL CARE,REDACTED PERSONAL DATA,791.84,PHY LTS 18-64,PAYMENTS TO CLIENTS (DIRECT PAYMENTS),REDACTED,REDACTED
04.06.2021,ADULT SOCIAL CARE,REDACTED PERSONAL DATA,400,PHY LTS 18-64,PAYMENTS TO CLIENTS (DIRECT PAYMENTS),REDACTED,REDACTED
04.06.2021,ADULT SOCIAL CARE,REDACTED PERSONAL DATA,"2,739.80",PHY LTS 18-64,PAYMENTS TO CLIENTS (DIRECT PAYMENTS),REDACTED,REDACTED
04.06.2021,ADULT SOCIAL CARE,REDACTED PERSONAL DATA,296.96,PHY LTS 18-64,PAYMENTS TO CLIENTS (DIRECT PAYMENTS),REDACTED,REDACTED
04.06.2021,ADULT SOCIAL CARE,REDACTED PERSONAL DATA,848.4,PHY LTS 18-64,PAYMENTS TO CLIENTS (DIRECT PAYMENTS),REDACTED,REDACTED
04.06.2021,ADULT SOCIAL CARE,REDACTED PERSONAL DATA,777.72,PHY LTS 18-64,PAYMENTS TO CLIENTS (DIRECT PAYMENTS),REDACTED,REDACTED
04.06.2021,ADULT SOCIAL CARE,REDACTED PERSONAL DATA,707,PHY LTS 18-64,PAYMENTS TO CLIENTS (DIRECT PAYMENTS),REDACTED,REDACTED
04.06.2021,ADULT SOCIAL CARE,REDACTED PERSONAL DATA,933.24,PHY LTS 18-64,PAYMENTS TO CLIENTS (DIRECT PAYMENTS),REDACTED,REDACTED
04.06.2021,ADULT SOCIAL CARE,REDACTED PERSONAL DATA,"2,163.44",PHY LTS 18-64,PAYMENTS TO CLIENTS (DIRECT PAYMENTS),REDACTED,REDACTED
04.06.2021,ADULT SOCIAL CARE,REDACTED PERSONAL DATA,"1,583.68",PHY LTS 18-64,PAYMENTS TO CLIENTS (DIRECT PAYMENTS),REDACTED,REDACTED
04.06.2021,ADULT SOCIAL CARE,REDACTED PERSONAL DATA,751.96,PHY LTS 18-64,PAYMENTS TO CLIENTS (DIRECT PAYMENTS),REDACTED,REDACTED
04.06.2021,ADULT SOCIAL CARE,REDACTED PERSONAL DATA,"1,009.80",PHY LTS 18-64,PAYMENTS TO CLIENTS (DIRECT PAYMENTS),REDACTED,REDACTED
04.06.2021,ADULT SOCIAL CARE,REDACTED PERSONAL DATA,"1,168.80",PHY LTS 18-64,PAYMENTS TO CLIENTS (DIRECT PAYMENTS),REDACTED,REDACTED
04.06.2021,ADULT SOCIAL CARE,REDACTED PERSONAL DATA,"1,583.68",PHY LTS 18-64,PAYMENTS TO CLIENTS (DIRECT PAYMENTS),REDACTED,REDACTED
04.06.2021,ADULT SOCIAL CARE,REDACTED PERSONAL DATA,"1,199.76",PHY LTS 18-64,PAYMENTS TO CLIENTS (DIRECT PAYMENTS),REDACTED,REDACTED
04.06.2021,ADULT SOCIAL CARE,REDACTED PERSONAL DATA,741.16,PHY LTS 18-64,PAYMENTS TO CLIENTS (DIRECT PAYMENTS),REDACTED,REDACTED
04.06.2021,ADULT SOCIAL CARE,REDACTED PERSONAL DATA,339.36,PHY LTS 18-64,PAYMENTS TO CLIENTS (DIRECT PAYMENTS),REDACTED,REDACTED
04.06.2021,ADULT SOCIAL CARE,REDACTED PERSONAL DATA,"2,088.48",PHY LTS 18-64,PAYMENTS TO CLIENTS (DIRECT PAYMENTS),REDACTED,REDACTED
04.06.2021,ADULT SOCIAL CARE,REDACTED PERSONAL DATA,565.6,PHY LTS 18-64,PAYMENTS TO CLIENTS (DIRECT PAYMENTS),REDACTED,REDACTED
04.06.2021,ADULT SOCIAL CARE,REDACTED PERSONAL DATA,769.44,PHY LTS 18-64,PAYMENTS TO CLIENTS (DIRECT PAYMENTS),REDACTED,REDACTED
04.06.2021,ADULT SOCIAL CARE,REDACTED PERSONAL DATA,"1,286.76",PHY LTS 18-64,PAYMENTS TO CLIENTS (DIRECT PAYMENTS),REDACTED,REDACTED
04.06.2021,ADULT SOCIAL CARE,REDACTED PERSONAL DATA,430.08,PHY LTS 18-64,PAYMENTS TO CLIENTS (DIRECT PAYMENTS),REDACTED,REDACTED
04.06.2021,ADULT SOCIAL CARE,REDACTED PERSONAL DATA,494.92,PHY LTS 18-64,PAYMENTS TO CLIENTS (DIRECT PAYMENTS),REDACTED,REDACTED
04.06.2021,ADULT SOCIAL CARE,REDACTED PERSONAL DATA,868.4,PHY LTS 18-64,PAYMENTS TO CLIENTS (DIRECT PAYMENTS),REDACTED,REDACTED
04.06.2021,ADULT SOCIAL CARE,REDACTED PERSONAL DATA,769.44,PHY LTS 18-64,PAYMENTS TO CLIENTS (DIRECT PAYMENTS),REDACTED,REDACTED
04.06.2021,ADULT SOCIAL CARE,REDACTED PERSONAL DATA,"1,023.96",PHY LTS 18-64,PAYMENTS TO CLIENTS (DIRECT PAYMENTS),REDACTED,REDACTED
04.06.2021,ADULT SOCIAL CARE,REDACTED PERSONAL DATA,472.48,PHY LTS 18-64,PAYMENTS TO CLIENTS (DIRECT PAYMENTS),REDACTED,REDACTED
04.06.2021,ADULT SOCIAL CARE,PEOPLEPLUS ILS,-514.36,PHY LTS 18-64,PAYMENTS TO CLIENTS (DIRECT PAYMENTS),2103273340,1000061886
04.06.2021,ADULT SOCIAL CARE,PEOPLEPLUS ILS,295.04,PHY LTS 18-64,PAYMENTS TO CLIENTS (DIRECT PAYMENTS),2103273412,1000061886
04.06.2021,ADULT SOCIAL CARE,PEOPLEPLUS ILS,307.56,PHY LTS 18-64,PAYMENTS TO CLIENTS (DIRECT PAYMENTS),2103273303,1000061886
04.06.2021,ADULT SOCIAL CARE,PEOPLEPLUS ILS,310.4,PHY LTS 18-64,PAYMENTS TO CLIENTS (DIRECT PAYMENTS),2103273186,1000061886
04.06.2021,ADULT SOCIAL CARE,PEOPLEPLUS ILS,365,PHY LTS 18-64,PAYMENTS TO CLIENTS (DIRECT PAYMENTS),2103273434,1000061886
04.06.2021,ADULT SOCIAL CARE,PEOPLEPLUS ILS,387.52,PHY LTS 18-64,PAYMENTS TO CLIENTS (DIRECT PAYMENTS),2103273209,1000061886
04.06.2021,ADULT SOCIAL CARE,PEOPLEPLUS ILS,388.4,PHY LTS 18-64,PAYMENTS TO CLIENTS (DIRECT PAYMENTS),2103273100,1000061886
04.06.2021,ADULT SOCIAL CARE,PEOPLEPLUS ILS,405.46,PHY LTS 18-64,PAYMENTS TO CLIENTS (DIRECT PAYMENTS),2103273433,1000061886
04.06.2021,ADULT SOCIAL CARE,PEOPLEPLUS ILS,411.8,PHY LTS 18-64,PAYMENTS TO CLIENTS (DIRECT PAYMENTS),2103273057,1000061886
04.06.2021,ADULT SOCIAL CARE,PEOPLEPLUS ILS,429.92,PHY LTS 18-64,PAYMENTS TO CLIENTS (DIRECT PAYMENTS),2103272868,1000061886
04.06.2021,ADULT SOCIAL CARE,PEOPLEPLUS ILS,447.4,PHY LTS 18-64,PAYMENTS TO CLIENTS (DIRECT PAYMENTS),2103273094,1000061886
04.06.2021,ADULT SOCIAL CARE,PEOPLEPLUS ILS,472.36,PHY LTS 18-64,PAYMENTS TO CLIENTS (DIRECT PAYMENTS),2103273245,1000061886
04.06.2021,ADULT SOCIAL CARE,PEOPLEPLUS ILS,504,PHY LTS 18-64,PAYMENTS TO CLIENTS (DIRECT PAYMENTS),2103272954,1000061886
04.06.2021,ADULT SOCIAL CARE,PEOPLEPLUS ILS,505.4,PHY LTS 18-64,PAYMENTS TO CLIENTS (DIRECT PAYMENTS),2103273099,1000061886
04.06.2021,ADULT SOCIAL CARE,PEOPLEPLUS ILS,579.6,PHY LTS 18-64,PAYMENTS TO CLIENTS (DIRECT PAYMENTS),2103273118,1000061886
04.06.2021,ADULT SOCIAL CARE,PEOPLEPLUS ILS,585.48,PHY LTS 18-64,PAYMENTS TO CLIENTS (DIRECT PAYMENTS),2103273224,1000061886
04.06.2021,ADULT SOCIAL CARE,PEOPLEPLUS ILS,587.32,PHY LTS 18-64,PAYMENTS TO CLIENTS (DIRECT PAYMENTS),2103272944,1000061886
04.06.2021,ADULT SOCIAL CARE,PEOPLEPLUS ILS,598.4,PHY LTS 18-64,PAYMENTS TO CLIENTS (DIRECT PAYMENTS),2103272888,1000061886
04.06.2021,ADULT SOCIAL CARE,PEOPLEPLUS ILS,599.6,PHY LTS 18-64,PAYMENTS TO CLIENTS (DIRECT PAYMENTS),2103272989,1000061886
04.06.2021,ADULT SOCIAL CARE,PEOPLEPLUS ILS,608.04,PHY LTS 18-64,PAYMENTS TO CLIENTS (DIRECT PAYMENTS),2103273130,1000061886
04.06.2021,ADULT SOCIAL CARE,PEOPLEPLUS ILS,613.76,PHY LTS 18-64,PAYMENTS TO CLIENTS (DIRECT PAYMENTS),2103272906,1000061886
04.06.2021,ADULT SOCIAL CARE,PEOPLEPLUS ILS,613.76,PHY LTS 18-64,PAYMENTS TO CLIENTS (DIRECT PAYMENTS),2103273243,1000061886
04.06.2021,ADULT SOCIAL CARE,PEOPLEPLUS ILS,613.76,PHY LTS 18-64,PAYMENTS TO CLIENTS (DIRECT PAYMENTS),2103273441,1000061886
04.06.2021,ADULT SOCIAL CARE,PEOPLEPLUS ILS,627.88,PHY LTS 18-64,PAYMENTS TO CLIENTS (DIRECT PAYMENTS),2103273329,1000061886
04.06.2021,ADULT SOCIAL CARE,PEOPLEPLUS ILS,627.88,PHY LTS 18-64,PAYMENTS TO CLIENTS (DIRECT PAYMENTS),2103273353,1000061886
04.06.2021,ADULT SOCIAL CARE,PEOPLEPLUS ILS,636.32,PHY LTS 18-64,PAYMENTS TO CLIENTS (DIRECT PAYMENTS),2103272915,1000061886
04.06.2021,ADULT SOCIAL CARE,PEOPLEPLUS ILS,642.04,PHY LTS 18-64,PAYMENTS TO CLIENTS (DIRECT PAYMENTS),2103272902,1000061886
04.06.2021,ADULT SOCIAL CARE,PEOPLEPLUS ILS,642.04,PHY LTS 18-64,PAYMENTS TO CLIENTS (DIRECT PAYMENTS),2103273208,1000061886
04.06.2021,ADULT SOCIAL CARE,PEOPLEPLUS ILS,670,PHY LTS 18-64,PAYMENTS TO CLIENTS (DIRECT PAYMENTS),2103273309,1000061886
04.06.2021,ADULT SOCIAL CARE,PEOPLEPLUS ILS,670.32,PHY LTS 18-64,PAYMENTS TO CLIENTS (DIRECT PAYMENTS),2103272776,1000061886
04.06.2021,ADULT SOCIAL CARE,PEOPLEPLUS ILS,678.72,PHY LTS 18-64,PAYMENTS TO CLIENTS (DIRECT PAYMENTS),2103273004,1000061886
04.06.2021,ADULT SOCIAL CARE,PEOPLEPLUS ILS,678.72,PHY LTS 18-64,PAYMENTS TO CLIENTS (DIRECT PAYMENTS),2103273124,1000061886
04.06.2021,ADULT SOCIAL CARE,PEOPLEPLUS ILS,684.44,PHY LTS 18-64,PAYMENTS TO CLIENTS (DIRECT PAYMENTS),2103273448,1000061886
04.06.2021,ADULT SOCIAL CARE,PEOPLEPLUS ILS,741,PHY LTS 18-64,PAYMENTS TO CLIENTS (DIRECT PAYMENTS),2103273398,1000061886
04.06.2021,ADULT SOCIAL CARE,PEOPLEPLUS ILS,769.28,PHY LTS 18-64,PAYMENTS TO CLIENTS (DIRECT PAYMENTS),2103273236,1000061886
04.06.2021,ADULT SOCIAL CARE,PEOPLEPLUS ILS,769.28,PHY LTS 18-64,PAYMENTS TO CLIENTS (DIRECT PAYMENTS),2103273269,1000061886
04.06.2021,ADULT SOCIAL CARE,PEOPLEPLUS ILS,786.2,PHY LTS 18-64,PAYMENTS TO CLIENTS (DIRECT PAYMENTS),2103273352,1000061886
04.06.2021,ADULT SOCIAL CARE,PEOPLEPLUS ILS,796.88,PHY LTS 18-64,PAYMENTS TO CLIENTS (DIRECT PAYMENTS),2103272793,1000061886
04.06.2021,ADULT SOCIAL CARE,PEOPLEPLUS ILS,811.72,PHY LTS 18-64,PAYMENTS TO CLIENTS (DIRECT PAYMENTS),2103273180,1000061886
04.06.2021,ADULT SOCIAL CARE,PEOPLEPLUS ILS,840,PHY LTS 18-64,PAYMENTS TO CLIENTS (DIRECT PAYMENTS),2103273102,1000061886
04.06.2021,ADULT SOCIAL CARE,PEOPLEPLUS ILS,854.88,PHY LTS 18-64,PAYMENTS TO CLIENTS (DIRECT PAYMENTS),2103273059,1000061886
04.06.2021,ADULT SOCIAL CARE,PEOPLEPLUS ILS,894.76,PHY LTS 18-64,PAYMENTS TO CLIENTS (DIRECT PAYMENTS),2103273061,1000061886
04.06.2021,ADULT SOCIAL CARE,PEOPLEPLUS ILS,938.96,PHY LTS 18-64,PAYMENTS TO CLIENTS (DIRECT PAYMENTS),2103273091,1000061886
04.06.2021,ADULT SOCIAL CARE,PEOPLEPLUS ILS,947.24,PHY LTS 18-64,PAYMENTS TO CLIENTS (DIRECT PAYMENTS),2103272904,1000061886
04.06.2021,ADULT SOCIAL CARE,PEOPLEPLUS ILS,947.4,PHY LTS 18-64,PAYMENTS TO CLIENTS (DIRECT PAYMENTS),2103273029,1000061886
04.06.2021,ADULT SOCIAL CARE,PEOPLEPLUS ILS,978.32,PHY LTS 18-64,PAYMENTS TO CLIENTS (DIRECT PAYMENTS),2103272818,1000061886
04.06.2021,ADULT SOCIAL CARE,PEOPLEPLUS ILS,981.4,PHY LTS 18-64,PAYMENTS TO CLIENTS (DIRECT PAYMENTS),2103273389,1000061886
04.06.2021,ADULT SOCIAL CARE,PEOPLEPLUS ILS,"1,009.68",PHY LTS 18-64,PAYMENTS TO CLIENTS (DIRECT PAYMENTS),2103272737,1000061886
04.06.2021,ADULT SOCIAL CARE,PEOPLEPLUS ILS,"1,023.80",PHY LTS 18-64,PAYMENTS TO CLIENTS (DIRECT PAYMENTS),2103273331,1000061886
04.06.2021,ADULT SOCIAL CARE,PEOPLEPLUS ILS,"1,052.64",PHY LTS 18-64,PAYMENTS TO CLIENTS (DIRECT PAYMENTS),2103272797,1000061886
04.06.2021,ADULT SOCIAL CARE,PEOPLEPLUS ILS,"1,117.08",PHY LTS 18-64,PAYMENTS TO CLIENTS (DIRECT PAYMENTS),2103273348,1000061886
04.06.2021,ADULT SOCIAL CARE,PEOPLEPLUS ILS,"1,122.80",PHY LTS 18-64,PAYMENTS TO CLIENTS (DIRECT PAYMENTS),2103273242,1000061886
04.06.2021,ADULT SOCIAL CARE,PEOPLEPLUS ILS,"1,150.52",PHY LTS 18-64,PAYMENTS TO CLIENTS (DIRECT PAYMENTS),2103273422,1000061886
04.06.2021,ADULT SOCIAL CARE,PEOPLEPLUS ILS,"1,165.20",PHY LTS 18-64,PAYMENTS TO CLIENTS (DIRECT PAYMENTS),2103272740,1000061886
04.06.2021,ADULT SOCIAL CARE,PEOPLEPLUS ILS,"1,168.24",PHY LTS 18-64,PAYMENTS TO CLIENTS (DIRECT PAYMENTS),2103273371,1000061886
04.06.2021,ADULT SOCIAL CARE,PEOPLEPLUS ILS,"1,187.76",PHY LTS 18-64,PAYMENTS TO CLIENTS (DIRECT PAYMENTS),2103272811,1000061886
04.06.2021,ADULT SOCIAL CARE,PEOPLEPLUS ILS,"1,193.48",PHY LTS 18-64,PAYMENTS TO CLIENTS (DIRECT PAYMENTS),2103273447,1000061886
04.06.2021,ADULT SOCIAL CARE,PEOPLEPLUS ILS,"1,250.04",PHY LTS 18-64,PAYMENTS TO CLIENTS (DIRECT PAYMENTS),2103273457,1000061886
04.06.2021,ADULT SOCIAL CARE,PEOPLEPLUS ILS,"1,278.32",PHY LTS 18-64,PAYMENTS TO CLIENTS (DIRECT PAYMENTS),2103273431,1000061886
04.06.2021,ADULT SOCIAL CARE,PEOPLEPLUS ILS,"1,330.00",PHY LTS 18-64,PAYMENTS TO CLIENTS (DIRECT PAYMENTS),2103272940,1000061886
04.06.2021,ADULT SOCIAL CARE,PEOPLEPLUS ILS,"1,371.44",PHY LTS 18-64,PAYMENTS TO CLIENTS (DIRECT PAYMENTS),2103273160,1000061886
04.06.2021,ADULT SOCIAL CARE,PEOPLEPLUS ILS,"1,412.16",PHY LTS 18-64,PAYMENTS TO CLIENTS (DIRECT PAYMENTS),2103273104,1000061886
04.06.2021,ADULT SOCIAL CARE,PEOPLEPLUS ILS,"1,426.00",PHY LTS 18-64,PAYMENTS TO CLIENTS (DIRECT PAYMENTS),2103272792,1000061886
04.06.2021,ADULT SOCIAL CARE,PEOPLEPLUS ILS,"1,624.00",PHY LTS 18-64,PAYMENTS TO CLIENTS (DIRECT PAYMENTS),2103273436,1000061886
04.06.2021,ADULT SOCIAL CARE,PEOPLEPLUS ILS,"1,733.56",PHY LTS 18-64,PAYMENTS TO CLIENTS (DIRECT PAYMENTS),2103273060,1000061886
04.06.2021,ADULT SOCIAL CARE,PEOPLEPLUS ILS,"1,909.40",PHY LTS 18-64,PAYMENTS TO CLIENTS (DIRECT PAYMENTS),2103272896,1000061886
04.06.2021,ADULT SOCIAL CARE,PEOPLEPLUS ILS,"1,925.57",PHY LTS 18-64,PAYMENTS TO CLIENTS (DIRECT PAYMENTS),2103273073,1000061886
04.06.2021,ADULT SOCIAL CARE,PEOPLEPLUS ILS,"2,013.60",PHY LTS 18-64,PAYMENTS TO CLIENTS (DIRECT PAYMENTS),2103272893,1000061886
04.06.2021,ADULT SOCIAL CARE,PEOPLEPLUS ILS,"2,173.00",PHY LTS 18-64,PAYMENTS TO CLIENTS (DIRECT PAYMENTS),2103272982,1000061886
04.06.2021,ADULT SOCIAL CARE,PEOPLEPLUS ILS,"2,646.80",PHY LTS 18-64,PAYMENTS TO CLIENTS (DIRECT PAYMENTS),2103273343,1000061886
04.06.2021,ADULT SOCIAL CARE,PEOPLEPLUS ILS,"3,307.52",PHY LTS 18-64,PAYMENTS TO CLIENTS (DIRECT PAYMENTS),2103273051,1000061886
04.06.2021,ADULT SOCIAL CARE,PEOPLEPLUS ILS,"3,576.40",PHY LTS 18-64,PAYMENTS TO CLIENTS (DIRECT PAYMENTS),2103273420,1000061886
04.06.2021,ADULT SOCIAL CARE,PEOPLEPLUS ILS,"4,118.92",PHY LTS 18-64,PAYMENTS TO CLIENTS (DIRECT PAYMENTS),2103273089,1000061886
04.06.2021,ADULT SOCIAL CARE,PEOPLEPLUS ILS,"4,204.35",PHY LTS 18-64,PAYMENTS TO CLIENTS (DIRECT PAYMENTS),2103272863,1000061886
04.06.2021,ADULT SOCIAL CARE,PEOPLEPLUS ILS,"4,973.06",PHY LTS 18-64,PAYMENTS TO CLIENTS (DIRECT PAYMENTS),2103273072,1000061886
04.06.2021,ADULT SOCIAL CARE,FRESH IDEAS & SOLUTIONS SERVICES CIC,712.72,PHY LTS 18-64,PAYMENTS TO CLIENTS (DIRECT PAYMENTS),2103272783,1000070832
04.06.2021,ADULT SOCIAL CARE,FRESH IDEAS & SOLUTIONS SERVICES CIC,870,PHY LTS 18-64,PAYMENTS TO CLIENTS (DIRECT PAYMENTS),2103272937,1000070832
04.06.2021,ADULT SOCIAL CARE,FRESH IDEAS & SOLUTIONS SERVICES CIC,"1,094.52",PHY LTS 18-64,PAYMENTS TO CLIENTS (DIRECT PAYMENTS),2103272859,1000070832
04.06.2021,ADULT SOCIAL CARE,FRESH IDEAS & SOLUTIONS SERVICES CIC,"1,108.64",PHY LTS 18-64,PAYMENTS TO CLIENTS (DIRECT PAYMENTS),2103273425,1000070832
04.06.2021,ADULT SOCIAL CARE,BLACK ELDER GROUP SWK,540,PHY LTS 65+,DAYCARE,2103273113,1000067369
04.06.2021,ADULT SOCIAL CARE,SOUTHWARK CYPRIOT DAY CENTRE LTD,288,PHY LTS 65+,DAYCARE,2103273039,1000067736
04.06.2021,ADULT SOCIAL CARE,REDACTED PERSONAL DATA,-506.96,PHY LTS 65+,DISCRETIONARY FLEXIBLE FEES & INCOME,REDACTED,REDACTED
04.06.2021,ADULT SOCIAL CARE,PEOPLEPLUS ILS,-779.8,PHY LTS 65+,DISCRETIONARY FLEXIBLE FEES & INCOME,2103273068,1000061886
04.06.2021,ADULT SOCIAL CARE,PEOPLEPLUS ILS,-438.52,PHY LTS 65+,DISCRETIONARY FLEXIBLE FEES & INCOME,2103273306,1000061886
04.06.2021,ADULT SOCIAL CARE,PEOPLEPLUS ILS,-331.4,PHY LTS 65+,DISCRETIONARY FLEXIBLE FEES & INCOME,2103273196,1000061886
04.06.2021,ADULT SOCIAL CARE,PEOPLEPLUS ILS,-275.08,PHY LTS 65+,DISCRETIONARY FLEXIBLE FEES & INCOME,2103273294,1000061886
04.06.2021,ADULT SOCIAL CARE,PROFAD CARE AGENCY,291.6,PHY LTS 65+,HOMECARE - C&V,2103272447,1000079032
04.06.2021,ADULT SOCIAL CARE,PROFAD CARE AGENCY,544.32,PHY LTS 65+,HOMECARE - C&V,2103272473,1000079032
04.06.2021,ADULT SOCIAL CARE,PROFAD CARE AGENCY,871.56,PHY LTS 65+,HOMECARE - C&V,2103272497,1000079032
04.06.2021,ADULT SOCIAL CARE,PROFAD CARE AGENCY,"1,069.20",PHY LTS 65+,HOMECARE - C&V,2103272438,1000079032
04.06.2021,ADULT SOCIAL CARE,PROFAD CARE AGENCY,"1,166.40",PHY LTS 65+,HOMECARE - C&V,2103272444,1000079032
04.06.2021,ADULT SOCIAL CARE,PROFAD CARE AGENCY,"1,788.48",PHY LTS 65+,HOMECARE - C&V,2103272459,1000079032
04.06.2021,ADULT SOCIAL CARE,PROFAD CARE AGENCY,"2,585.52",PHY LTS 65+,HOMECARE - C&V,2103272424,1000079032
04.06.2021,ADULT SOCIAL CARE,PROFAD CARE AGENCY,"2,692.44",PHY LTS 65+,HOMECARE - C&V,2103272477,1000079032
04.06.2021,ADULT SOCIAL CARE,PROFAD CARE AGENCY,301.32,PHY LTS 65+,HOMECARE - SPOT,2103272432,1000079032
04.06.2021,ADULT SOCIAL CARE,PROFAD CARE AGENCY,311.04,PHY LTS 65+,HOMECARE - SPOT,2103272414,1000079032
04.06.2021,ADULT SOCIAL CARE,PROFAD CARE AGENCY,311.04,PHY LTS 65+,HOMECARE - SPOT,2103272487,1000079032
04.06.2021,ADULT SOCIAL CARE,PROFAD CARE AGENCY,408.24,PHY LTS 65+,HOMECARE - SPOT,2103272442,1000079032
04.06.2021,ADULT SOCIAL CARE,PROFAD CARE AGENCY,408.24,PHY LTS 65+,HOMECARE - SPOT,2103272445,1000079032
04.06.2021,ADULT SOCIAL CARE,PROFAD CARE AGENCY,408.24,PHY LTS 65+,HOMECARE - SPOT,2103272495,1000079032
04.06.2021,ADULT SOCIAL CARE,PROFAD CARE AGENCY,413.1,PHY LTS 65+,HOMECARE - SPOT,2103272492,1000079032
04.06.2021,ADULT SOCIAL CARE,PROFAD CARE AGENCY,486,PHY LTS 65+,HOMECARE - SPOT,2103272419,1000079032
04.06.2021,ADULT SOCIAL CARE,PROFAD CARE AGENCY,524.88,PHY LTS 65+,HOMECARE - SPOT,2103272413,1000079032
04.06.2021,ADULT SOCIAL CARE,PROFAD CARE AGENCY,588.06,PHY LTS 65+,HOMECARE - SPOT,2103272462,1000079032
04.06.2021,ADULT SOCIAL CARE,PROFAD CARE AGENCY,602.64,PHY LTS 65+,HOMECARE - SPOT,2103272416,1000079032
04.06.2021,ADULT SOCIAL CARE,PROFAD CARE AGENCY,641.52,PHY LTS 65+,HOMECARE - SPOT,2103272485,1000079032
04.06.2021,ADULT SOCIAL CARE,PROFAD CARE AGENCY,660.96,PHY LTS 65+,HOMECARE - SPOT,2103272410,1000079032
04.06.2021,ADULT SOCIAL CARE,PROFAD CARE AGENCY,680.4,PHY LTS 65+,HOMECARE - SPOT,2103272475,1000079032
04.06.2021,ADULT SOCIAL CARE,PROFAD CARE AGENCY,699.84,PHY LTS 65+,HOMECARE - SPOT,2103272478,1000079032
04.06.2021,ADULT SOCIAL CARE,PROFAD CARE AGENCY,738.72,PHY LTS 65+,HOMECARE - SPOT,2103272488,1000079032
04.06.2021,ADULT SOCIAL CARE,PROFAD CARE AGENCY,758.16,PHY LTS 65+,HOMECARE - SPOT,2103272429,1000079032
04.06.2021,ADULT SOCIAL CARE,PROFAD CARE AGENCY,758.16,PHY LTS 65+,HOMECARE - SPOT,2103272483,1000079032
04.06.2021,ADULT SOCIAL CARE,PROFAD CARE AGENCY,758.16,PHY LTS 65+,HOMECARE - SPOT,2103272486,1000079032
04.06.2021,ADULT SOCIAL CARE,PROFAD CARE AGENCY,797.04,PHY LTS 65+,HOMECARE - SPOT,2103272425,1000079032
04.06.2021,ADULT SOCIAL CARE,PROFAD CARE AGENCY,816.48,PHY LTS 65+,HOMECARE - SPOT,2103272426,1000079032
04.06.2021,ADULT SOCIAL CARE,PROFAD CARE AGENCY,816.48,PHY LTS 65+,HOMECARE - SPOT,2103272499,1000079032
04.06.2021,ADULT SOCIAL CARE,PROFAD CARE AGENCY,952.56,PHY LTS 65+,HOMECARE - SPOT,2103272451,1000079032
04.06.2021,ADULT SOCIAL CARE,PROFAD CARE AGENCY,"1,010.88",PHY LTS 65+,HOMECARE - SPOT,2103272454,1000079032
04.06.2021,ADULT SOCIAL CARE,PROFAD CARE AGENCY,"1,030.32",PHY LTS 65+,HOMECARE - SPOT,2103272474,1000079032
04.06.2021,ADULT SOCIAL CARE,PROFAD CARE AGENCY,"1,088.64",PHY LTS 65+,HOMECARE - SPOT,2103272430,1000079032
04.06.2021,ADULT SOCIAL CARE,PROFAD CARE AGENCY,"1,088.64",PHY LTS 65+,HOMECARE - SPOT,2103272481,1000079032
04.06.2021,ADULT SOCIAL CARE,PROFAD CARE AGENCY,"1,224.72",PHY LTS 65+,HOMECARE - SPOT,2103272422,1000079032
04.06.2021,ADULT SOCIAL CARE,PROFAD CARE AGENCY,"1,224.72",PHY LTS 65+,HOMECARE - SPOT,2103272434,1000079032
04.06.2021,ADULT SOCIAL CARE,PROFAD CARE AGENCY,"1,302.48",PHY LTS 65+,HOMECARE - SPOT,2103272441,1000079032
04.06.2021,ADULT SOCIAL CARE,PROFAD CARE AGENCY,"1,302.48",PHY LTS 65+,HOMECARE - SPOT,2103272461,1000079032
04.06.2021,ADULT SOCIAL CARE,PROFAD CARE AGENCY,"1,341.36",PHY LTS 65+,HOMECARE - SPOT,2103272466,1000079032
04.06.2021,ADULT SOCIAL CARE,PROFAD CARE AGENCY,"1,380.24",PHY LTS 65+,HOMECARE - SPOT,2103272449,1000079032
04.06.2021,ADULT SOCIAL CARE,PROFAD CARE AGENCY,"1,642.68",PHY LTS 65+,HOMECARE - SPOT,2103272450,1000079032
04.06.2021,ADULT SOCIAL CARE,PROFAD CARE AGENCY,"1,652.40",PHY LTS 65+,HOMECARE - SPOT,2103272493,1000079032
04.06.2021,ADULT SOCIAL CARE,PROFAD CARE AGENCY,"1,710.72",PHY LTS 65+,HOMECARE - SPOT,2103272439,1000079032
04.06.2021,ADULT SOCIAL CARE,PROFAD CARE AGENCY,"1,905.12",PHY LTS 65+,HOMECARE - SPOT,2103272489,1000079032
04.06.2021,ADULT SOCIAL CARE,PROFAD CARE AGENCY,"2,122.77",PHY LTS 65+,HOMECARE - SPOT,2103272436,1000079032
04.06.2021,ADULT SOCIAL CARE,PROFAD CARE AGENCY,"2,177.28",PHY LTS 65+,HOMECARE - SPOT,2103272491,1000079032
04.06.2021,ADULT SOCIAL CARE,PROFAD CARE AGENCY,"2,449.44",PHY LTS 65+,HOMECARE - SPOT,2103272435,1000079032
04.06.2021,ADULT SOCIAL CARE,PROFAD CARE AGENCY,"2,507.76",PHY LTS 65+,HOMECARE - SPOT,2103272453,1000079032
04.06.2021,ADULT SOCIAL CARE,PROFAD CARE AGENCY,"2,799.36",PHY LTS 65+,HOMECARE - SPOT,2103272471,1000079032
04.06.2021,ADULT SOCIAL CARE,PROFAD CARE AGENCY,"2,838.24",PHY LTS 65+,HOMECARE - SPOT,2103272484,1000079032
04.06.2021,ADULT SOCIAL CARE,PROFAD CARE AGENCY,"3,421.44",PHY LTS 65+,HOMECARE - SPOT,2103272420,1000079032
04.06.2021,ADULT SOCIAL CARE,REDACTED PERSONAL DATA,494.92,PHY LTS 65+,PAYMENTS TO CLIENTS (DIRECT PAYMENTS),REDACTED,REDACTED
04.06.2021,ADULT SOCIAL CARE,REDACTED PERSONAL DATA,"1,555.40",PHY LTS 65+,PAYMENTS TO CLIENTS (DIRECT PAYMENTS),REDACTED,REDACTED
04.06.2021,ADULT SOCIAL CARE,REDACTED PERSONAL DATA,494.92,PHY LTS 65+,PAYMENTS TO CLIENTS (DIRECT PAYMENTS),REDACTED,REDACTED
04.06.2021,ADULT SOCIAL CARE,REDACTED PERSONAL DATA,791.84,PHY LTS 65+,PAYMENTS TO CLIENTS (DIRECT PAYMENTS),REDACTED,REDACTED
04.06.2021,ADULT SOCIAL CARE,REDACTED PERSONAL DATA,"1,201.92",PHY LTS 65+,PAYMENTS TO CLIENTS (DIRECT PAYMENTS),REDACTED,REDACTED
04.06.2021,ADULT SOCIAL CARE,REDACTED PERSONAL DATA,888.4,PHY LTS 65+,PAYMENTS TO CLIENTS (DIRECT PAYMENTS),REDACTED,REDACTED
04.06.2021,ADULT SOCIAL CARE,REDACTED PERSONAL DATA,"1,498.84",PHY LTS 65+,PAYMENTS TO CLIENTS (DIRECT PAYMENTS),REDACTED,REDACTED
04.06.2021,ADULT SOCIAL CARE,REDACTED PERSONAL DATA,551.48,PHY LTS 65+,PAYMENTS TO CLIENTS (DIRECT PAYMENTS),REDACTED,REDACTED
04.06.2021,ADULT SOCIAL CARE,REDACTED PERSONAL DATA,"2,132.72",PHY LTS 65+,PAYMENTS TO CLIENTS (DIRECT PAYMENTS),REDACTED,REDACTED
04.06.2021,ADULT SOCIAL CARE,REDACTED PERSONAL DATA,"1,490.56",PHY LTS 65+,PAYMENTS TO CLIENTS (DIRECT PAYMENTS),REDACTED,REDACTED
04.06.2021,ADULT SOCIAL CARE,REDACTED PERSONAL DATA,994,PHY LTS 65+,PAYMENTS TO CLIENTS (DIRECT PAYMENTS),REDACTED,REDACTED
04.06.2021,ADULT SOCIAL CARE,REDACTED PERSONAL DATA,868.4,PHY LTS 65+,PAYMENTS TO CLIENTS (DIRECT PAYMENTS),REDACTED,REDACTED
04.06.2021,ADULT SOCIAL CARE,REDACTED PERSONAL DATA,395.92,PHY LTS 65+,PAYMENTS TO CLIENTS (DIRECT PAYMENTS),REDACTED,REDACTED
04.06.2021,ADULT SOCIAL CARE,REDACTED PERSONAL DATA,642.16,PHY LTS 65+,PAYMENTS TO CLIENTS (DIRECT PAYMENTS),REDACTED,REDACTED
04.06.2021,ADULT SOCIAL CARE,REDACTED PERSONAL DATA,"1,651.00",PHY LTS 65+,PAYMENTS TO CLIENTS (DIRECT PAYMENTS),REDACTED,REDACTED
04.06.2021,ADULT SOCIAL CARE,REDACTED PERSONAL DATA,"1,315.04",PHY LTS 65+,PAYMENTS TO CLIENTS (DIRECT PAYMENTS),REDACTED,REDACTED
04.06.2021,ADULT SOCIAL CARE,REDACTED PERSONAL DATA,"3,194.00",PHY LTS 65+,PAYMENTS TO CLIENTS (DIRECT PAYMENTS),REDACTED,REDACTED
04.06.2021,ADULT SOCIAL CARE,REDACTED PERSONAL DATA,"2,282.40",PHY LTS 65+,PAYMENTS TO CLIENTS (DIRECT PAYMENTS),REDACTED,REDACTED
04.06.2021,ADULT SOCIAL CARE,REDACTED PERSONAL DATA,896.72,PHY LTS 65+,PAYMENTS TO CLIENTS (DIRECT PAYMENTS),REDACTED,REDACTED
04.06.2021,ADULT SOCIAL CARE,REDACTED PERSONAL DATA,549.92,PHY LTS 65+,PAYMENTS TO CLIENTS (DIRECT PAYMENTS),REDACTED,REDACTED
04.06.2021,ADULT SOCIAL CARE,REDACTED PERSONAL DATA,834.28,PHY LTS 65+,PAYMENTS TO CLIENTS (DIRECT PAYMENTS),REDACTED,REDACTED
04.06.2021,ADULT SOCIAL CARE,REDACTED PERSONAL DATA,"1,603.68",PHY LTS 65+,PAYMENTS TO CLIENTS (DIRECT PAYMENTS),REDACTED,REDACTED
04.06.2021,ADULT SOCIAL CARE,REDACTED PERSONAL DATA,"16,671.89",PHY LTS 65+,PAYMENTS TO CLIENTS (DIRECT PAYMENTS),REDACTED,REDACTED
04.06.2021,ADULT SOCIAL CARE,PEOPLEPLUS ILS,"-11,024.12",PHY LTS 65+,PAYMENTS TO CLIENTS (DIRECT PAYMENTS),2103273453,1000061886
04.06.2021,ADULT SOCIAL CARE,PEOPLEPLUS ILS,"-1,293.90",PHY LTS 65+,PAYMENTS TO CLIENTS (DIRECT PAYMENTS),2103273273,1000061886
04.06.2021,ADULT SOCIAL CARE,PEOPLEPLUS ILS,296.8,PHY LTS 65+,PAYMENTS TO CLIENTS (DIRECT PAYMENTS),2103272782,1000061886
04.06.2021,ADULT SOCIAL CARE,PEOPLEPLUS ILS,310.96,PHY LTS 65+,PAYMENTS TO CLIENTS (DIRECT PAYMENTS),2103273095,1000061886
04.06.2021,ADULT SOCIAL CARE,PEOPLEPLUS ILS,311.08,PHY LTS 65+,PAYMENTS TO CLIENTS (DIRECT PAYMENTS),2103272911,1000061886
04.06.2021,ADULT SOCIAL CARE,PEOPLEPLUS ILS,353.52,PHY LTS 65+,PAYMENTS TO CLIENTS (DIRECT PAYMENTS),2103273205,1000061886
04.06.2021,ADULT SOCIAL CARE,PEOPLEPLUS ILS,365,PHY LTS 65+,PAYMENTS TO CLIENTS (DIRECT PAYMENTS),2103273248,1000061886
04.06.2021,ADULT SOCIAL CARE,PEOPLEPLUS ILS,365.76,PHY LTS 65+,PAYMENTS TO CLIENTS (DIRECT PAYMENTS),2103272919,1000061886
04.06.2021,ADULT SOCIAL CARE,PEOPLEPLUS ILS,421.56,PHY LTS 65+,PAYMENTS TO CLIENTS (DIRECT PAYMENTS),2103273117,1000061886
04.06.2021,ADULT SOCIAL CARE,PEOPLEPLUS ILS,444.08,PHY LTS 65+,PAYMENTS TO CLIENTS (DIRECT PAYMENTS),2103273268,1000061886
04.06.2021,ADULT SOCIAL CARE,PEOPLEPLUS ILS,509.04,PHY LTS 65+,PAYMENTS TO CLIENTS (DIRECT PAYMENTS),2103273372,1000061886
04.06.2021,ADULT SOCIAL CARE,PEOPLEPLUS ILS,552.2,PHY LTS 65+,PAYMENTS TO CLIENTS (DIRECT PAYMENTS),2103273098,1000061886
04.06.2021,ADULT SOCIAL CARE,PEOPLEPLUS ILS,573.2,PHY LTS 65+,PAYMENTS TO CLIENTS (DIRECT PAYMENTS),2103272943,1000061886
04.06.2021,ADULT SOCIAL CARE,PEOPLEPLUS ILS,587.32,PHY LTS 65+,PAYMENTS TO CLIENTS (DIRECT PAYMENTS),2103273249,1000061886
04.06.2021,ADULT SOCIAL CARE,PEOPLEPLUS ILS,620.12,PHY LTS 65+,PAYMENTS TO CLIENTS (DIRECT PAYMENTS),2103272941,1000061886
04.06.2021,ADULT SOCIAL CARE,PEOPLEPLUS ILS,622.16,PHY LTS 65+,PAYMENTS TO CLIENTS (DIRECT PAYMENTS),2103273449,1000061886
04.06.2021,ADULT SOCIAL CARE,PEOPLEPLUS ILS,627.88,PHY LTS 65+,PAYMENTS TO CLIENTS (DIRECT PAYMENTS),2103272756,1000061886
04.06.2021,ADULT SOCIAL CARE,PEOPLEPLUS ILS,692.6,PHY LTS 65+,PAYMENTS TO CLIENTS (DIRECT PAYMENTS),2103273062,1000061886
04.06.2021,ADULT SOCIAL CARE,PEOPLEPLUS ILS,726.88,PHY LTS 65+,PAYMENTS TO CLIENTS (DIRECT PAYMENTS),2103273167,1000061886
04.06.2021,ADULT SOCIAL CARE,PEOPLEPLUS ILS,739.4,PHY LTS 65+,PAYMENTS TO CLIENTS (DIRECT PAYMENTS),2103272826,1000061886
04.06.2021,ADULT SOCIAL CARE,PEOPLEPLUS ILS,741,PHY LTS 65+,PAYMENTS TO CLIENTS (DIRECT PAYMENTS),2103273044,1000061886
04.06.2021,ADULT SOCIAL CARE,PEOPLEPLUS ILS,763.56,PHY LTS 65+,PAYMENTS TO CLIENTS (DIRECT PAYMENTS),2103272833,1000061886
04.06.2021,ADULT SOCIAL CARE,PEOPLEPLUS ILS,769.28,PHY LTS 65+,PAYMENTS TO CLIENTS (DIRECT PAYMENTS),2103273238,1000061886
04.06.2021,ADULT SOCIAL CARE,PEOPLEPLUS ILS,777.72,PHY LTS 65+,PAYMENTS TO CLIENTS (DIRECT PAYMENTS),2103272909,1000061886
04.06.2021,ADULT SOCIAL CARE,PEOPLEPLUS ILS,782.92,PHY LTS 65+,PAYMENTS TO CLIENTS (DIRECT PAYMENTS),2103272790,1000061886
04.06.2021,ADULT SOCIAL CARE,PEOPLEPLUS ILS,791.84,PHY LTS 65+,PAYMENTS TO CLIENTS (DIRECT PAYMENTS),2103273123,1000061886
04.06.2021,ADULT SOCIAL CARE,PEOPLEPLUS ILS,811.72,PHY LTS 65+,PAYMENTS TO CLIENTS (DIRECT PAYMENTS),2103272968,1000061886
04.06.2021,ADULT SOCIAL CARE,PEOPLEPLUS ILS,811.72,PHY LTS 65+,PAYMENTS TO CLIENTS (DIRECT PAYMENTS),2103273146,1000061886
04.06.2021,ADULT SOCIAL CARE,PEOPLEPLUS ILS,825.84,PHY LTS 65+,PAYMENTS TO CLIENTS (DIRECT PAYMENTS),2103273105,1000061886
04.06.2021,ADULT SOCIAL CARE,PEOPLEPLUS ILS,848.28,PHY LTS 65+,PAYMENTS TO CLIENTS (DIRECT PAYMENTS),2103273028,1000061886
04.06.2021,ADULT SOCIAL CARE,PEOPLEPLUS ILS,868.28,PHY LTS 65+,PAYMENTS TO CLIENTS (DIRECT PAYMENTS),2103273053,1000061886
04.06.2021,ADULT SOCIAL CARE,PEOPLEPLUS ILS,910.68,PHY LTS 65+,PAYMENTS TO CLIENTS (DIRECT PAYMENTS),2103273195,1000061886
04.06.2021,ADULT SOCIAL CARE,PEOPLEPLUS ILS,910.68,PHY LTS 65+,PAYMENTS TO CLIENTS (DIRECT PAYMENTS),2103273400,1000061886
04.06.2021,ADULT SOCIAL CARE,PEOPLEPLUS ILS,933.24,PHY LTS 65+,PAYMENTS TO CLIENTS (DIRECT PAYMENTS),2103272815,1000061886
04.06.2021,ADULT SOCIAL CARE,PEOPLEPLUS ILS,938.96,PHY LTS 65+,PAYMENTS TO CLIENTS (DIRECT PAYMENTS),2103273244,1000061886
04.06.2021,ADULT SOCIAL CARE,PEOPLEPLUS ILS,"1,010.52",PHY LTS 65+,PAYMENTS TO CLIENTS (DIRECT PAYMENTS),2103273200,1000061886
04.06.2021,ADULT SOCIAL CARE,PEOPLEPLUS ILS,"1,037.96",PHY LTS 65+,PAYMENTS TO CLIENTS (DIRECT PAYMENTS),2103272777,1000061886
04.06.2021,ADULT SOCIAL CARE,PEOPLEPLUS ILS,"1,136.96",PHY LTS 65+,PAYMENTS TO CLIENTS (DIRECT PAYMENTS),2103273128,1000061886
04.06.2021,ADULT SOCIAL CARE,PEOPLEPLUS ILS,"1,159.36",PHY LTS 65+,PAYMENTS TO CLIENTS (DIRECT PAYMENTS),2103273263,1000061886
04.06.2021,ADULT SOCIAL CARE,PEOPLEPLUS ILS,"1,193.48",PHY LTS 65+,PAYMENTS TO CLIENTS (DIRECT PAYMENTS),2103273407,1000061886
04.06.2021,ADULT SOCIAL CARE,PEOPLEPLUS ILS,"1,258.48",PHY LTS 65+,PAYMENTS TO CLIENTS (DIRECT PAYMENTS),2103273357,1000061886
04.06.2021,ADULT SOCIAL CARE,PEOPLEPLUS ILS,"1,288.00",PHY LTS 65+,PAYMENTS TO CLIENTS (DIRECT PAYMENTS),2103272917,1000061886
04.06.2021,ADULT SOCIAL CARE,PEOPLEPLUS ILS,"1,343.32",PHY LTS 65+,PAYMENTS TO CLIENTS (DIRECT PAYMENTS),2103272960,1000061886
04.06.2021,ADULT SOCIAL CARE,PEOPLEPLUS ILS,"1,367.20",PHY LTS 65+,PAYMENTS TO CLIENTS (DIRECT PAYMENTS),2103273308,1000061886
04.06.2021,ADULT SOCIAL CARE,PEOPLEPLUS ILS,"1,668.52",PHY LTS 65+,PAYMENTS TO CLIENTS (DIRECT PAYMENTS),2103273270,1000061886
04.06.2021,ADULT SOCIAL CARE,PEOPLEPLUS ILS,"1,675.40",PHY LTS 65+,PAYMENTS TO CLIENTS (DIRECT PAYMENTS),2103273247,1000061886
04.06.2021,ADULT SOCIAL CARE,PEOPLEPLUS ILS,"1,886.00",PHY LTS 65+,PAYMENTS TO CLIENTS (DIRECT PAYMENTS),2103273139,1000061886
04.06.2021,ADULT SOCIAL CARE,PEOPLEPLUS ILS,"1,886.36",PHY LTS 65+,PAYMENTS TO CLIENTS (DIRECT PAYMENTS),2103273114,1000061886
04.06.2021,ADULT SOCIAL CARE,PEOPLEPLUS ILS,"1,895.86",PHY LTS 65+,PAYMENTS TO CLIENTS (DIRECT PAYMENTS),2103272986,1000061886
04.06.2021,ADULT SOCIAL CARE,PEOPLEPLUS ILS,"1,900.48",PHY LTS 65+,PAYMENTS TO CLIENTS (DIRECT PAYMENTS),2103273260,1000061886
04.06.2021,ADULT SOCIAL CARE,PEOPLEPLUS ILS,"2,014.48",PHY LTS 65+,PAYMENTS TO CLIENTS (DIRECT PAYMENTS),2103272945,1000061886
04.06.2021,ADULT SOCIAL CARE,PEOPLEPLUS ILS,"2,201.00",PHY LTS 65+,PAYMENTS TO CLIENTS (DIRECT PAYMENTS),2103273256,1000061886
04.06.2021,ADULT SOCIAL CARE,FRESH IDEAS & SOLUTIONS SERVICES CIC,890.84,PHY LTS 65+,PAYMENTS TO CLIENTS (DIRECT PAYMENTS),2103273414,1000070832
04.06.2021,ADULT SOCIAL CARE,PROFAD CARE AGENCY,806.76,PHY STS 65+,HOMECARE - IC,2103272428,1000079032
04.06.2021,ADULT SOCIAL CARE,PROFAD CARE AGENCY,936.59,PHY STS 65+,HOMECARE - IC,2103272464,1000079032
04.06.2021,ADULT SOCIAL CARE,PROFAD CARE AGENCY,"1,555.20",PHY STS 65+,HOMECARE - IC,2103272443,1000079032
04.06.2021,ADULT SOCIAL CARE,PROFAD CARE AGENCY,"2,313.36",PHY STS 65+,HOMECARE - IC,2103272498,1000079032
04.06.2021,ADULT SOCIAL CARE,THAMES HOMECARE SERVICE LTD,"26,600.00",REABLEMENT CONTRACT,HOMECARE - C&V,5902472364,1000079295
04.06.2021,ADULT SOCIAL CARE,THAMES HOMECARE SERVICE LTD,"26,600.00",REABLEMENT CONTRACT,HOMECARE - C&V,5902472366,1000079295
04.06.2021,ADULT SOCIAL CARE,SOUTHSIDE PARTNERSHIP LTD,"59,722.62",S75 SUPHSG SCH LBS LEAD,EXTERNAL AGENCIES AND BODIES,5902472237,1716624
04.06.2021,ADULT SOCIAL CARE,LEWISHAM INDO CHINESE COMMUNITY,280,SEN LTS 65+,DAYCARE,2103273375,1000076593
04.06.2021,ADULT SOCIAL CARE,PEOPLEPLUS ILS,-320.36,SOCIAL ISOLATION,DISCRETIONARY FLEXIBLE FEES & INCOME,2103272979,1000061886
04.06.2021,ADULT SOCIAL CARE,PROFAD CARE AGENCY,972,SOCIAL ISOLATION,HOMECARE - SPOT,2103272452,1000079032
04.06.2021,ADULT SOCIAL CARE,REDACTED PERSONAL DATA,614.4,SOCIAL ISOLATION,PAYMENTS TO CLIENTS (DIRECT PAYMENTS),REDACTED,REDACTED
04.06.2021,ADULT SOCIAL CARE,PEOPLEPLUS ILS,475.12,SOCIAL ISOLATION,PAYMENTS TO CLIENTS (DIRECT PAYMENTS),2103273003,1000061886
04.06.2021,ADULT SOCIAL CARE,PEOPLEPLUS ILS,622.16,SOCIAL ISOLATION,PAYMENTS TO CLIENTS (DIRECT PAYMENTS),2103273002,1000061886
04.06.2021,ADULT SOCIAL CARE,PEOPLEPLUS ILS,642.04,SOCIAL ISOLATION,PAYMENTS TO CLIENTS (DIRECT PAYMENTS),2103272993,1000061886
04.06.2021,ADULT SOCIAL CARE,PEOPLEPLUS ILS,992.72,SOCIAL ISOLATION,PAYMENTS TO CLIENTS (DIRECT PAYMENTS),2103273240,1000061886
04.06.2021,ADULT SOCIAL CARE,PEOPLEPLUS ILS,"1,221.76",SOCIAL ISOLATION,PAYMENTS TO CLIENTS (DIRECT PAYMENTS),2103273025,1000061886
04.06.2021,ADULT SOCIAL CARE,PEOPLEPLUS ILS,"1,787.36",SOCIAL ISOLATION,PAYMENTS TO CLIENTS (DIRECT PAYMENTS),2103273233,1000061886
04.06.2021,ADULT SOCIAL CARE,PEOPLEPLUS ILS,"2,222.84",SOCIAL ISOLATION,PAYMENTS TO CLIENTS (DIRECT PAYMENTS),2103273101,1000061886
04.06.2021,ADULT SOCIAL CARE,FRESH IDEAS & SOLUTIONS SERVICES CIC,260.24,SOCIAL ISOLATION,PAYMENTS TO CLIENTS (DIRECT PAYMENTS),2103272930,1000070832
04.06.2021,ADULT SOCIAL CARE,REDACTED PERSONAL DATA,"3,662.20",SPEC NEEDS CHILDREN,PAYMENTS TO CLIENTS (DIRECT PAYMENTS),REDACTED,REDACTED
04.06.2021,ADULT SOCIAL CARE,REDACTED PERSONAL DATA,"3,251.00",SPEC NEEDS CHILDREN,PAYMENTS TO CLIENTS (DIRECT PAYMENTS),REDACTED,REDACTED
04.06.2021,ADULT SOCIAL CARE,PEOPLEPLUS ILS,273.68,SPEC NEEDS CHILDREN,PAYMENTS TO CLIENTS (DIRECT PAYMENTS),2103272651,1000061886
04.06.2021,ADULT SOCIAL CARE,PEOPLEPLUS ILS,273.68,SPEC NEEDS CHILDREN,PAYMENTS TO CLIENTS (DIRECT PAYMENTS),2103272697,1000061886
04.06.2021,ADULT SOCIAL CARE,REDACTED PERSONAL DATA,380.28,SPECIALIST CARE,PAYMENTS TO CLIENTS (DIRECT PAYMENTS),REDACTED,REDACTED
04.06.2021,ADULT SOCIAL CARE,REDACTED PERSONAL DATA,716,SPECIALIST CARE,PAYMENTS TO CLIENTS (DIRECT PAYMENTS),REDACTED,REDACTED
04.06.2021,ADULT SOCIAL CARE,REDACTED PERSONAL DATA,992.08,SPECIALIST CARE,PAYMENTS TO CLIENTS (DIRECT PAYMENTS),REDACTED,REDACTED
04.06.2021,ADULT SOCIAL CARE,REDACTED PERSONAL DATA,"1,814.00",SPECIALIST CARE,PAYMENTS TO CLIENTS (DIRECT PAYMENTS),REDACTED,REDACTED
04.06.2021,ADULT SOCIAL CARE,REDACTED PERSONAL DATA,759.04,SPECIALIST CARE,PAYMENTS TO CLIENTS (DIRECT PAYMENTS),REDACTED,REDACTED
04.06.2021,ADULT SOCIAL CARE,REDACTED PERSONAL DATA,307.2,SPECIALIST CARE,PAYMENTS TO CLIENTS (DIRECT PAYMENTS),REDACTED,REDACTED
04.06.2021,ADULT SOCIAL CARE,REDACTED PERSONAL DATA,618.2,SPECIALIST CARE,PAYMENTS TO CLIENTS (DIRECT PAYMENTS),REDACTED,REDACTED
04.06.2021,ADULT SOCIAL CARE,REDACTED PERSONAL DATA,379.52,SPECIALIST CARE,PAYMENTS TO CLIENTS (DIRECT PAYMENTS),REDACTED,REDACTED
04.06.2021,ADULT SOCIAL CARE,REDACTED PERSONAL DATA,307.2,SPECIALIST CARE,PAYMENTS TO CLIENTS (DIRECT PAYMENTS),REDACTED,REDACTED
04.06.2021,ADULT SOCIAL CARE,REDACTED PERSONAL DATA,579.28,SPECIALIST CARE,PAYMENTS TO CLIENTS (DIRECT PAYMENTS),REDACTED,REDACTED
04.06.2021,ADULT SOCIAL CARE,REDACTED PERSONAL DATA,"1,940.75",SPECIALIST CARE,PAYMENTS TO CLIENTS (DIRECT PAYMENTS),REDACTED,REDACTED
04.06.2021,ADULT SOCIAL CARE,REDACTED PERSONAL DATA,369.56,SPECIALIST CARE,PAYMENTS TO CLIENTS (DIRECT PAYMENTS),REDACTED,REDACTED
04.06.2021,ADULT SOCIAL CARE,REDACTED PERSONAL DATA,"1,696.80",SPECIALIST CARE,PAYMENTS TO CLIENTS (DIRECT PAYMENTS),REDACTED,REDACTED
04.06.2021,ADULT SOCIAL CARE,REDACTED PERSONAL DATA,888.84,SPECIALIST CARE,PAYMENTS TO CLIENTS (DIRECT PAYMENTS),REDACTED,REDACTED
04.06.2021,ADULT SOCIAL CARE,REDACTED PERSONAL DATA,259.68,SPECIALIST CARE,PAYMENTS TO CLIENTS (DIRECT PAYMENTS),REDACTED,REDACTED
04.06.2021,ADULT SOCIAL CARE,REDACTED PERSONAL DATA,349.56,SPECIALIST CARE,PAYMENTS TO CLIENTS (DIRECT PAYMENTS),REDACTED,REDACTED
04.06.2021,ADULT SOCIAL CARE,REDACTED PERSONAL DATA,"1,097.00",SPECIALIST CARE,PAYMENTS TO CLIENTS (DIRECT PAYMENTS),REDACTED,REDACTED
04.06.2021,ADULT SOCIAL CARE,REDACTED PERSONAL DATA,379.52,SPECIALIST CARE,PAYMENTS TO CLIENTS (DIRECT PAYMENTS),REDACTED,REDACTED
04.06.2021,ADULT SOCIAL CARE,REDACTED PERSONAL DATA,404.8,SPECIALIST CARE,PAYMENTS TO CLIENTS (DIRECT PAYMENTS),REDACTED,REDACTED
04.06.2021,ADULT SOCIAL CARE,REDACTED PERSONAL DATA,509.6,SPECIALIST CARE,PAYMENTS TO CLIENTS (DIRECT PAYMENTS),REDACTED,REDACTED
04.06.2021,ADULT SOCIAL CARE,REDACTED PERSONAL DATA,459.44,SPECIALIST CARE,PAYMENTS TO CLIENTS (DIRECT PAYMENTS),REDACTED,REDACTED
04.06.2021,ADULT SOCIAL CARE,REDACTED PERSONAL DATA,878.88,SPECIALIST CARE,PAYMENTS TO CLIENTS (DIRECT PAYMENTS),REDACTED,REDACTED
04.06.2021,ADULT SOCIAL CARE,REDACTED PERSONAL DATA,568.4,SPECIALIST CARE,PAYMENTS TO CLIENTS (DIRECT PAYMENTS),REDACTED,REDACTED
04.06.2021,ADULT SOCIAL CARE,REDACTED PERSONAL DATA,881.64,SPECIALIST CARE,PAYMENTS TO CLIENTS (DIRECT PAYMENTS),REDACTED,REDACTED
04.06.2021,ADULT SOCIAL CARE,REDACTED PERSONAL DATA,754.04,SPECIALIST CARE,PAYMENTS TO CLIENTS (DIRECT PAYMENTS),REDACTED,REDACTED
04.06.2021,ADULT SOCIAL CARE,REDACTED PERSONAL DATA,734.04,SPECIALIST CARE,PAYMENTS TO CLIENTS (DIRECT PAYMENTS),REDACTED,REDACTED
04.06.2021,ADULT SOCIAL CARE,REDACTED PERSONAL DATA,861.6,SPECIALIST CARE,PAYMENTS TO CLIENTS (DIRECT PAYMENTS),REDACTED,REDACTED
04.06.2021,ADULT SOCIAL CARE,REDACTED PERSONAL DATA,589.24,SPECIALIST CARE,PAYMENTS TO CLIENTS (DIRECT PAYMENTS),REDACTED,REDACTED
04.06.2021,ADULT SOCIAL CARE,REDACTED PERSONAL DATA,514.36,SPECIALIST CARE,PAYMENTS TO CLIENTS (DIRECT PAYMENTS),REDACTED,REDACTED
04.06.2021,ADULT SOCIAL CARE,REDACTED PERSONAL DATA,783.76,SPECIALIST CARE,PAYMENTS TO CLIENTS (DIRECT PAYMENTS),REDACTED,REDACTED
04.06.2021,ADULT SOCIAL CARE,REDACTED PERSONAL DATA,"11,758.80",SPECIALIST CARE,PAYMENTS TO CLIENTS (DIRECT PAYMENTS),REDACTED,REDACTED
04.06.2021,ADULT SOCIAL CARE,REDACTED PERSONAL DATA,522.64,SPECIALIST CARE,PAYMENTS TO CLIENTS (DIRECT PAYMENTS),REDACTED,REDACTED
04.06.2021,ADULT SOCIAL CARE,REDACTED PERSONAL DATA,808.92,SPECIALIST CARE,PAYMENTS TO CLIENTS (DIRECT PAYMENTS),REDACTED,REDACTED
04.06.2021,ADULT SOCIAL CARE,REDACTED PERSONAL DATA,858.88,SPECIALIST CARE,PAYMENTS TO CLIENTS (DIRECT PAYMENTS),REDACTED,REDACTED
04.06.2021,ADULT SOCIAL CARE,REDACTED PERSONAL DATA,"1,637.92",SPECIALIST CARE,PAYMENTS TO CLIENTS (DIRECT PAYMENTS),REDACTED,REDACTED
04.06.2021,ADULT SOCIAL CARE,REDACTED PERSONAL DATA,268.32,SPECIALIST CARE,PAYMENTS TO CLIENTS (DIRECT PAYMENTS),REDACTED,REDACTED
04.06.2021,ADULT SOCIAL CARE,REDACTED PERSONAL DATA,"3,744.28",SPECIALIST CARE,PAYMENTS TO CLIENTS (DIRECT PAYMENTS),REDACTED,REDACTED
04.06.2021,ADULT SOCIAL CARE,REDACTED PERSONAL DATA,"1,076.80",SPECIALIST CARE,PAYMENTS TO CLIENTS (DIRECT PAYMENTS),REDACTED,REDACTED
04.06.2021,ADULT SOCIAL CARE,REDACTED PERSONAL DATA,589.24,SPECIALIST CARE,PAYMENTS TO CLIENTS (DIRECT PAYMENTS),REDACTED,REDACTED
04.06.2021,ADULT SOCIAL CARE,REDACTED PERSONAL DATA,259.68,SPECIALIST CARE,PAYMENTS TO CLIENTS (DIRECT PAYMENTS),REDACTED,REDACTED
04.06.2021,ADULT SOCIAL CARE,REDACTED PERSONAL DATA,795.32,SPECIALIST CARE,PAYMENTS TO CLIENTS (DIRECT PAYMENTS),REDACTED,REDACTED
04.06.2021,ADULT SOCIAL CARE,REDACTED PERSONAL DATA,259.68,SPECIALIST CARE,PAYMENTS TO CLIENTS (DIRECT PAYMENTS),REDACTED,REDACTED
04.06.2021,ADULT SOCIAL CARE,REDACTED PERSONAL DATA,287.2,SPECIALIST CARE,PAYMENTS TO CLIENTS (DIRECT PAYMENTS),REDACTED,REDACTED
04.06.2021,ADULT SOCIAL CARE,REDACTED PERSONAL DATA,"4,902.40",SPECIALIST CARE,PAYMENTS TO CLIENTS (DIRECT PAYMENTS),REDACTED,REDACTED
04.06.2021,ADULT SOCIAL CARE,REDACTED PERSONAL DATA,379.52,SPECIALIST CARE,PAYMENTS TO CLIENTS (DIRECT PAYMENTS),REDACTED,REDACTED
04.06.2021,ADULT SOCIAL CARE,REDACTED PERSONAL DATA,259.68,SPECIALIST CARE,PAYMENTS TO CLIENTS (DIRECT PAYMENTS),REDACTED,REDACTED
04.06.2021,ADULT SOCIAL CARE,REDACTED PERSONAL DATA,379.52,SPECIALIST CARE,PAYMENTS TO CLIENTS (DIRECT PAYMENTS),REDACTED,REDACTED
04.06.2021,ADULT SOCIAL CARE,REDACTED PERSONAL DATA,499.36,SPECIALIST CARE,PAYMENTS TO CLIENTS (DIRECT PAYMENTS),REDACTED,REDACTED
04.06.2021,ADULT SOCIAL CARE,REDACTED PERSONAL DATA,469.4,SPECIALIST CARE,PAYMENTS TO CLIENTS (DIRECT PAYMENTS),REDACTED,REDACTED
04.06.2021,ADULT SOCIAL CARE,REDACTED PERSONAL DATA,499.36,SPECIALIST CARE,PAYMENTS TO CLIENTS (DIRECT PAYMENTS),REDACTED,REDACTED
04.06.2021,ADULT SOCIAL CARE,REDACTED PERSONAL DATA,259.68,SPECIALIST CARE,PAYMENTS TO CLIENTS (DIRECT PAYMENTS),REDACTED,REDACTED
04.06.2021,ADULT SOCIAL CARE,REDACTED PERSONAL DATA,718,SPECIALIST CARE,PAYMENTS TO CLIENTS (DIRECT PAYMENTS),REDACTED,REDACTED
04.06.2021,ADULT SOCIAL CARE,REDACTED PERSONAL DATA,599.2,SPECIALIST CARE,PAYMENTS TO CLIENTS (DIRECT PAYMENTS),REDACTED,REDACTED
04.06.2021,ADULT SOCIAL CARE,REDACTED PERSONAL DATA,719.04,SPECIALIST CARE,PAYMENTS TO CLIENTS (DIRECT PAYMENTS),REDACTED,REDACTED
04.06.2021,ADULT SOCIAL CARE,REDACTED PERSONAL DATA,718,SPECIALIST CARE,PAYMENTS TO CLIENTS (DIRECT PAYMENTS),REDACTED,REDACTED
04.06.2021,ADULT SOCIAL CARE,REDACTED PERSONAL DATA,"1,812.96",SPECIALIST CARE,PAYMENTS TO CLIENTS (DIRECT PAYMENTS),REDACTED,REDACTED
04.06.2021,ADULT SOCIAL CARE,REDACTED PERSONAL DATA,793.24,SPECIALIST CARE,PAYMENTS TO CLIENTS (DIRECT PAYMENTS),REDACTED,REDACTED
04.06.2021,ADULT SOCIAL CARE,REDACTED PERSONAL DATA,259.68,SPECIALIST CARE,PAYMENTS TO CLIENTS (DIRECT PAYMENTS),REDACTED,REDACTED
04.06.2021,ADULT SOCIAL CARE,PEOPLEPLUS ILS,253.68,SPECIALIST CARE,PAYMENTS TO CLIENTS (DIRECT PAYMENTS),2103272565,1000061886
04.06.2021,ADULT SOCIAL CARE,PEOPLEPLUS ILS,253.68,SPECIALIST CARE,PAYMENTS TO CLIENTS (DIRECT PAYMENTS),2103272663,1000061886
04.06.2021,ADULT SOCIAL CARE,PEOPLEPLUS ILS,260.24,SPECIALIST CARE,PAYMENTS TO CLIENTS (DIRECT PAYMENTS),2103272590,1000061886
04.06.2021,ADULT SOCIAL CARE,PEOPLEPLUS ILS,273.2,SPECIALIST CARE,PAYMENTS TO CLIENTS (DIRECT PAYMENTS),2103272606,1000061886
04.06.2021,ADULT SOCIAL CARE,PEOPLEPLUS ILS,273.68,SPECIALIST CARE,PAYMENTS TO CLIENTS (DIRECT PAYMENTS),2103272505,1000061886
04.06.2021,ADULT SOCIAL CARE,PEOPLEPLUS ILS,273.68,SPECIALIST CARE,PAYMENTS TO CLIENTS (DIRECT PAYMENTS),2103272507,1000061886
04.06.2021,ADULT SOCIAL CARE,PEOPLEPLUS ILS,273.68,SPECIALIST CARE,PAYMENTS TO CLIENTS (DIRECT PAYMENTS),2103272523,1000061886
04.06.2021,ADULT SOCIAL CARE,PEOPLEPLUS ILS,273.68,SPECIALIST CARE,PAYMENTS TO CLIENTS (DIRECT PAYMENTS),2103272540,1000061886
04.06.2021,ADULT SOCIAL CARE,PEOPLEPLUS ILS,273.68,SPECIALIST CARE,PAYMENTS TO CLIENTS (DIRECT PAYMENTS),2103272551,1000061886
04.06.2021,ADULT SOCIAL CARE,PEOPLEPLUS ILS,273.68,SPECIALIST CARE,PAYMENTS TO CLIENTS (DIRECT PAYMENTS),2103272557,1000061886
04.06.2021,ADULT SOCIAL CARE,PEOPLEPLUS ILS,273.68,SPECIALIST CARE,PAYMENTS TO CLIENTS (DIRECT PAYMENTS),2103272562,1000061886
04.06.2021,ADULT SOCIAL CARE,PEOPLEPLUS ILS,273.68,SPECIALIST CARE,PAYMENTS TO CLIENTS (DIRECT PAYMENTS),2103272578,1000061886
04.06.2021,ADULT SOCIAL CARE,PEOPLEPLUS ILS,273.68,SPECIALIST CARE,PAYMENTS TO CLIENTS (DIRECT PAYMENTS),2103272580,1000061886
04.06.2021,ADULT SOCIAL CARE,PEOPLEPLUS ILS,273.68,SPECIALIST CARE,PAYMENTS TO CLIENTS (DIRECT PAYMENTS),2103272587,1000061886
04.06.2021,ADULT SOCIAL CARE,PEOPLEPLUS ILS,273.68,SPECIALIST CARE,PAYMENTS TO CLIENTS (DIRECT PAYMENTS),2103272592,1000061886
04.06.2021,ADULT SOCIAL CARE,PEOPLEPLUS ILS,273.68,SPECIALIST CARE,PAYMENTS TO CLIENTS (DIRECT PAYMENTS),2103272594,1000061886
04.06.2021,ADULT SOCIAL CARE,PEOPLEPLUS ILS,273.68,SPECIALIST CARE,PAYMENTS TO CLIENTS (DIRECT PAYMENTS),2103272598,1000061886
04.06.2021,ADULT SOCIAL CARE,PEOPLEPLUS ILS,273.68,SPECIALIST CARE,PAYMENTS TO CLIENTS (DIRECT PAYMENTS),2103272600,1000061886
04.06.2021,ADULT SOCIAL CARE,PEOPLEPLUS ILS,273.68,SPECIALIST CARE,PAYMENTS TO CLIENTS (DIRECT PAYMENTS),2103272607,1000061886
04.06.2021,ADULT SOCIAL CARE,PEOPLEPLUS ILS,273.68,SPECIALIST CARE,PAYMENTS TO CLIENTS (DIRECT PAYMENTS),2103272626,1000061886
04.06.2021,ADULT SOCIAL CARE,PEOPLEPLUS ILS,273.68,SPECIALIST CARE,PAYMENTS TO CLIENTS (DIRECT PAYMENTS),2103272629,1000061886
04.06.2021,ADULT SOCIAL CARE,PEOPLEPLUS ILS,273.68,SPECIALIST CARE,PAYMENTS TO CLIENTS (DIRECT PAYMENTS),2103272644,1000061886
04.06.2021,ADULT SOCIAL CARE,PEOPLEPLUS ILS,273.68,SPECIALIST CARE,PAYMENTS TO CLIENTS (DIRECT PAYMENTS),2103272645,1000061886
04.06.2021,ADULT SOCIAL CARE,PEOPLEPLUS ILS,273.68,SPECIALIST CARE,PAYMENTS TO CLIENTS (DIRECT PAYMENTS),2103272675,1000061886
04.06.2021,ADULT SOCIAL CARE,PEOPLEPLUS ILS,273.68,SPECIALIST CARE,PAYMENTS TO CLIENTS (DIRECT PAYMENTS),2103272676,1000061886
04.06.2021,ADULT SOCIAL CARE,PEOPLEPLUS ILS,273.68,SPECIALIST CARE,PAYMENTS TO CLIENTS (DIRECT PAYMENTS),2103272678,1000061886
04.06.2021,ADULT SOCIAL CARE,PEOPLEPLUS ILS,273.68,SPECIALIST CARE,PAYMENTS TO CLIENTS (DIRECT PAYMENTS),2103272685,1000061886
04.06.2021,ADULT SOCIAL CARE,PEOPLEPLUS ILS,273.68,SPECIALIST CARE,PAYMENTS TO CLIENTS (DIRECT PAYMENTS),2103272688,1000061886
04.06.2021,ADULT SOCIAL CARE,PEOPLEPLUS ILS,273.68,SPECIALIST CARE,PAYMENTS TO CLIENTS (DIRECT PAYMENTS),2103272690,1000061886
04.06.2021,ADULT SOCIAL CARE,PEOPLEPLUS ILS,273.68,SPECIALIST CARE,PAYMENTS TO CLIENTS (DIRECT PAYMENTS),2103272713,1000061886
04.06.2021,ADULT SOCIAL CARE,PEOPLEPLUS ILS,285.92,SPECIALIST CARE,PAYMENTS TO CLIENTS (DIRECT PAYMENTS),2103272566,1000061886
04.06.2021,ADULT SOCIAL CARE,PEOPLEPLUS ILS,293.96,SPECIALIST CARE,PAYMENTS TO CLIENTS (DIRECT PAYMENTS),2103272515,1000061886
04.06.2021,ADULT SOCIAL CARE,PEOPLEPLUS ILS,299.6,SPECIALIST CARE,PAYMENTS TO CLIENTS (DIRECT PAYMENTS),2103272569,1000061886
04.06.2021,ADULT SOCIAL CARE,PEOPLEPLUS ILS,312.76,SPECIALIST CARE,PAYMENTS TO CLIENTS (DIRECT PAYMENTS),2103272710,1000061886
04.06.2021,ADULT SOCIAL CARE,PEOPLEPLUS ILS,314.6,SPECIALIST CARE,PAYMENTS TO CLIENTS (DIRECT PAYMENTS),2103272609,1000061886
04.06.2021,ADULT SOCIAL CARE,PEOPLEPLUS ILS,314.6,SPECIALIST CARE,PAYMENTS TO CLIENTS (DIRECT PAYMENTS),2103272631,1000061886
04.06.2021,ADULT SOCIAL CARE,PEOPLEPLUS ILS,333,SPECIALIST CARE,PAYMENTS TO CLIENTS (DIRECT PAYMENTS),2103272628,1000061886
04.06.2021,ADULT SOCIAL CARE,PEOPLEPLUS ILS,333.6,SPECIALIST CARE,PAYMENTS TO CLIENTS (DIRECT PAYMENTS),2103272550,1000061886
04.06.2021,ADULT SOCIAL CARE,PEOPLEPLUS ILS,333.6,SPECIALIST CARE,PAYMENTS TO CLIENTS (DIRECT PAYMENTS),2103272683,1000061886
04.06.2021,ADULT SOCIAL CARE,PEOPLEPLUS ILS,348.6,SPECIALIST CARE,PAYMENTS TO CLIENTS (DIRECT PAYMENTS),2103272532,1000061886
04.06.2021,ADULT SOCIAL CARE,PEOPLEPLUS ILS,348.6,SPECIALIST CARE,PAYMENTS TO CLIENTS (DIRECT PAYMENTS),2103272666,1000061886
04.06.2021,ADULT SOCIAL CARE,PEOPLEPLUS ILS,359.52,SPECIALIST CARE,PAYMENTS TO CLIENTS (DIRECT PAYMENTS),2103272613,1000061886
04.06.2021,ADULT SOCIAL CARE,PEOPLEPLUS ILS,363.56,SPECIALIST CARE,PAYMENTS TO CLIENTS (DIRECT PAYMENTS),2103272541,1000061886
04.06.2021,ADULT SOCIAL CARE,PEOPLEPLUS ILS,372.68,SPECIALIST CARE,PAYMENTS TO CLIENTS (DIRECT PAYMENTS),2103272522,1000061886
04.06.2021,ADULT SOCIAL CARE,PEOPLEPLUS ILS,372.68,SPECIALIST CARE,PAYMENTS TO CLIENTS (DIRECT PAYMENTS),2103272646,1000061886
04.06.2021,ADULT SOCIAL CARE,PEOPLEPLUS ILS,393.52,SPECIALIST CARE,PAYMENTS TO CLIENTS (DIRECT PAYMENTS),2103272508,1000061886
04.06.2021,ADULT SOCIAL CARE,PEOPLEPLUS ILS,393.52,SPECIALIST CARE,PAYMENTS TO CLIENTS (DIRECT PAYMENTS),2103272510,1000061886
04.06.2021,ADULT SOCIAL CARE,PEOPLEPLUS ILS,393.52,SPECIALIST CARE,PAYMENTS TO CLIENTS (DIRECT PAYMENTS),2103272517,1000061886
04.06.2021,ADULT SOCIAL CARE,PEOPLEPLUS ILS,393.52,SPECIALIST CARE,PAYMENTS TO CLIENTS (DIRECT PAYMENTS),2103272544,1000061886
04.06.2021,ADULT SOCIAL CARE,PEOPLEPLUS ILS,393.52,SPECIALIST CARE,PAYMENTS TO CLIENTS (DIRECT PAYMENTS),2103272574,1000061886
04.06.2021,ADULT SOCIAL CARE,PEOPLEPLUS ILS,393.52,SPECIALIST CARE,PAYMENTS TO CLIENTS (DIRECT PAYMENTS),2103272603,1000061886
04.06.2021,ADULT SOCIAL CARE,PEOPLEPLUS ILS,393.52,SPECIALIST CARE,PAYMENTS TO CLIENTS (DIRECT PAYMENTS),2103272610,1000061886
04.06.2021,ADULT SOCIAL CARE,PEOPLEPLUS ILS,393.52,SPECIALIST CARE,PAYMENTS TO CLIENTS (DIRECT PAYMENTS),2103272642,1000061886
04.06.2021,ADULT SOCIAL CARE,PEOPLEPLUS ILS,393.52,SPECIALIST CARE,PAYMENTS TO CLIENTS (DIRECT PAYMENTS),2103272695,1000061886
04.06.2021,ADULT SOCIAL CARE,PEOPLEPLUS ILS,420.2,SPECIALIST CARE,PAYMENTS TO CLIENTS (DIRECT PAYMENTS),2103272516,1000061886
04.06.2021,ADULT SOCIAL CARE,PEOPLEPLUS ILS,423.48,SPECIALIST CARE,PAYMENTS TO CLIENTS (DIRECT PAYMENTS),2103272701,1000061886
04.06.2021,ADULT SOCIAL CARE,PEOPLEPLUS ILS,453.44,SPECIALIST CARE,PAYMENTS TO CLIENTS (DIRECT PAYMENTS),2103272526,1000061886
04.06.2021,ADULT SOCIAL CARE,PEOPLEPLUS ILS,453.44,SPECIALIST CARE,PAYMENTS TO CLIENTS (DIRECT PAYMENTS),2103272586,1000061886
04.06.2021,ADULT SOCIAL CARE,PEOPLEPLUS ILS,453.44,SPECIALIST CARE,PAYMENTS TO CLIENTS (DIRECT PAYMENTS),2103272667,1000061886
04.06.2021,ADULT SOCIAL CARE,PEOPLEPLUS ILS,453.44,SPECIALIST CARE,PAYMENTS TO CLIENTS (DIRECT PAYMENTS),2103272672,1000061886
04.06.2021,ADULT SOCIAL CARE,PEOPLEPLUS ILS,474.2,SPECIALIST CARE,PAYMENTS TO CLIENTS (DIRECT PAYMENTS),2103272605,1000061886
04.06.2021,ADULT SOCIAL CARE,PEOPLEPLUS ILS,483.4,SPECIALIST CARE,PAYMENTS TO CLIENTS (DIRECT PAYMENTS),2103272595,1000061886
04.06.2021,ADULT SOCIAL CARE,PEOPLEPLUS ILS,486.48,SPECIALIST CARE,PAYMENTS TO CLIENTS (DIRECT PAYMENTS),2103272534,1000061886
04.06.2021,ADULT SOCIAL CARE,PEOPLEPLUS ILS,486.48,SPECIALIST CARE,PAYMENTS TO CLIENTS (DIRECT PAYMENTS),2103272693,1000061886
04.06.2021,ADULT SOCIAL CARE,PEOPLEPLUS ILS,493.36,SPECIALIST CARE,PAYMENTS TO CLIENTS (DIRECT PAYMENTS),2103272637,1000061886
04.06.2021,ADULT SOCIAL CARE,PEOPLEPLUS ILS,498.4,SPECIALIST CARE,PAYMENTS TO CLIENTS (DIRECT PAYMENTS),2103272661,1000061886
04.06.2021,ADULT SOCIAL CARE,PEOPLEPLUS ILS,513.32,SPECIALIST CARE,PAYMENTS TO CLIENTS (DIRECT PAYMENTS),2103272513,1000061886
04.06.2021,ADULT SOCIAL CARE,PEOPLEPLUS ILS,513.36,SPECIALIST CARE,PAYMENTS TO CLIENTS (DIRECT PAYMENTS),2103272530,1000061886
04.06.2021,ADULT SOCIAL CARE,PEOPLEPLUS ILS,513.36,SPECIALIST CARE,PAYMENTS TO CLIENTS (DIRECT PAYMENTS),2103272655,1000061886
04.06.2021,ADULT SOCIAL CARE,PEOPLEPLUS ILS,513.36,SPECIALIST CARE,PAYMENTS TO CLIENTS (DIRECT PAYMENTS),2103272673,1000061886
04.06.2021,ADULT SOCIAL CARE,PEOPLEPLUS ILS,573.28,SPECIALIST CARE,PAYMENTS TO CLIENTS (DIRECT PAYMENTS),2103272509,1000061886
04.06.2021,ADULT SOCIAL CARE,PEOPLEPLUS ILS,573.28,SPECIALIST CARE,PAYMENTS TO CLIENTS (DIRECT PAYMENTS),2103272583,1000061886
04.06.2021,ADULT SOCIAL CARE,PEOPLEPLUS ILS,599.6,SPECIALIST CARE,PAYMENTS TO CLIENTS (DIRECT PAYMENTS),2103272556,1000061886
04.06.2021,ADULT SOCIAL CARE,PEOPLEPLUS ILS,603.28,SPECIALIST CARE,PAYMENTS TO CLIENTS (DIRECT PAYMENTS),2103272618,1000061886
04.06.2021,ADULT SOCIAL CARE,PEOPLEPLUS ILS,608.4,SPECIALIST CARE,PAYMENTS TO CLIENTS (DIRECT PAYMENTS),2103272632,1000061886
04.06.2021,ADULT SOCIAL CARE,PEOPLEPLUS ILS,618.24,SPECIALIST CARE,PAYMENTS TO CLIENTS (DIRECT PAYMENTS),2103272519,1000061886
04.06.2021,ADULT SOCIAL CARE,PEOPLEPLUS ILS,618.24,SPECIALIST CARE,PAYMENTS TO CLIENTS (DIRECT PAYMENTS),2103272679,1000061886
04.06.2021,ADULT SOCIAL CARE,PEOPLEPLUS ILS,633.2,SPECIALIST CARE,PAYMENTS TO CLIENTS (DIRECT PAYMENTS),2103272560,1000061886
04.06.2021,ADULT SOCIAL CARE,PEOPLEPLUS ILS,633.2,SPECIALIST CARE,PAYMENTS TO CLIENTS (DIRECT PAYMENTS),2103272612,1000061886
04.06.2021,ADULT SOCIAL CARE,PEOPLEPLUS ILS,656.16,SPECIALIST CARE,PAYMENTS TO CLIENTS (DIRECT PAYMENTS),2103272614,1000061886
04.06.2021,ADULT SOCIAL CARE,PEOPLEPLUS ILS,680.2,SPECIALIST CARE,PAYMENTS TO CLIENTS (DIRECT PAYMENTS),2103272687,1000061886
04.06.2021,ADULT SOCIAL CARE,PEOPLEPLUS ILS,693.2,SPECIALIST CARE,PAYMENTS TO CLIENTS (DIRECT PAYMENTS),2103272604,1000061886
04.06.2021,ADULT SOCIAL CARE,PEOPLEPLUS ILS,715.96,SPECIALIST CARE,PAYMENTS TO CLIENTS (DIRECT PAYMENTS),2103272694,1000061886
04.06.2021,ADULT SOCIAL CARE,PEOPLEPLUS ILS,723.08,SPECIALIST CARE,PAYMENTS TO CLIENTS (DIRECT PAYMENTS),2103272591,1000061886
04.06.2021,ADULT SOCIAL CARE,PEOPLEPLUS ILS,724.55,SPECIALIST CARE,PAYMENTS TO CLIENTS (DIRECT PAYMENTS),2103272680,1000061886
04.06.2021,ADULT SOCIAL CARE,PEOPLEPLUS ILS,753.04,SPECIALIST CARE,PAYMENTS TO CLIENTS (DIRECT PAYMENTS),2103272602,1000061886
04.06.2021,ADULT SOCIAL CARE,PEOPLEPLUS ILS,753.04,SPECIALIST CARE,PAYMENTS TO CLIENTS (DIRECT PAYMENTS),2103272622,1000061886
04.06.2021,ADULT SOCIAL CARE,PEOPLEPLUS ILS,753.04,SPECIALIST CARE,PAYMENTS TO CLIENTS (DIRECT PAYMENTS),2103272638,1000061886
04.06.2021,ADULT SOCIAL CARE,PEOPLEPLUS ILS,768.48,SPECIALIST CARE,PAYMENTS TO CLIENTS (DIRECT PAYMENTS),2103272619,1000061886
04.06.2021,ADULT SOCIAL CARE,PEOPLEPLUS ILS,842.92,SPECIALIST CARE,PAYMENTS TO CLIENTS (DIRECT PAYMENTS),2103272615,1000061886
04.06.2021,ADULT SOCIAL CARE,PEOPLEPLUS ILS,858.88,SPECIALIST CARE,PAYMENTS TO CLIENTS (DIRECT PAYMENTS),2103272658,1000061886
04.06.2021,ADULT SOCIAL CARE,PEOPLEPLUS ILS,895.6,SPECIALIST CARE,PAYMENTS TO CLIENTS (DIRECT PAYMENTS),2103272665,1000061886
04.06.2021,ADULT SOCIAL CARE,PEOPLEPLUS ILS,909.36,SPECIALIST CARE,PAYMENTS TO CLIENTS (DIRECT PAYMENTS),2103272677,1000061886
04.06.2021,ADULT SOCIAL CARE,PEOPLEPLUS ILS,932.8,SPECIALIST CARE,PAYMENTS TO CLIENTS (DIRECT PAYMENTS),2103272599,1000061886
04.06.2021,ADULT SOCIAL CARE,PEOPLEPLUS ILS,944.8,SPECIALIST CARE,PAYMENTS TO CLIENTS (DIRECT PAYMENTS),2103272558,1000061886
04.06.2021,ADULT SOCIAL CARE,PEOPLEPLUS ILS,967.4,SPECIALIST CARE,PAYMENTS TO CLIENTS (DIRECT PAYMENTS),2103272601,1000061886
04.06.2021,ADULT SOCIAL CARE,PEOPLEPLUS ILS,992.72,SPECIALIST CARE,PAYMENTS TO CLIENTS (DIRECT PAYMENTS),2103272585,1000061886
04.06.2021,ADULT SOCIAL CARE,PEOPLEPLUS ILS,992.72,SPECIALIST CARE,PAYMENTS TO CLIENTS (DIRECT PAYMENTS),2103272669,1000061886
04.06.2021,ADULT SOCIAL CARE,PEOPLEPLUS ILS,"1,111.00",SPECIALIST CARE,PAYMENTS TO CLIENTS (DIRECT PAYMENTS),2103272641,1000061886
04.06.2021,ADULT SOCIAL CARE,PEOPLEPLUS ILS,"1,326.40",SPECIALIST CARE,PAYMENTS TO CLIENTS (DIRECT PAYMENTS),2103272529,1000061886
04.06.2021,ADULT SOCIAL CARE,PEOPLEPLUS ILS,"1,326.40",SPECIALIST CARE,PAYMENTS TO CLIENTS (DIRECT PAYMENTS),2103272542,1000061886
04.06.2021,ADULT SOCIAL CARE,PEOPLEPLUS ILS,"1,334.00",SPECIALIST CARE,PAYMENTS TO CLIENTS (DIRECT PAYMENTS),2103272584,1000061886
04.06.2021,ADULT SOCIAL CARE,PEOPLEPLUS ILS,"1,541.80",SPECIALIST CARE,PAYMENTS TO CLIENTS (DIRECT PAYMENTS),2103272577,1000061886
04.06.2021,ADULT SOCIAL CARE,PEOPLEPLUS ILS,"1,649.52",SPECIALIST CARE,PAYMENTS TO CLIENTS (DIRECT PAYMENTS),2103272670,1000061886
04.06.2021,ADULT SOCIAL CARE,PEOPLEPLUS ILS,"1,759.12",SPECIALIST CARE,PAYMENTS TO CLIENTS (DIRECT PAYMENTS),2103272664,1000061886
04.06.2021,ADULT SOCIAL CARE,PEOPLEPLUS ILS,"1,797.60",SPECIALIST CARE,PAYMENTS TO CLIENTS (DIRECT PAYMENTS),2103272627,1000061886
04.06.2021,ADULT SOCIAL CARE,PEOPLEPLUS ILS,"1,849.00",SPECIALIST CARE,PAYMENTS TO CLIENTS (DIRECT PAYMENTS),2103272712,1000061886
04.06.2021,ADULT SOCIAL CARE,PEOPLEPLUS ILS,"1,900.80",SPECIALIST CARE,PAYMENTS TO CLIENTS (DIRECT PAYMENTS),2103272539,1000061886
04.06.2021,ADULT SOCIAL CARE,PEOPLEPLUS ILS,"2,068.07",SPECIALIST CARE,PAYMENTS TO CLIENTS (DIRECT PAYMENTS),2103272621,1000061886
04.06.2021,ADULT SOCIAL CARE,PEOPLEPLUS ILS,"3,860.56",SPECIALIST CARE,PAYMENTS TO CLIENTS (DIRECT PAYMENTS),2103272682,1000061886
04.06.2021,ADULT SOCIAL CARE,PEOPLEPLUS ILS,"3,911.20",SPECIALIST CARE,PAYMENTS TO CLIENTS (DIRECT PAYMENTS),2103272608,1000061886
04.06.2021,ADULT SOCIAL CARE,PEOPLEPLUS ILS,"5,151.80",SPECIALIST CARE,PAYMENTS TO CLIENTS (DIRECT PAYMENTS),2103272552,1000061886
04.06.2021,ADULT SOCIAL CARE,ADVANTAGE HEALTHCARE LTD,558.12,SPECIALIST CARE,SECTION 17 PAYMENTS TO AGENCIES/CARERS,2103272350,1000049612
04.06.2021,ADULT SOCIAL CARE,CONTACT PROFESSIONALS,285,SPECIALIST CARE,SECTION 17 PAYMENTS TO AGENCIES/CARERS,2103272343,1000057263
04.06.2021,ADULT SOCIAL CARE,CONTACT PROFESSIONALS,285,SPECIALIST CARE,SECTION 17 PAYMENTS TO AGENCIES/CARERS,2103272352,1000057263
04.06.2021,ADULT SOCIAL CARE,CONTACT PROFESSIONALS,285,SPECIALIST CARE,SECTION 17 PAYMENTS TO AGENCIES/CARERS,2103272372,1000057263
04.06.2021,ADULT SOCIAL CARE,CONTACT PROFESSIONALS,342,SPECIALIST CARE,SECTION 17 PAYMENTS TO AGENCIES/CARERS,2103272328,1000057263
04.06.2021,ADULT SOCIAL CARE,CONTACT PROFESSIONALS,380,SPECIALIST CARE,SECTION 17 PAYMENTS TO AGENCIES/CARERS,2103272366,1000057263
04.06.2021,ADULT SOCIAL CARE,CONTACT PROFESSIONALS,798,SPECIALIST CARE,SECTION 17 PAYMENTS TO AGENCIES/CARERS,2103272368,1000057263
04.06.2021,ADULT SOCIAL CARE,STREETSCENE ADDICTION RECOVERY LTD,"2,987.20",SUB LTS 18-64,PLACEMENTS - REHAB,2103272717,11221787
04.06.2021,ADULT SOCIAL CARE,LONDON CARE LTD,"7,195.60",TRANSFORMING COM E,HOMECARE - C&V,5902472240,1000003398
04.06.2021,ADULT SOCIAL CARE,LONDON CARE LTD,"10,646.00",TRANSFORMING COM E,HOMECARE - C&V,5902472240,1000003398
04.06.2021,ADULT SOCIAL CARE,REDACTED PERSONAL DATA,"1,456.00",TRANSITIONS 14-18YRS,PAYMENTS TO CLIENTS (DIRECT PAYMENTS),REDACTED,REDACTED
04.06.2021,ADULT SOCIAL CARE,REDACTED PERSONAL DATA,917.52,TRANSITIONS 14-18YRS,PAYMENTS TO CLIENTS (DIRECT PAYMENTS),REDACTED,REDACTED
04.06.2021,ADULT SOCIAL CARE,REDACTED PERSONAL DATA,"3,302.80",TRANSITIONS 14-18YRS,PAYMENTS TO CLIENTS (DIRECT PAYMENTS),REDACTED,REDACTED
04.06.2021,ADULT SOCIAL CARE,REDACTED PERSONAL DATA,259.68,TRANSITIONS 14-18YRS,PAYMENTS TO CLIENTS (DIRECT PAYMENTS),REDACTED,REDACTED
04.06.2021,ADULT SOCIAL CARE,REDACTED PERSONAL DATA,269.6,TRANSITIONS 14-18YRS,PAYMENTS TO CLIENTS (DIRECT PAYMENTS),REDACTED,REDACTED
04.06.2021,ADULT SOCIAL CARE,REDACTED PERSONAL DATA,619.2,TRANSITIONS 14-18YRS,PAYMENTS TO CLIENTS (DIRECT PAYMENTS),REDACTED,REDACTED
04.06.2021,ADULT SOCIAL CARE,PEOPLEPLUS ILS,273.68,TRANSITIONS 14-18YRS,PAYMENTS TO CLIENTS (DIRECT PAYMENTS),2103272579,1000061886
04.06.2021,ADULT SOCIAL CARE,PEOPLEPLUS ILS,429.92,TRANSITIONS 14-18YRS,PAYMENTS TO CLIENTS (DIRECT PAYMENTS),2103272649,1000061886
04.06.2021,ADULT SOCIAL CARE,PEOPLEPLUS ILS,544.6,TRANSITIONS 14-18YRS,PAYMENTS TO CLIENTS (DIRECT PAYMENTS),2103272633,1000061886
04.06.2021,ADULT SOCIAL CARE,PEOPLEPLUS ILS,986.44,TRANSITIONS 14-18YRS,PAYMENTS TO CLIENTS (DIRECT PAYMENTS),2103272548,1000061886
04.06.2021,ADULT SOCIAL CARE,PEOPLEPLUS ILS,"3,044.08",TRANSITIONS 14-18YRS,PAYMENTS TO CLIENTS (DIRECT PAYMENTS),2103272527,1000061886
04.06.2021,ASSET MANAGEMENT,SCCI ALPHATRACK LTD,441.01,ENG CONTRACTS (NORTH),TV AERIALS R&M,5902471259,1000071955
04.06.2021,ASSET MANAGEMENT,BEVAN BRITTAN LLP,"2,950.60",REPAIRS OPERATIONS,PAYMENTS FOR LEGAL SERVICES,5902472120,1000047779
04.06.2021,CENTRAL FUNCTIONS,KENT COUNTY COUNCIL - LASER,"39,856.33",HEATING ACCOUNT,ELECTRICITY,5902472185,1000012926
04.06.2021,CENTRAL FUNCTIONS,KENT COUNTY COUNCIL - LASER,"51,159.45",HEATING ACCOUNT,ELECTRICITY,5902472185,1000012926
04.06.2021,CENTRAL FUNCTIONS,KENT COUNTY COUNCIL - LASER,"50,156.75",HEATING ACCOUNT,GAS,5902472187,1000012926
04.06.2021,CENTRAL FUNCTIONS,KENT COUNTY COUNCIL - LASER,"504,034.48",HEATING ACCOUNT,GAS,5902472187,1000012926
04.06.2021,CENTRAL FUNCTIONS,SHAWBROOK BANK LIMITED,"8,277.36",HOME OWNERSHIP INCOME,HOUSING RESIDENTIAL RENTS,2103273467,1000086812
04.06.2021,CHIEF EXECUTIVE,CARTER JONAS LLP,"4,470.00",CAPITAL PS (REGEN),CONSTRUCTION FEES,5902471403,1000073124
04.06.2021,CHIEF EXECUTIVE,MERISTEM DESIGN LIMITED,"9,096.00",CAPITAL PS (REGEN),CONSTRUCTION FEES  - EXTERNAL,5902472112,1000084640
04.06.2021,CHILDREN AND FAMILIES,REDACTED PERSONAL DATA,400,ADOPTION SUPP FUND,PROFESSIONAL FEES,REDACTED,REDACTED
04.06.2021,CHILDREN AND FAMILIES,ALICE MALLORIE THERAPY SERVICE,720,ADOPTION SUPP FUND,PROFESSIONAL FEES,5902472213,1000085491
04.06.2021,CHILDREN AND FAMILIES,CASTLE HOMES LIMITED,"19,928.57",CHILDREN�S RESID,RESIDENTIAL CARE,2103272314,1000019388
04.06.2021,CHILDREN AND FAMILIES,OWNLIFE RESIDENTIAL LTD,"26,128.57",CHILDREN�S RESID,RESIDENTIAL CARE,2103272315,1000085398
04.06.2021,CHILDREN AND FAMILIES,PARTNERS IN CARE LTD,"19,285.71",CHILDREN�S RESID,RESIDENTIAL CARE,2103272316,1000086043
04.06.2021,CHILDREN AND FAMILIES,NETWORK RECRUITMENT SOLUTIONS,450,CONTACT SERVICE,OTHER PAYMENTS FOR CLIENTS,5902472202,1000071241
04.06.2021,CHILDREN AND FAMILIES,NETWORK RECRUITMENT SOLUTIONS,525,CONTACT SERVICE,OTHER PAYMENTS FOR CLIENTS,5902472200,1000071241
04.06.2021,CHILDREN AND FAMILIES,NETWORK RECRUITMENT SOLUTIONS,600,CONTACT SERVICE,OTHER PAYMENTS FOR CLIENTS,5902472199,1000071241
04.06.2021,CHILDREN AND FAMILIES,NETWORK RECRUITMENT SOLUTIONS,750,CONTACT SERVICE,OTHER PAYMENTS FOR CLIENTS,5902472208,1000071241
04.06.2021,CHILDREN AND FAMILIES,NETWORK RECRUITMENT SOLUTIONS,995,CONTACT SERVICE,OTHER PAYMENTS FOR CLIENTS,5902472204,1000071241
04.06.2021,CHILDREN AND FAMILIES,NETWORK RECRUITMENT SOLUTIONS,"1,050.00",CONTACT SERVICE,OTHER PAYMENTS FOR CLIENTS,5902472207,1000071241
04.06.2021,CHILDREN AND FAMILIES,POTTON KARE SERVICES LTD,491.4,CONTACT SERVICE,OTHER PAYMENTS FOR CLIENTS,2103272319,1000080630
04.06.2021,CHILDREN AND FAMILIES,REDACTED PERSONAL DATA,400,FE SUPPORT,OTHER PAYMENTS FOR CLIENTS,REDACTED,REDACTED
04.06.2021,CHILDREN AND FAMILIES,REDACTED PERSONAL DATA,"3,247.43",FOSTERING ALLOWANCES,PAYMENTS TO CARERS,REDACTED,REDACTED
04.06.2021,CHILDREN AND FAMILIES,TACT,369.1,FRIENDS & FAMILY FOSTERING,EXTERNAL AGENCIES AND BODIES,2103272394,1000012941
04.06.2021,CHILDREN AND FAMILIES,TACT,408,FRIENDS & FAMILY FOSTERING,EXTERNAL AGENCIES AND BODIES,2103272386,1000012941
04.06.2021,CHILDREN AND FAMILIES,FIVE RIVERS CHILD CARE LTD,"3,393.61",FRIENDS & FAMILY FOSTERING,EXTERNAL AGENCIES AND BODIES,2103272387,1000018792
04.06.2021,CHILDREN AND FAMILIES,FIVE RIVERS CHILD CARE LTD,"3,393.61",FRIENDS & FAMILY FOSTERING,EXTERNAL AGENCIES AND BODIES,2103272399,1000018792
04.06.2021,CHILDREN AND FAMILIES,FIVE RIVERS CHILD CARE LTD,"3,522.49",FRIENDS & FAMILY FOSTERING,EXTERNAL AGENCIES AND BODIES,2103272401,1000018792
04.06.2021,CHILDREN AND FAMILIES,BY THE BRIDGE LTD,"4,218.48",FRIENDS & FAMILY FOSTERING,EXTERNAL AGENCIES AND BODIES,2103272388,1000043961
04.06.2021,CHILDREN AND FAMILIES,BY THE BRIDGE LTD,"4,440.44",FRIENDS & FAMILY FOSTERING,EXTERNAL AGENCIES AND BODIES,2103272404,1000043961
04.06.2021,CHILDREN AND FAMILIES,BY THE BRIDGE LTD,"4,512.05",FRIENDS & FAMILY FOSTERING,EXTERNAL AGENCIES AND BODIES,2103272393,1000043961
04.06.2021,CHILDREN AND FAMILIES,BY THE BRIDGE LTD,"4,580.87",FRIENDS & FAMILY FOSTERING,EXTERNAL AGENCIES AND BODIES,2103272402,1000043961
04.06.2021,CHILDREN AND FAMILIES,BY THE BRIDGE LTD,"4,658.40",FRIENDS & FAMILY FOSTERING,EXTERNAL AGENCIES AND BODIES,2103272403,1000043961
04.06.2021,CHILDREN AND FAMILIES,BY THE BRIDGE LTD,"4,749.20",FRIENDS & FAMILY FOSTERING,EXTERNAL AGENCIES AND BODIES,2103272400,1000043961
04.06.2021,CHILDREN AND FAMILIES,BY THE BRIDGE LTD,"4,903.58",FRIENDS & FAMILY FOSTERING,EXTERNAL AGENCIES AND BODIES,2103272389,1000043961
04.06.2021,CHILDREN AND FAMILIES,BY THE BRIDGE LTD,"4,903.58",FRIENDS & FAMILY FOSTERING,EXTERNAL AGENCIES AND BODIES,2103272392,1000043961
04.06.2021,CHILDREN AND FAMILIES,FOSTERING LONDON LTD,"5,092.68",FRIENDS & FAMILY FOSTERING,EXTERNAL AGENCIES AND BODIES,2103272407,1000077541
04.06.2021,CHILDREN AND FAMILIES,FOSTERING LONDON LTD,"8,740.00",FRIENDS & FAMILY FOSTERING,EXTERNAL AGENCIES AND BODIES,2103272406,1000077541
04.06.2021,CHILDREN AND FAMILIES,REGIONAL FOSTERING SERVICES LTD,"4,406.43",FRIENDS & FAMILY FOSTERING,EXTERNAL AGENCIES AND BODIES,2103272396,1000080112
04.06.2021,CHILDREN AND FAMILIES,SHARED CARE SERVICES LTD,"6,606.72",FRIENDS & FAMILY FOSTERING,EXTERNAL AGENCIES AND BODIES,2103272405,1000080308
04.06.2021,CHILDREN AND FAMILIES,DIVERSITY FOSTER CARE LTD,"4,108.69",FRIENDS & FAMILY FOSTERING,EXTERNAL AGENCIES AND BODIES,2103272397,1000081399
04.06.2021,CHILDREN AND FAMILIES,DIVERSITY FOSTER CARE LTD,"4,108.69",FRIENDS & FAMILY FOSTERING,EXTERNAL AGENCIES AND BODIES,2103272398,1000081399
04.06.2021,CHILDREN AND FAMILIES,FAMILY WORKS FOSTERING LTD,"6,275.29",FRIENDS & FAMILY FOSTERING,EXTERNAL AGENCIES AND BODIES,2103272395,1000082529
04.06.2021,CHILDREN AND FAMILIES,FAMILY WORKS FOSTERING LTD,"10,038.00",FRIENDS & FAMILY FOSTERING,EXTERNAL AGENCIES AND BODIES,2103272385,1000082529
04.06.2021,CHILDREN AND FAMILIES,REDACTED PERSONAL DATA,375,P & R CARE TEAM,OTHER PAYMENTS FOR CLIENTS,REDACTED,REDACTED
04.06.2021,CHILDREN AND FAMILIES,REDACTED PERSONAL DATA,470,SEMI-IND LAC 16-17,OTHER PAYMENTS FOR CLIENTS,REDACTED,REDACTED
04.06.2021,CHILDREN AND FAMILIES,REDACTED PERSONAL DATA,300,SEMI-IND LAC 16-17,OTHER PAYMENTS FOR CLIENTS,REDACTED,REDACTED
04.06.2021,CHILDREN AND FAMILIES,GREATER LONDON FOSTERING,"2,316.54",STAYPUT- FOST CARERS,EXTERNAL AGENCIES AND BODIES,2103272714,1000029184
04.06.2021,COMMUNITIES,PROFAD CARE AGENCY,330.48,NO RECOURSE TO PUBLIC FUNDS,HOMECARE - C&V,2103272423,1000079032
04.06.2021,COMMUNITIES,PROFAD CARE AGENCY,524.46,NO RECOURSE TO PUBLIC FUNDS,HOMECARE - C&V,2103272468,1000079032
04.06.2021,COMMUNITIES,PROFAD CARE AGENCY,524.88,NO RECOURSE TO PUBLIC FUNDS,HOMECARE - C&V,2103272458,1000079032
04.06.2021,COMMUNITIES,PROFAD CARE AGENCY,830.88,NO RECOURSE TO PUBLIC FUNDS,HOMECARE - C&V,2103272496,1000079032
04.06.2021,COMMUNITIES,PROFAD CARE AGENCY,"1,010.88",NO RECOURSE TO PUBLIC FUNDS,HOMECARE - C&V,2103272446,1000079032
04.06.2021,CUSTOMER EXPERIENCE HGF,ACCESS INDEPENDENT LTD,369.75,BLUE BADGES,PROFESSIONAL FEES,5902472145,1000059141
04.06.2021,CUSTOMER EXPERIENCE HGF,FRESHVIEW ESTATES LTD,"1,647.76",HOMELESS PROJECTS,GRANTS,5902472308,1000081189
04.06.2021,CUSTOMER EXPERIENCE HGF,HELP2RENT LTD,"7,266.00",HOMELESS PROJECTS,PROFESSIONAL FEES,5902472329,1000082284
04.06.2021,CUSTOMER EXPERIENCE HGF,HELP2RENT LTD,"7,727.00",HOMELESS PROJECTS,PROFESSIONAL FEES,5902472326,1000082284
04.06.2021,CUSTOMER EXPERIENCE HGF,HELP2RENT LTD,"12,975.00",HOMELESS PROJECTS,PROFESSIONAL FEES,5902472319,1000082284
04.06.2021,CUSTOMER EXPERIENCE HGF,S & G PROPERTIES,"7,137.60",NIGHTLY TA (NSC),EXTERNAL AGENCIES AND BODIES,5902472269,1000005082
04.06.2021,CUSTOMER EXPERIENCE HGF,QUINARY LTD,"6,077.55",NIGHTLY TA (NSC),EXTERNAL AGENCIES AND BODIES,5902472339,1000029106
04.06.2021,CUSTOMER EXPERIENCE HGF,KINDLY PROPERTIES LTD,"15,682.50",NIGHTLY TA (NSC),EXTERNAL AGENCIES AND BODIES,5902472336,1000060734
04.06.2021,CUSTOMER EXPERIENCE HGF,EASYMOVE EA LIMITED,"1,943.70",NIGHTLY TA (NSC),EXTERNAL AGENCIES AND BODIES,5902472321,1000066859
04.06.2021,CUSTOMER EXPERIENCE HGF,ZFA ACCOMMODATION LTD,"1,020.00",NIGHTLY TA (NSC),EXTERNAL AGENCIES AND BODIES,5902472084,1000082620
04.06.2021,CUSTOMER EXPERIENCE HGF,HOMES 2 LET UK LTD,-890.6,PSL PLACEMENTS,EXTERNAL AGENCIES AND BODIES,5902472110,1000079868
04.06.2021,CUSTOMER EXPERIENCE HGF,HOMES 2 LET UK LTD,-780.78,PSL PLACEMENTS,EXTERNAL AGENCIES AND BODIES,5902472106,1000079868
04.06.2021,CUSTOMER EXPERIENCE HGF,HOMES 2 LET UK LTD,-544.28,PSL PLACEMENTS,EXTERNAL AGENCIES AND BODIES,5902472107,1000079868
04.06.2021,CUSTOMER EXPERIENCE HGF,HOMES 2 LET UK LTD,-469.56,PSL PLACEMENTS,EXTERNAL AGENCIES AND BODIES,5902472109,1000079868
04.06.2021,CUSTOMER EXPERIENCE HGF,HOMES 2 LET UK LTD,"50,271.74",PSL PLACEMENTS,EXTERNAL AGENCIES AND BODIES,5902472105,1000079868
04.06.2021,CUSTOMER EXPERIENCE HGF,MX ESTATES LTD,"6,500.00",PSL PLACEMENTS,GRANTS,5902472356,1000083639
04.06.2021,DSG,FLEET TUTORS,"6,714.00",ALTERNATIVE PROVISION,EXTERNAL AGENCIES AND BODIES,5902472189,1000044820
04.06.2021,DSG,ACADEMY21 LTD,"3,751.38",ALTERNATIVE PROVISION,EXTERNAL AGENCIES AND BODIES,5902472190,1000083781
04.06.2021,DSG,REDACTED PERSONAL DATA,400,AP & HOSPITAL SCHLS,STATEMENTED FEES,REDACTED,REDACTED
04.06.2021,DSG,PULSE HEALTHCARE LTD,800.8,AP & HOSPITAL SCHLS,STATEMENTED FEES,2103272209,1000035063
04.06.2021,DSG,FLEET TUTORS,513,AP & HOSPITAL SCHLS,STATEMENTED FEES,2103272161,1000044820
04.06.2021,DSG,FLEET TUTORS,599,AP & HOSPITAL SCHLS,STATEMENTED FEES,2103272154,1000044820
04.06.2021,DSG,FLEET TUTORS,628,AP & HOSPITAL SCHLS,STATEMENTED FEES,2103272155,1000044820
04.06.2021,DSG,FLEET TUTORS,"1,769.00",AP & HOSPITAL SCHLS,STATEMENTED FEES,2103272153,1000044820
04.06.2021,DSG,FLEET TUTORS,"1,976.00",AP & HOSPITAL SCHLS,STATEMENTED FEES,2103272163,1000044820
04.06.2021,DSG,FLEET TUTORS,"1,976.00",AP & HOSPITAL SCHLS,STATEMENTED FEES,2103272165,1000044820
04.06.2021,DSG,FLEET TUTORS,"2,512.00",AP & HOSPITAL SCHLS,STATEMENTED FEES,2103272156,1000044820
04.06.2021,DSG,FLEET TUTORS,"2,512.00",AP & HOSPITAL SCHLS,STATEMENTED FEES,2103272162,1000044820
04.06.2021,DSG,FLEET TUTORS,"2,512.00",AP & HOSPITAL SCHLS,STATEMENTED FEES,2103272166,1000044820
04.06.2021,DSG,FLEET TUTORS,"2,764.00",AP & HOSPITAL SCHLS,STATEMENTED FEES,2103272169,1000044820
04.06.2021,DSG,FLEET TUTORS,"2,952.00",AP & HOSPITAL SCHLS,STATEMENTED FEES,2103272168,1000044820
04.06.2021,DSG,FLEET TUTORS,"3,035.00",AP & HOSPITAL SCHLS,STATEMENTED FEES,2103272159,1000044820
04.06.2021,DSG,FLEET TUTORS,"3,060.00",AP & HOSPITAL SCHLS,STATEMENTED FEES,2103272157,1000044820
04.06.2021,DSG,FLEET TUTORS,"3,060.00",AP & HOSPITAL SCHLS,STATEMENTED FEES,2103272158,1000044820
04.06.2021,DSG,FLEET TUTORS,"3,060.00",AP & HOSPITAL SCHLS,STATEMENTED FEES,2103272170,1000044820
04.06.2021,DSG,FLEET TUTORS,"3,624.00",AP & HOSPITAL SCHLS,STATEMENTED FEES,2103272164,1000044820
04.06.2021,DSG,FLEET TUTORS,"4,216.00",AP & HOSPITAL SCHLS,STATEMENTED FEES,2103272160,1000044820
04.06.2021,DSG,FLEET TUTORS,"4,216.00",AP & HOSPITAL SCHLS,STATEMENTED FEES,2103272167,1000044820
04.06.2021,DSG,WINCHMORE TUTORS LTD,528,AP & HOSPITAL SCHLS,STATEMENTED FEES,2103272236,1000075298
04.06.2021,DSG,WINCHMORE TUTORS LTD,960,AP & HOSPITAL SCHLS,STATEMENTED FEES,2103272232,1000075298
04.06.2021,DSG,WINCHMORE TUTORS LTD,"1,464.00",AP & HOSPITAL SCHLS,STATEMENTED FEES,2103272233,1000075298
04.06.2021,DSG,WINCHMORE TUTORS LTD,"1,608.00",AP & HOSPITAL SCHLS,STATEMENTED FEES,2103272235,1000075298
04.06.2021,DSG,WINCHMORE TUTORS LTD,"1,944.00",AP & HOSPITAL SCHLS,STATEMENTED FEES,2103272234,1000075298
04.06.2021,DSG,PECULIAR CARE HOMES LTD,"4,487.50",AP & HOSPITAL SCHLS,STATEMENTED FEES,2103272194,1000076991
04.06.2021,DSG,CARBONE CLINIC UK LTD,900,AP & HOSPITAL SCHLS,STATEMENTED FEES,2103272148,1000080937
04.06.2021,DSG,CARBONE CLINIC UK LTD,"1,125.00",AP & HOSPITAL SCHLS,STATEMENTED FEES,2103272145,1000080937
04.06.2021,DSG,CARBONE CLINIC UK LTD,"1,800.00",AP & HOSPITAL SCHLS,STATEMENTED FEES,2103272147,1000080937
04.06.2021,DSG,CARBONE CLINIC UK LTD,"1,875.00",AP & HOSPITAL SCHLS,STATEMENTED FEES,2103272149,1000080937
04.06.2021,DSG,CARBONE CLINIC UK LTD,"2,250.00",AP & HOSPITAL SCHLS,STATEMENTED FEES,2103272152,1000080937
04.06.2021,DSG,CARBONE CLINIC UK LTD,"3,600.00",AP & HOSPITAL SCHLS,STATEMENTED FEES,2103272146,1000080937
04.06.2021,DSG,CARBONE CLINIC UK LTD,"4,500.00",AP & HOSPITAL SCHLS,STATEMENTED FEES,2103272151,1000080937
04.06.2021,DSG,CARBONE CLINIC UK LTD,"6,750.00",AP & HOSPITAL SCHLS,STATEMENTED FEES,2103272150,1000080937
04.06.2021,DSG,VIBE TEACHER RECRUITMENT LTD,"1,230.00",AP & HOSPITAL SCHLS,STATEMENTED FEES,2103272226,1000081423
04.06.2021,DSG,VIBE TEACHER RECRUITMENT LTD,"1,260.00",AP & HOSPITAL SCHLS,STATEMENTED FEES,2103272227,1000081423
04.06.2021,DSG,VIBE TEACHER RECRUITMENT LTD,"1,260.00",AP & HOSPITAL SCHLS,STATEMENTED FEES,2103272228,1000081423
